Workbook

Sheet Formato2019
A2: VEEDURIA DISTRITAL - RENDICION DE CUENTAS DE LA GESTION CONTRACTUAL EN EL DISTRITO CAPITAL (Acuerdo 380 de 2009)
A3: INFORMACION GENERAL DE CONTRATACION ENTIDADES DISTRITALES - ENERO 1 A 31 DICIEMBRE DE 2019
A5: 1. Entidad: | D5: Alcaldia Local Ciudad Bolivar | G5: 2. Sector
A6: 3. Presupuesto Disponible Inversión Directa PREDIS | D6: 108570818311 | G6: 5. Presupuesto Disponible Funcionamiento PREDIS | H6: 4300108576 | U6: 9. Nombre de quien diligencia el formato
A7: 4. Presupuesto Comprometido de Inversión Directa según PREDIS | D7: 102147662099 | G7: 6. Presupuesto Comprometido Funcionamiento según PREDIS | H7: 2804073082 | U7: Cargo | W7: Profesionales de Planeacion y Contratacion
U8: Dependencia | W8: Gestion del Desarrollo Local
A9: 7. Presupuesto Disponible Operación (Regimen Privado) | U9: Teléfono | W9: 7799280 Ext. 1001 y 1079
A10: 8. Presupuesto Comprometido Operación mediante contratos | U10: Correo Electrónico | W10: oscar.gil@gobiernobogota.gov.co y mariela.jimenez@gobiernobogota.gov.co
A11: 1- INFORMACION GENERAL | O11: 2- INFORMACION FINANCIERA | V11: 3 - PLAZOS | AA11: 4 - ESTADO | AF11: 5. % Avance y/o cumplimiento
A12: 1 | B12: 2 | C12: 3 | D12: 4 | E12: 5 | F12: 6 | G12: 7 | H12: 8 | L12: 9 | M12: 10 | O12: 11 | P12: 12 | Q12: 13 | R12: 14 | S12: 15 | T12: 16 | U12: 17 | V12: 18 | W12: 19 | X12: 20 | Y12: 21 | Z12: 22 | AA12: 23 | AF12: 24
A13: Número Contrato | B13: Año | C13: Número de proceso contractual | D13: Tipo de contrato | E13: Modalidad de Selección | F13: Procedimiento o causal | G13: Objeto | H13: Afectación | I13: Número Programa | J13: Equivalencia número de programa | K13: Eje / Pilar | L13: Número Proyecto | M13: Número de Identificación del contratista (NIT con digito de verificación) | N13: Nombre del contratista | O13: Valor Inicial del contrato | P13: Número de reducciones | Q13: Valor total reducciones (En valor negativo) | R13: Número de adiciones | S13: Valor total de adiciones | T13: Valor Final | U13: Giros (Valor en pesos) | V13: Fecha de suscripción (DD/MM/AAAA) | W13: Fecha de inicio (DD/MM/AAAA) | X13: Fecha de terminación (DD/MM/AAAA) | Y13: Plazo en días | Z13: Prorroga en días | AA13: Anulado | AB13: Celebrado o por iniciar | AC13: En Ejecución | AD13: Terminado | AE13: Liquidado | AF13: % Avance y/o Cumplimiento | AH13: Total Contratos | AI13: Validación Tipo | AJ13: Validación Modalidad | AK13: Validación procedimiento | AL13: Validación afectación | AM13: Validación programa
A14: CPS-001-2019 | B14: 2019 | C14: FDLCB-CD-001-2019 | D14: Contratos de prestación de servicios profesionales y de apoyo a la gestión | E14: Contratación directa | F14: Prestación de servicios profesionales y de apoyo a la gestión, o para la ejecución de trabajos artísticos que sólo puedan encomendarse a determinadas personas naturales; | G14: PRESTAR SUS SERVICIOS PROFESIONALES PARA DESARROLLAR TODAS LAS ACTIVIDADES CONCERNIENTES A LA CONSECUCIÓN DE BIENES Y/O SERVICIOS PARA LA LOCALIDAD DE CIUDAD BOLÍVAR DE ACUERDO CON LOS PROCEDIMIENTOS ESTABLECIDOS EN EL SIG Y LA NORMATIVIDAD VIGENTE EN MATERIA DE CONTRATACIÓN ESTATAL EN CUMPLIMIENTO DE LAS METAS ESTABLECIDAS EN EL PLAN DE DESARROLLO LOCAL DE CIUDAD BOLÍVAR, PLAN DE GESTIÓN Y PLAN ANUAL DE ADQUISICIONES | H14: Inversión | I14: 45 | J14: =IF(ISERROR(VLOOKUP(I14,Eje_Pilar!$C$2:$E$47,2,FALSE))," ",VLOOKUP(I14,Eje_Pilar!$C$2:$E$47,2,FALSE)) -> Gobernanza e influencia local, regional e internacional | K14: =IF(ISERROR(VLOOKUP(I14,Eje_Pilar!$C$2:$E$47,3,FALSE))," ",VLOOKUP(I14,Eje_Pilar!$C$2:$E$47,3,FALSE)) -> Eje Transversal 4 Gobierno Legitimo, Fortalecimiento Local y Eficiencia | L14: 1281 | M14: 1030582824 | N14: JUAN FELIPE GALINDO NIÑO | O14: 60500000 | R14: 1 | S14: 17966667 | T14: =+O14+Q14+S14 -> 78466667 | U14: 56283333 | V14: 2019-01-24 | W14: 2019-01-24 | X14: 2020-03-31 | Y14: 330 | Z14: 98 | AC14: X | AF14: =IF(ISERROR(U14/T14),"-",(U14/T14)) -> 0.7172897123 | AH14: =IF(SUMPRODUCT((A$14:A14=A14)*(B$14:B14=B14)*(C$14:C14=C14))>1,0,1) -> 1 | AI14: =IFERROR(VLOOKUP(D14,tipo,1,FALSE),"NO") -> Contratos de prestación de servicios profesionales y de apoyo a la gestión | AJ14: =IFERROR(VLOOKUP(E14,modal,1,FALSE),"NO") -> Contratación directa | AK14: =IFERROR(VLOOKUP(F14,Tipo!$C$12:$C$27,1,FALSE),"NO") -> Prestación de servicios profesionales y de apoyo a la gestión, o para la ejecución de trabajos artísticos que sólo puedan encomendarse a determinadas personas naturales; | AL14: =IFERROR(VLOOKUP(H14,afectacion,1,FALSE),"NO") -> Inversión | AM14: =IFERROR(VLOOKUP(I14,programa,1,FALSE),"NO") -> 45
A15: CPS-002-2019 | B15: 2019 | C15: FDLCB-CD-002-2019 | D15: Contratos de prestación de servicios profesionales y de apoyo a la gestión | E15: Contratación directa | F15: Prestación de servicios profesionales y de apoyo a la gestión, o para la ejecución de trabajos artísticos que sólo puedan encomendarse a determinadas personas naturales; | G15: PRESTAR SUS SERVICIOS PROFESIONALES PARA DESARROLLAR TODAS LAS ACTIVIDADES CONCERNIENTES A LA CONSECUCIÓN DE BIENES Y/O SERVICIOS PARA LA LOCALIDAD DE CIUDAD BOLÍVAR DE ACUERDO CON LOS PROCEDIMIENTOS ESTABLECIDOS EN EL SIG Y LA NORMATIVIDAD VIGENTE EN MATERIA DE CONTRATACIÓN ESTATAL EN CUMPLIMIENTO DE LAS METAS ESTABLECIDAS EN EL PLAN DE DESARROLLO LOCAL DE CIUDAD BOLÍVAR, PLAN DE GESTIÓN Y PLAN ANUAL DE ADQUISICIONES. | H15: Inversión | I15: 45 | J15: =IF(ISERROR(VLOOKUP(I15,Eje_Pilar!$C$2:$E$47,2,FALSE))," ",VLOOKUP(I15,Eje_Pilar!$C$2:$E$47,2,FALSE)) -> Gobernanza e influencia local, regional e internacional | K15: =IF(ISERROR(VLOOKUP(I15,Eje_Pilar!$C$2:$E$47,3,FALSE))," ",VLOOKUP(I15,Eje_Pilar!$C$2:$E$47,3,FALSE)) -> Eje Transversal 4 Gobierno Legitimo, Fortalecimiento Local y Eficiencia | L15: 1281 | M15: 79591449 | N15: ASDRUBAL MENDIVELSO MENDIVELSO | O15: 60500000 | R15: 1 | S15: 17966667 | T15: 78466667 | U15: 56283333 | V15: 2019-01-24 | W15: 2019-01-24 | X15: 2020-03-31 | Y15: 330 | Z15: 98 | AC15: X | AF15: =IF(ISERROR(U15/T15),"-",(U15/T15)) -> 0.7172897123 | AH15: =IF(SUMPRODUCT((A$14:A15=A15)*(B$14:B15=B15)*(C$14:C15=C15))>1,0,1) -> 1 | AI15: Contratos de prestación de servicios profesionales y de apoyo a la gestión | AJ15: Contratación directa | AK15: =IFERROR(VLOOKUP(F15,Tipo!$C$12:$C$27,1,FALSE),"NO") -> Prestación de servicios profesionales y de apoyo a la gestión, o para la ejecución de trabajos artísticos que sólo puedan encomendarse a determinadas personas naturales; | AL15: Inversión | AM15: 45
A16: CPS-003-2019 | B16: 2019 | C16: FDLCB-CD-003-2019 | D16: Contratos de prestación de servicios profesionales y de apoyo a la gestión | E16: Contratación directa | F16: Prestación de servicios profesionales y de apoyo a la gestión, o para la ejecución de trabajos artísticos que sólo puedan encomendarse a determinadas personas naturales; | G16: EL CONTRATO QUE SE PRETENDE CELEBRAR TENDRA POR OBJETO "PRESTAR SERVICIOS PROFESIONALES ESPECIALIZADOS PARA APOYAR EN LAS ETAPAS PRECONTRACTUAL, CONTRACTUAL Y POST-CONTRACTUAL DE LOS PROCESOS DE CONTRATACIÓN QUE ADELANTE EL FONDO DE DESARROLLO LOCAL DE CIUDAD BOLÍVAR | H16: Inversión | I16: 45 | J16: =IF(ISERROR(VLOOKUP(I16,Eje_Pilar!$C$2:$E$47,2,FALSE))," ",VLOOKUP(I16,Eje_Pilar!$C$2:$E$47,2,FALSE)) -> Gobernanza e influencia local, regional e internacional | K16: =IF(ISERROR(VLOOKUP(I16,Eje_Pilar!$C$2:$E$47,3,FALSE))," ",VLOOKUP(I16,Eje_Pilar!$C$2:$E$47,3,FALSE)) -> Eje Transversal 4 Gobierno Legitimo, Fortalecimiento Local y Eficiencia | L16: 1281 | M16: 1032372023 | N16: JESUS DAVID DÍAZ CAMPOS | O16: 84700000 | R16: 1 | S16: 21560000 | T16: 106260000 | U16: 74946667 | V16: 2019-01-25 | W16: 2019-01-25 | X16: 2020-03-31 | Y16: 330 | Z16: 84 | AC16: X | AF16: =IF(ISERROR(U16/T16),"-",(U16/T16)) -> 0.7053140128 | AH16: =IF(SUMPRODUCT((A$14:A16=A16)*(B$14:B16=B16)*(C$14:C16=C16))>1,0,1) -> 1 | AI16: Contratos de prestación de servicios profesionales y de apoyo a la gestión | AJ16: Contratación directa | AK16: =IFERROR(VLOOKUP(F16,Tipo!$C$12:$C$27,1,FALSE),"NO") -> Prestación de servicios profesionales y de apoyo a la gestión, o para la ejecución de trabajos artísticos que sólo puedan encomendarse a determinadas personas naturales; | AL16: Inversión | AM16: 45
A17: CPS-004-2019 | B17: 2019 | C17: FDLCB-CD-004-2019 | D17: Contratos de prestación de servicios profesionales y de apoyo a la gestión | E17: Contratación directa | F17: Prestación de servicios profesionales y de apoyo a la gestión, o para la ejecución de trabajos artísticos que sólo puedan encomendarse a determinadas personas naturales; | G17: Prestar servicios profesionales en temas de gestión ambiental, agropecuaria, riesgo y cambio climático, articulando, liderando y apoyando los planes, estrategias, proyectos e instancias tanto a nivel urbano como rural en la localidad de Ciudad Bolívar. | H17: Inversión | I17: 45 | J17: =IF(ISERROR(VLOOKUP(I17,Eje_Pilar!$C$2:$E$47,2,FALSE))," ",VLOOKUP(I17,Eje_Pilar!$C$2:$E$47,2,FALSE)) -> Gobernanza e influencia local, regional e internacional | K17: =IF(ISERROR(VLOOKUP(I17,Eje_Pilar!$C$2:$E$47,3,FALSE))," ",VLOOKUP(I17,Eje_Pilar!$C$2:$E$47,3,FALSE)) -> Eje Transversal 4 Gobierno Legitimo, Fortalecimiento Local y Eficiencia | L17: 1281 | M17: 1024523163 | N17: WILLIAN FERNANDO PACHECO GONZALEZ | O17: 66000000 | T17: 66000000 | U17: 59500000 | V17: 2019-01-29 | W17: 2019-01-29 | X17: 2019-12-28 | Y17: 330 | AD17: X | AF17: 0.9015151515 | AH17: =IF(SUMPRODUCT((A$14:A17=A17)*(B$14:B17=B17)*(C$14:C17=C17))>1,0,1) -> 1 | AI17: Contratos de prestación de servicios profesionales y de apoyo a la gestión | AJ17: Contratación directa | AK17: =IFERROR(VLOOKUP(F17,Tipo!$C$12:$C$27,1,FALSE),"NO") -> Prestación de servicios profesionales y de apoyo a la gestión, o para la ejecución de trabajos artísticos que sólo puedan encomendarse a determinadas personas naturales; | AL17: Inversión | AM17: 45
A18: CPS-005-2019 | B18: 2019 | C18: FDLCB-CD-005-2019 | D18: Contratos de prestación de servicios profesionales y de apoyo a la gestión | E18: Contratación directa | F18: Prestación de servicios profesionales y de apoyo a la gestión, o para la ejecución de trabajos artísticos que sólo puedan encomendarse a determinadas personas naturales; | G18: Prestar sus servicios para realizar actividades de apoyo en el CDI del Fondo De Desarrollo Local De Ciudad Bolivar . | H18: Inversión | I18: 45 | J18: =IF(ISERROR(VLOOKUP(I18,Eje_Pilar!$C$2:$E$47,2,FALSE))," ",VLOOKUP(I18,Eje_Pilar!$C$2:$E$47,2,FALSE)) -> Gobernanza e influencia local, regional e internacional | K18: =IF(ISERROR(VLOOKUP(I18,Eje_Pilar!$C$2:$E$47,3,FALSE))," ",VLOOKUP(I18,Eje_Pilar!$C$2:$E$47,3,FALSE)) -> Eje Transversal 4 Gobierno Legitimo, Fortalecimiento Local y Eficiencia | L18: 1281 | M18: 79258117 | N18: CARLOS HUMBERTO POPAYAN CASALLAS | O18: 25300000 | R18: 1 | S18: 7053333 | T18: 32353333 | U18: 23076666 | V18: 2019-01-30 | W18: 2019-01-30 | X18: 2019-03-31 | Y18: 330 | Z18: 92 | AC18: X | AF18: 0.7132701289 | AH18: =IF(SUMPRODUCT((A$14:A18=A18)*(B$14:B18=B18)*(C$14:C18=C18))>1,0,1) -> 1 | AI18: Contratos de prestación de servicios profesionales y de apoyo a la gestión | AJ18: Contratación directa | AK18: =IFERROR(VLOOKUP(F18,Tipo!$C$12:$C$27,1,FALSE),"NO") -> Prestación de servicios profesionales y de apoyo a la gestión, o para la ejecución de trabajos artísticos que sólo puedan encomendarse a determinadas personas naturales; | AL18: Inversión | AM18: 45
A19: CPS-006-2019 | B19: 2019 | C19: FDLCB-CD-006-2019 | D19: Contratos de prestación de servicios profesionales y de apoyo a la gestión | E19: Contratación directa | F19: Prestación de servicios profesionales y de apoyo a la gestión, o para la ejecución de trabajos artísticos que sólo puedan encomendarse a determinadas personas naturales; | G19: Apoyar la formulación, ejecución, seguimiento y mejora continua de las herramientas que conforman la gestión ambiental institucional de la Alcaldía Local. | H19: Inversión | I19: 45 | J19: =IF(ISERROR(VLOOKUP(I19,Eje_Pilar!$C$2:$E$47,2,FALSE))," ",VLOOKUP(I19,Eje_Pilar!$C$2:$E$47,2,FALSE)) -> Gobernanza e influencia local, regional e internacional | K19: =IF(ISERROR(VLOOKUP(I19,Eje_Pilar!$C$2:$E$47,3,FALSE))," ",VLOOKUP(I19,Eje_Pilar!$C$2:$E$47,3,FALSE)) -> Eje Transversal 4 Gobierno Legitimo, Fortalecimiento Local y Eficiencia | L19: 1281 | M19: 1023901784 | N19: ANDRES FELIPE ARANA TRUJILLO | O19: 50600000 | T19: =+O19+Q19+S19 -> 50600000 | U19: 46153333 | V19: 2019-01-30 | W19: 2019-01-31 | X19: 2019-12-29 | Y19: 330 | AD19: X | AF19: 0.9121212055 | AH19: =IF(SUMPRODUCT((A$14:A19=A19)*(B$14:B19=B19)*(C$14:C19=C19))>1,0,1) -> 1 | AI19: =IFERROR(VLOOKUP(D19,tipo,1,FALSE),"NO") -> Contratos de prestación de servicios profesionales y de apoyo a la gestión | AJ19: =IFERROR(VLOOKUP(E19,modal,1,FALSE),"NO") -> Contratación directa | AK19: =IFERROR(VLOOKUP(F19,Tipo!$C$12:$C$27,1,FALSE),"NO") -> Prestación de servicios profesionales y de apoyo a la gestión, o para la ejecución de trabajos artísticos que sólo puedan encomendarse a determinadas personas naturales; | AL19: =IFERROR(VLOOKUP(H19,afectacion,1,FALSE),"NO") -> Inversión | AM19: =IFERROR(VLOOKUP(I19,programa,1,FALSE),"NO") -> 45
A20: CPS-007-2019 | B20: 2019 | C20: FDLCB-CD-007-2019 | D20: Contratos de prestación de servicios profesionales y de apoyo a la gestión | E20: Contratación directa | F20: Prestación de servicios profesionales y de apoyo a la gestión, o para la ejecución de trabajos artísticos que sólo puedan encomendarse a determinadas personas naturales; | G20: PRESTAR SUS SERVICIOS PROFESIONALES PARA ATENDER TODAS LAS ACTIVIDADES DE GESTIÓN DEL RIESGO Y CAMBIO CLIMÁTICO DE LA LOCALIDAD DE CIUDAD BOLÍVAR | H20: Inversión | I20: 45 | J20: =IF(ISERROR(VLOOKUP(I20,Eje_Pilar!$C$2:$E$47,2,FALSE))," ",VLOOKUP(I20,Eje_Pilar!$C$2:$E$47,2,FALSE)) -> Gobernanza e influencia local, regional e internacional | K20: =IF(ISERROR(VLOOKUP(I20,Eje_Pilar!$C$2:$E$47,3,FALSE))," ",VLOOKUP(I20,Eje_Pilar!$C$2:$E$47,3,FALSE)) -> Eje Transversal 4 Gobierno Legitimo, Fortalecimiento Local y Eficiencia | L20: 1281 | M20: 1026567465 | N20: HUGO ESTEBAN MORALES VARGAS | O20: 53900000 | R20: 1 | S20: 14863333 | T20: 68763333 | U20: 49900000 | V20: 2019-01-30 | W20: 2019-02-01 | X20: 2020-03-31 | Y20: 330 | Z20: 91 | AC20: X | AF20: 0.7256774479 | AH20: =IF(SUMPRODUCT((A$14:A20=A20)*(B$14:B20=B20)*(C$14:C20=C20))>1,0,1) -> 1
A21: CPS-008-2019 | B21: 2019 | C21: FDLCB-CD-008-2019 | D21: Contratos de prestación de servicios profesionales y de apoyo a la gestión | E21: Contratación directa | F21: Prestación de servicios profesionales y de apoyo a la gestión, o para la ejecución de trabajos artísticos que sólo puedan encomendarse a determinadas personas naturales; | G21: Prestar sus servicios técnicos para el apoyo en la gestión, seguimiento y ejecución de las actividades relacionadas con temas de gestión ambiental, gestión del riesgo y cambio climático territorial de la Localidad De Ciudad Bolívar. | H21: Inversión | I21: 45 | J21: =IF(ISERROR(VLOOKUP(I21,Eje_Pilar!$C$2:$E$47,2,FALSE))," ",VLOOKUP(I21,Eje_Pilar!$C$2:$E$47,2,FALSE)) -> Gobernanza e influencia local, regional e internacional | K21: =IF(ISERROR(VLOOKUP(I21,Eje_Pilar!$C$2:$E$47,3,FALSE))," ",VLOOKUP(I21,Eje_Pilar!$C$2:$E$47,3,FALSE)) -> Eje Transversal 4 Gobierno Legitimo, Fortalecimiento Local y Eficiencia | L21: 1281 | M21: 1072896219 | N21: PAOLA ANDREA GUTIERREZ RIVEROS | O21: 34100000 | R21: 1 | S21: 9403333 | T21: 43503333 | U21: 31103333 | V21: 2019-01-30 | W21: 2019-02-01 | X21: 2019-03-31 | Y21: 330 | Z21: 91 | AE21: X | AF21: 0.7149643684 | AH21: =IF(SUMPRODUCT((A$14:A21=A21)*(B$14:B21=B21)*(C$14:C21=C21))>1,0,1) -> 1
A22: CPS-009-2019 | B22: 2019 | C22: FDLCB-CD-009-2019 | D22: Contratos de prestación de servicios profesionales y de apoyo a la gestión | E22: Contratación directa | F22: Prestación de servicios profesionales y de apoyo a la gestión, o para la ejecución de trabajos artísticos que sólo puedan encomendarse a determinadas personas naturales; | G22: APOYAR LA GESTIÓN TÉCNICA Y ADMINISTRATIVA DE LA CASA DEL CONSUMIDOR DE LA LOCALIDAD DE CIUDAD BOLÍVAR POR MEDIO DE VISITAS, ACOMPAÑAMIENTO, CAPACITACIÓN, SOCIALIZACIÓN, Y SENSIBILIZACIÓN PARA EL CONTROL Y VERIFICACIÓN DE REGLAMENTOS TÉCNICOS Y METROLOGÍA LEGAL | H22: Inversión | I22: 45 | J22: =IF(ISERROR(VLOOKUP(I22,Eje_Pilar!$C$2:$E$47,2,FALSE))," ",VLOOKUP(I22,Eje_Pilar!$C$2:$E$47,2,FALSE)) -> Gobernanza e influencia local, regional e internacional | K22: =IF(ISERROR(VLOOKUP(I22,Eje_Pilar!$C$2:$E$47,3,FALSE))," ",VLOOKUP(I22,Eje_Pilar!$C$2:$E$47,3,FALSE)) -> Eje Transversal 4 Gobierno Legitimo, Fortalecimiento Local y Eficiencia | L22: 1281 | M22: 1103096523 | N22: WILLIAM CAMILO GASTELBONDO MENDEZ | O22: 52800000 | R22: 1 | S22: 13760000 | T22: 66560000 | U22: 47200000 | V22: 2019-02-01 | W22: 2019-02-06 | X22: 2020-03-31 | Y22: 330 | Z22: 86 | AC22: X | AF22: 0.7091346154 | AH22: =IF(SUMPRODUCT((A$14:A22=A22)*(B$14:B22=B22)*(C$14:C22=C22))>1,0,1) -> 1 | AI22: Contratos de prestación de servicios profesionales y de apoyo a la gestión | AJ22: Contratación directa | AK22: =IFERROR(VLOOKUP(F22,Tipo!$C$12:$C$27,1,FALSE),"NO") -> Prestación de servicios profesionales y de apoyo a la gestión, o para la ejecución de trabajos artísticos que sólo puedan encomendarse a determinadas personas naturales; | AL22: Inversión | AM22: 45
A23: CPS-010-2019 | B23: 2019 | C23: FDLCB-PMC-001-2019 | D23: Contratos de prestación de servicios | E23: Selección abreviada | F23: Selección abreviada por menor cuantía | G23: Selacionar una compañia de seguros lagalmente constituida en colombia con el fin de asegurar los bienes muebles e inmuebles de propiedad del Fondo de Desarrollo Local de Ciudad Bolívar- FDLCB y aquellos que estén bajo su responsabilidad y custodia y aquellos que sean adquiridos para desarrollar las funciones inherentes a su actividad así como la expedición de una poliza de vida grupo para amparar a los ediles de la Localidad de Ciudad Bolívar, el seguro obligatorio de accidentes de tránsito - SOAT - para vehículños propiedad del Fondo y cualquier otra poliza de seguros qur requiera la entidad en el desarrollo de su actividad | H23: Funcionamiento | I23: No aplica | J23: =IF(ISERROR(VLOOKUP(I23,Eje_Pilar!$C$2:$E$47,2,FALSE))," ",VLOOKUP(I23,Eje_Pilar!$C$2:$E$47,2,FALSE)) ->  | K23: =IF(ISERROR(VLOOKUP(I23,Eje_Pilar!$C$2:$E$47,3,FALSE))," ",VLOOKUP(I23,Eje_Pilar!$C$2:$E$47,3,FALSE)) ->  | L23: 3-1-2-02-02-02-0001-004 | M23: 8600024002 | N23: LA PREVISORA S.A. COMPAÑÍA DE SEGUROS | O23: 1849315 | T23: 1849315 | U23: 1849315 | V23: 2019-02-01 | W23: 2019-02-01 | X23: 2020-01-31 | Y23: 5 | AC23: X | AF23: 1 | AH23: =IF(SUMPRODUCT((A$14:A23=A23)*(B$14:B23=B23)*(C$14:C23=C23))>1,0,1) -> 1 | AI23: Contratos de prestación de servicios | AJ23: Selección abreviada | AK23: =IFERROR(VLOOKUP(F23,Tipo!$C$12:$C$27,1,FALSE),"NO") -> Selección abreviada por menor cuantía | AL23: Funcionamiento | AM23: NO
A24: CPS-011-2019 | B24: 2019 | C24: FDLCB-CD-010-2019 | D24: Contratos de prestación de servicios profesionales y de apoyo a la gestión | E24: Contratación directa | F24: Prestación de servicios profesionales y de apoyo a la gestión, o para la ejecución de trabajos artísticos que sólo puedan encomendarse a determinadas personas naturales; | G24: PRESTAR LOS SERVICIOS DE APOYO TÉCNICO EN LA GESTIÓN Y EJECUCIÓN DE LAS ACTIVIDADES ADMINISTRATIVAS QUE SE ADELANTAN EN EL DESPACHO DE LA ALCALDÍA LOCAL DE CIUDAD BOLÍVAR. | H24: Inversión | I24: 45 | J24: =IF(ISERROR(VLOOKUP(I24,Eje_Pilar!$C$2:$E$47,2,FALSE))," ",VLOOKUP(I24,Eje_Pilar!$C$2:$E$47,2,FALSE)) -> Gobernanza e influencia local, regional e internacional | K24: =IF(ISERROR(VLOOKUP(I24,Eje_Pilar!$C$2:$E$47,3,FALSE))," ",VLOOKUP(I24,Eje_Pilar!$C$2:$E$47,3,FALSE)) -> Eje Transversal 4 Gobierno Legitimo, Fortalecimiento Local y Eficiencia | L24: 1281 | M24: 1024462155 | N24: MARTHA CAROLINA DIAZ SANTA | O24: 40700000 | R24: 1 | S24: 7400000 | T24: 48100000 | U24: 37000000 | V24: 2019-02-01 | W24: 2019-02-01 | X24: 2020-02-29 | Y24: 330 | Z24: 60 | AC24: X | AF24: 0.7692307692 | AH24: =IF(SUMPRODUCT((A$14:A24=A24)*(B$14:B24=B24)*(C$14:C24=C24))>1,0,1) -> 1 | AI24: Contratos de prestación de servicios profesionales y de apoyo a la gestión | AJ24: Contratación directa | AK24: =IFERROR(VLOOKUP(F24,Tipo!$C$12:$C$27,1,FALSE),"NO") -> Prestación de servicios profesionales y de apoyo a la gestión, o para la ejecución de trabajos artísticos que sólo puedan encomendarse a determinadas personas naturales; | AL24: Inversión | AM24: 45
A25: CPS-012-2019 | B25: 2019 | C25: FDLCB-CD-011-2019 | D25: Contratos de prestación de servicios profesionales y de apoyo a la gestión | E25: Contratación directa | F25: Prestación de servicios profesionales y de apoyo a la gestión, o para la ejecución de trabajos artísticos que sólo puedan encomendarse a determinadas personas naturales; | G25: PRESTACIÓN DE SERVICIOS PROFESIONALES PARA FORMULAR, INFORMAR, VERIFICAR Y REALIZAR SEGUIMIENTO A LAS ACTIVIDADES DE LA OFICINA DE PLANEACIÓN DE LA ALCALDÍA LOCAL DE CIUDAD BOLÍVAR, EN CUMPLIMIENTO AL PLAN DE DESARROLLO LOCAL 2017-2020. | H25: Inversión | I25: 45 | J25: =IF(ISERROR(VLOOKUP(I25,Eje_Pilar!$C$2:$E$47,2,FALSE))," ",VLOOKUP(I25,Eje_Pilar!$C$2:$E$47,2,FALSE)) -> Gobernanza e influencia local, regional e internacional | K25: =IF(ISERROR(VLOOKUP(I25,Eje_Pilar!$C$2:$E$47,3,FALSE))," ",VLOOKUP(I25,Eje_Pilar!$C$2:$E$47,3,FALSE)) -> Eje Transversal 4 Gobierno Legitimo, Fortalecimiento Local y Eficiencia | L25: 1281 | M25: 1026559595 | N25: Esmeralda Vela Quintero | O25: 60500000 | R25: 1 | S25: 15033333 | T25: 75533333 | U25: 53350000 | V25: 2019-02-07 | W25: 2019-02-07 | X25: 2020-03-31 | Y25: 330 | AC25: X | AF25: 0.7063106827 | AH25: =IF(SUMPRODUCT((A$14:A25=A25)*(B$14:B25=B25)*(C$14:C25=C25))>1,0,1) -> 1 | AI25: Contratos de prestación de servicios profesionales y de apoyo a la gestión | AJ25: Contratación directa | AK25: =IFERROR(VLOOKUP(F25,Tipo!$C$12:$C$27,1,FALSE),"NO") -> Prestación de servicios profesionales y de apoyo a la gestión, o para la ejecución de trabajos artísticos que sólo puedan encomendarse a determinadas personas naturales; | AL25: Inversión | AM25: 45
A26: CPS-013-2019 | B26: 2019 | C26: FDLCB-CD-012-2019 | D26: Contratos de prestación de servicios profesionales y de apoyo a la gestión | E26: Contratación directa | F26: Prestación de servicios profesionales y de apoyo a la gestión, o para la ejecución de trabajos artísticos que sólo puedan encomendarse a determinadas personas naturales; | G26: PRESTAR SUS SERVICIOS PROFESIONALES PARA APOYAR LA FORMULACIÓN, GESTIÓN Y SEGUIMIENTO DE ACTIVIDADES ENFOCADAS A LA GESTIÓN AMBIENTAL EXTERNA, ENCAMINADAS A LA MITIGACIÓN DE LOS DIFERENTES IMPACTOS AMBIENTALES Y LA CONSERVACIÓN DE LOS RECURSOS NATURALES DE LA LOCALIDAD DE CIUDAD BOLÍVAR | H26: Inversión | I26: 45 | J26: =IF(ISERROR(VLOOKUP(I26,Eje_Pilar!$C$2:$E$47,2,FALSE))," ",VLOOKUP(I26,Eje_Pilar!$C$2:$E$47,2,FALSE)) -> Gobernanza e influencia local, regional e internacional | K26: =IF(ISERROR(VLOOKUP(I26,Eje_Pilar!$C$2:$E$47,3,FALSE))," ",VLOOKUP(I26,Eje_Pilar!$C$2:$E$47,3,FALSE)) -> Eje Transversal 4 Gobierno Legitimo, Fortalecimiento Local y Eficiencia | L26: 1281 | M26: 1023906482 | N26: YENNY KATHERINE SERNA RAMIREZ | O26: 51700000 | T26: 51700000 | U26: 46530000 | V26: 2019-02-01 | W26: 2019-02-01 | X26: 2020-01-03 | Y26: 330 | AC26: X | AF26: 0.9 | AH26: =IF(SUMPRODUCT((A$14:A26=A26)*(B$14:B26=B26)*(C$14:C26=C26))>1,0,1) -> 1 | AI26: Contratos de prestación de servicios profesionales y de apoyo a la gestión | AJ26: Contratación directa | AK26: =IFERROR(VLOOKUP(F26,Tipo!$C$12:$C$27,1,FALSE),"NO") -> Prestación de servicios profesionales y de apoyo a la gestión, o para la ejecución de trabajos artísticos que sólo puedan encomendarse a determinadas personas naturales; | AL26: Inversión | AM26: 45
A27: CPS-014-2019 | B27: 2019 | C27: FDLCB-CD-013-2019 | D27: Contratos de prestación de servicios profesionales y de apoyo a la gestión | E27: Contratación directa | F27: Prestación de servicios profesionales y de apoyo a la gestión, o para la ejecución de trabajos artísticos que sólo puedan encomendarse a determinadas personas naturales; | G27: APOYAR TÉCNICAMENTE LAS DISTINTAS ETAPAS DE LOS PROCESOS DE COMPETENCIA DE LAS INSPECCIONES DE POLICÍA DE LA LOCALIDAD, SEGÚN REPARTO | H27: Inversión | I27: 45 | J27: =IF(ISERROR(VLOOKUP(I27,Eje_Pilar!$C$2:$E$47,2,FALSE))," ",VLOOKUP(I27,Eje_Pilar!$C$2:$E$47,2,FALSE)) -> Gobernanza e influencia local, regional e internacional | K27: =IF(ISERROR(VLOOKUP(I27,Eje_Pilar!$C$2:$E$47,3,FALSE))," ",VLOOKUP(I27,Eje_Pilar!$C$2:$E$47,3,FALSE)) -> Eje Transversal 4 Gobierno Legitimo, Fortalecimiento Local y Eficiencia | L27: 1281 | M27: 80092929 | N27: CAMILO ANDRES DURAN CEPEDA | O27: 59400000 | T27: 59400000 | U27: 45540000 | V27: 2019-02-01 | W27: 2020-02-06 | X27: 2020-01-25 | Y27: 330 | AC27: X | AF27: 0.7666666667 | AH27: =IF(SUMPRODUCT((A$14:A27=A27)*(B$14:B27=B27)*(C$14:C27=C27))>1,0,1) -> 1 | AI27: Contratos de prestación de servicios profesionales y de apoyo a la gestión | AJ27: Contratación directa | AK27: =IFERROR(VLOOKUP(F27,Tipo!$C$12:$C$27,1,FALSE),"NO") -> Prestación de servicios profesionales y de apoyo a la gestión, o para la ejecución de trabajos artísticos que sólo puedan encomendarse a determinadas personas naturales; | AL27: Inversión | AM27: 45
A28: CPS-015-2019 | B28: 2019 | C28: FDLCB-CD-015-2019 | D28: Contratos de prestación de servicios profesionales y de apoyo a la gestión | E28: Contratación directa | F28: Prestación de servicios profesionales y de apoyo a la gestión, o para la ejecución de trabajos artísticos que sólo puedan encomendarse a determinadas personas naturales; | G28: APOYAR TÉCNICAMENTE LAS DISTINTAS ETAPAS DE LOS PROCESOS DE COMPETENCIA DE LAS INSPECCIONES DE POLICÍA DE LA LOCALIDAD, SEGÚN REPARTO. | H28: Inversión | I28: 45 | J28: =IF(ISERROR(VLOOKUP(I28,Eje_Pilar!$C$2:$E$47,2,FALSE))," ",VLOOKUP(I28,Eje_Pilar!$C$2:$E$47,2,FALSE)) -> Gobernanza e influencia local, regional e internacional | K28: =IF(ISERROR(VLOOKUP(I28,Eje_Pilar!$C$2:$E$47,3,FALSE))," ",VLOOKUP(I28,Eje_Pilar!$C$2:$E$47,3,FALSE)) -> Eje Transversal 4 Gobierno Legitimo, Fortalecimiento Local y Eficiencia | L28: 1281 | M28: 1014176653 | N28: IVAN GERARDO TORRES DIAZ | O28: 59400000 | R28: 1 | S28: 11700000 | T28: 71100000 | U28: 49320000 | V28: 2019-02-01 | W28: 2019-02-27 | X28: 2020-03-31 | Y28: 330 | Z28: 65 | AC28: X | AF28: 0.6936708861 | AH28: =IF(SUMPRODUCT((A$14:A28=A28)*(B$14:B28=B28)*(C$14:C28=C28))>1,0,1) -> 1 | AI28: Contratos de prestación de servicios profesionales y de apoyo a la gestión | AJ28: Contratación directa | AK28: =IFERROR(VLOOKUP(F28,Tipo!$C$12:$C$27,1,FALSE),"NO") -> Prestación de servicios profesionales y de apoyo a la gestión, o para la ejecución de trabajos artísticos que sólo puedan encomendarse a determinadas personas naturales; | AL28: Inversión | AM28: 45
A29: CPS-016-2019 | B29: 2019 | C29: FDLCB-CD-014-2019 | D29: Contratos de prestación de servicios profesionales y de apoyo a la gestión | E29: Contratación directa | F29: Prestación de servicios profesionales y de apoyo a la gestión, o para la ejecución de trabajos artísticos que sólo puedan encomendarse a determinadas personas naturales; | G29: APOYAR TÉCNICAMENTE LAS DISTINTAS ETAPAS DE LOS PROCESOS DE COMPETENCIA DE LAS INSPECCIONES DE POLICÍA DE LA LOCALIDAD, SEGÚN REPARTO | H29: Inversión | I29: 45 | J29: =IF(ISERROR(VLOOKUP(I29,Eje_Pilar!$C$2:$E$47,2,FALSE))," ",VLOOKUP(I29,Eje_Pilar!$C$2:$E$47,2,FALSE)) -> Gobernanza e influencia local, regional e internacional | K29: =IF(ISERROR(VLOOKUP(I29,Eje_Pilar!$C$2:$E$47,3,FALSE))," ",VLOOKUP(I29,Eje_Pilar!$C$2:$E$47,3,FALSE)) -> Eje Transversal 4 Gobierno Legitimo, Fortalecimiento Local y Eficiencia | L29: 1281 | M29: 93412847 | N29: JORGE ALEJANDRO GONZALEZ LOZANO | O29: 59400000 | R29: 1 | S29: 15300000 | T29: 74700000 | U29: 52920000 | V29: 2019-02-01 | W29: 2019-02-07 | X29: 2020-03-31 | Y29: 330 | Z29: 65 | AC29: X | AF29: 0.7084337349 | AH29: =IF(SUMPRODUCT((A$14:A29=A29)*(B$14:B29=B29)*(C$14:C29=C29))>1,0,1) -> 1 | AI29: Contratos de prestación de servicios profesionales y de apoyo a la gestión | AJ29: Contratación directa | AK29: =IFERROR(VLOOKUP(F29,Tipo!$C$12:$C$27,1,FALSE),"NO") -> Prestación de servicios profesionales y de apoyo a la gestión, o para la ejecución de trabajos artísticos que sólo puedan encomendarse a determinadas personas naturales; | AL29: Inversión | AM29: 45
A30: CPS-017-2019 | B30: 2019 | C30: FDLCB-CD-016-2019 | D30: Contratos de prestación de servicios profesionales y de apoyo a la gestión | E30: Contratación directa | F30: Prestación de servicios profesionales y de apoyo a la gestión, o para la ejecución de trabajos artísticos que sólo puedan encomendarse a determinadas personas naturales; | G30: APOYAR TÉCNICAMENTE LAS DISTINTAS ETAPAS DE LOS PROCESOS DE COMPETENCIA DE LAS INSPECCIONES DE POLICÍA DE LA LOCALIDAD, SEGÚN REPARTO. | H30: Inversión | I30: 45 | J30: =IF(ISERROR(VLOOKUP(I30,Eje_Pilar!$C$2:$E$47,2,FALSE))," ",VLOOKUP(I30,Eje_Pilar!$C$2:$E$47,2,FALSE)) -> Gobernanza e influencia local, regional e internacional | K30: =IF(ISERROR(VLOOKUP(I30,Eje_Pilar!$C$2:$E$47,3,FALSE))," ",VLOOKUP(I30,Eje_Pilar!$C$2:$E$47,3,FALSE)) -> Eje Transversal 4 Gobierno Legitimo, Fortalecimiento Local y Eficiencia | L30: 1281 | M30: 79919273 | N30: FABIAN EDUARDO VALBUENA VILLAMARIN | O30: 59400000 | T30: 59400000 | U30: 50940000 | V30: 2019-02-01 | W30: 2019-02-18 | X30: 2020-01-16 | Y30: 330 | AC30: X | AF30: 0.8575757576 | AH30: =IF(SUMPRODUCT((A$14:A30=A30)*(B$14:B30=B30)*(C$14:C30=C30))>1,0,1) -> 1 | AI30: Contratos de prestación de servicios profesionales y de apoyo a la gestión | AJ30: Contratación directa | AK30: =IFERROR(VLOOKUP(F30,Tipo!$C$12:$C$27,1,FALSE),"NO") -> Prestación de servicios profesionales y de apoyo a la gestión, o para la ejecución de trabajos artísticos que sólo puedan encomendarse a determinadas personas naturales; | AL30: Inversión | AM30: 45
A31: CPS-018-2019 | B31: 2019 | C31: FDLCB-CD-017-2019 | D31: Contratos de prestación de servicios profesionales y de apoyo a la gestión | E31: Contratación directa | F31: Prestación de servicios profesionales y de apoyo a la gestión, o para la ejecución de trabajos artísticos que sólo puedan encomendarse a determinadas personas naturales; | G31: APOYAR TÉCNICAMENTE LAS DISTINTAS ETAPAS DE LOS PROCESOS DE COMPETENCIA DE LAS INSPECCIONES DE POLICÍA DE LA LOCALIDAD, SEGÚN REPARTO | H31: Inversión | I31: 45 | J31: =IF(ISERROR(VLOOKUP(I31,Eje_Pilar!$C$2:$E$47,2,FALSE))," ",VLOOKUP(I31,Eje_Pilar!$C$2:$E$47,2,FALSE)) -> Gobernanza e influencia local, regional e internacional | K31: =IF(ISERROR(VLOOKUP(I31,Eje_Pilar!$C$2:$E$47,3,FALSE))," ",VLOOKUP(I31,Eje_Pilar!$C$2:$E$47,3,FALSE)) -> Eje Transversal 4 Gobierno Legitimo, Fortalecimiento Local y Eficiencia | L31: 1281 | M31: 12751210 | N31: MARIO ALBERTO PANTOJA VILLAREAL | O31: 59400000 | R31: 1 | S31: 15480000 | T31: 74880000 | U31: 53100000 | V31: 2019-02-01 | W31: 2019-02-06 | X31: 2020-03-31 | Y31: 330 | Z31: 86 | AC31: X | AF31: 0.7091346154 | AH31: =IF(SUMPRODUCT((A$14:A31=A31)*(B$14:B31=B31)*(C$14:C31=C31))>1,0,1) -> 1 | AI31: Contratos de prestación de servicios profesionales y de apoyo a la gestión | AJ31: Contratación directa | AK31: =IFERROR(VLOOKUP(F31,Tipo!$C$12:$C$27,1,FALSE),"NO") -> Prestación de servicios profesionales y de apoyo a la gestión, o para la ejecución de trabajos artísticos que sólo puedan encomendarse a determinadas personas naturales; | AL31: Inversión | AM31: 45
A32: CPS-019-2019 | B32: 2019 | C32: FDLCB-CD-018-2019 | D32: Contratos de prestación de servicios profesionales y de apoyo a la gestión | E32: Contratación directa | F32: Prestación de servicios profesionales y de apoyo a la gestión, o para la ejecución de trabajos artísticos que sólo puedan encomendarse a determinadas personas naturales; | G32: PRESTAR SUS SERVICIOS PROFESIONALES PARA APOYAR JURÍDICAMENTE LA EJECUCIÓN DE LAS ACCIONES REQUERIDAS PARA LA DEPURACIÓN DE LAS ACTUACIONES ADMINISTRATIVAS QUE CURSAN EN LA ALCALDÍA LOCAL DE CIUDAD BOLÍVAR | H32: Inversión | I32: 45 | J32: =IF(ISERROR(VLOOKUP(I32,Eje_Pilar!$C$2:$E$47,2,FALSE))," ",VLOOKUP(I32,Eje_Pilar!$C$2:$E$47,2,FALSE)) -> Gobernanza e influencia local, regional e internacional | K32: =IF(ISERROR(VLOOKUP(I32,Eje_Pilar!$C$2:$E$47,3,FALSE))," ",VLOOKUP(I32,Eje_Pilar!$C$2:$E$47,3,FALSE)) -> Eje Transversal 4 Gobierno Legitimo, Fortalecimiento Local y Eficiencia | L32: 1281 | M32: 79854144 | N32: ALVARO LEANDRO JIMENEZ TUNJANO | O32: 51700000 | R32: 1 | S32: 12063333 | T32: 63763333 | U32: 44806667 | V32: 2019-02-01 | W32: 2019-02-15 | X32: 2020-01-14 | Y32: 330 | AC32: X | AF32: 0.7027027116 | AH32: =IF(SUMPRODUCT((A$14:A32=A32)*(B$14:B32=B32)*(C$14:C32=C32))>1,0,1) -> 1 | AI32: Contratos de prestación de servicios profesionales y de apoyo a la gestión | AJ32: Contratación directa | AK32: =IFERROR(VLOOKUP(F32,Tipo!$C$12:$C$27,1,FALSE),"NO") -> Prestación de servicios profesionales y de apoyo a la gestión, o para la ejecución de trabajos artísticos que sólo puedan encomendarse a determinadas personas naturales; | AL32: Inversión | AM32: 45
A33: CPS-020-2019 | B33: 2019 | C33: FDLCB-CD-019-2019 | D33: Contratos de prestación de servicios profesionales y de apoyo a la gestión | E33: Contratación directa | F33: Prestación de servicios profesionales y de apoyo a la gestión, o para la ejecución de trabajos artísticos que sólo puedan encomendarse a determinadas personas naturales; | G33: PRESTAR SUS SERVICIOS PROFESIONALES PARA APOYAR JURÍDICAMENTE LA EJECUCIÓN DE LAS ACCIONES REQUERIDAS PARA LA DEPURACIÓN DE LAS ACTUACIONES ADMINISTRATIVAS QUE CURSAN EN LA ALCALDÍA LOCAL DE CIUDAD BOLÍVAR. | H33: Inversión | I33: 45 | J33: =IF(ISERROR(VLOOKUP(I33,Eje_Pilar!$C$2:$E$47,2,FALSE))," ",VLOOKUP(I33,Eje_Pilar!$C$2:$E$47,2,FALSE)) -> Gobernanza e influencia local, regional e internacional | K33: =IF(ISERROR(VLOOKUP(I33,Eje_Pilar!$C$2:$E$47,3,FALSE))," ",VLOOKUP(I33,Eje_Pilar!$C$2:$E$47,3,FALSE)) -> Eje Transversal 4 Gobierno Legitimo, Fortalecimiento Local y Eficiencia | L33: 1281 | M33: 1022400564 | N33: NATALIA PERILLA SUAREZ | O33: 51700000 | R33: 1 | S33: 10183333 | T33: 61883333 | U33: 42926667 | V33: 2019-02-01 | W33: 2019-02-27 | X33: 2020-03-31 | Y33: 330 | Z33: 65 | AC33: X | AF33: 0.6936708952 | AH33: =IF(SUMPRODUCT((A$14:A33=A33)*(B$14:B33=B33)*(C$14:C33=C33))>1,0,1) -> 1 | AI33: Contratos de prestación de servicios profesionales y de apoyo a la gestión | AJ33: Contratación directa | AK33: =IFERROR(VLOOKUP(F33,Tipo!$C$12:$C$27,1,FALSE),"NO") -> Prestación de servicios profesionales y de apoyo a la gestión, o para la ejecución de trabajos artísticos que sólo puedan encomendarse a determinadas personas naturales; | AL33: Inversión | AM33: 45
A34: CPS-021-2019 | B34: 2019 | C34: FDLCB-CD-020-2019 | D34: Contratos de prestación de servicios profesionales y de apoyo a la gestión | E34: Contratación directa | F34: Prestación de servicios profesionales y de apoyo a la gestión, o para la ejecución de trabajos artísticos que sólo puedan encomendarse a determinadas personas naturales; | G34: PRESTAR SUS SERVICIOS PROFESIONALES PARA APOYAR JURÍDICAMENTE LA EJECUCIÓN DE LAS ACCIONES REQUERIDAS PARA LA DEPURACIÓN DE LAS ACTUACIONES ADMINISTRATIVAS QUE CURSAN EN LA ALCALDÍA LOCAL DE CIUDAD BOLÍVAR. | H34: Inversión | I34: 45 | J34: =IF(ISERROR(VLOOKUP(I34,Eje_Pilar!$C$2:$E$47,2,FALSE))," ",VLOOKUP(I34,Eje_Pilar!$C$2:$E$47,2,FALSE)) -> Gobernanza e influencia local, regional e internacional | K34: =IF(ISERROR(VLOOKUP(I34,Eje_Pilar!$C$2:$E$47,3,FALSE))," ",VLOOKUP(I34,Eje_Pilar!$C$2:$E$47,3,FALSE)) -> Eje Transversal 4 Gobierno Legitimo, Fortalecimiento Local y Eficiencia | L34: 1281 | M34: 79048688 | N34: CARLOS ENRIQUE FREYLE MATIZ | O34: 51700000 | T34: 51700000 | U34: 41203333 | V34: 2019-02-01 | W34: 2019-02-04 | X34: 2020-01-03 | Y34: 330 | AD34: X | AF34: 0.7969696905 | AH34: =IF(SUMPRODUCT((A$14:A34=A34)*(B$14:B34=B34)*(C$14:C34=C34))>1,0,1) -> 1 | AI34: Contratos de prestación de servicios profesionales y de apoyo a la gestión | AJ34: Contratación directa | AK34: =IFERROR(VLOOKUP(F34,Tipo!$C$12:$C$27,1,FALSE),"NO") -> Prestación de servicios profesionales y de apoyo a la gestión, o para la ejecución de trabajos artísticos que sólo puedan encomendarse a determinadas personas naturales; | AL34: Inversión | AM34: 45
A35: CPS-022-2019 | B35: 2019 | C35: FDLCB-CD-021-2019 | D35: Contratos de prestación de servicios profesionales y de apoyo a la gestión | E35: Contratación directa | F35: Prestación de servicios profesionales y de apoyo a la gestión, o para la ejecución de trabajos artísticos que sólo puedan encomendarse a determinadas personas naturales; | G35: PRESTAR SUS SERVICIOS PROFESIONALES PARA APOYAR JURÍDICAMENTE LA EJECUCIÓN DE LAS ACCIONES REQUERIDAS PARA LA DEPURACIÓN DE LAS ACTUACIONES ADMINISTRATIVAS QUE CURSAN EN LA ALCALDÍA LOCAL DE CIUDAD BOLÍVAR | H35: Inversión | I35: 45 | J35: =IF(ISERROR(VLOOKUP(I35,Eje_Pilar!$C$2:$E$47,2,FALSE))," ",VLOOKUP(I35,Eje_Pilar!$C$2:$E$47,2,FALSE)) -> Gobernanza e influencia local, regional e internacional | K35: =IF(ISERROR(VLOOKUP(I35,Eje_Pilar!$C$2:$E$47,3,FALSE))," ",VLOOKUP(I35,Eje_Pilar!$C$2:$E$47,3,FALSE)) -> Eje Transversal 4 Gobierno Legitimo, Fortalecimiento Local y Eficiencia | L35: 1281 | M35: 52380598 | N35: ANGELA MARIA ARTUNDUAGA TOVAR | O35: 51700000 | R35: 1 | S35: 13160000 | T35: 64860000 | U35: 45903334 | V35: 2019-02-01 | W35: 2019-02-08 | X35: 2020-03-31 | Y35: 330 | Z35: 84 | AC35: X | AF35: 0.7077294789 | AH35: =IF(SUMPRODUCT((A$14:A35=A35)*(B$14:B35=B35)*(C$14:C35=C35))>1,0,1) -> 1 | AI35: Contratos de prestación de servicios profesionales y de apoyo a la gestión | AJ35: Contratación directa | AK35: =IFERROR(VLOOKUP(F35,Tipo!$C$12:$C$27,1,FALSE),"NO") -> Prestación de servicios profesionales y de apoyo a la gestión, o para la ejecución de trabajos artísticos que sólo puedan encomendarse a determinadas personas naturales; | AL35: Inversión | AM35: 45
A36: CPS-023-2019 | B36: 2019 | C36: FDLCB-CD-022-2019 | D36: Contratos de prestación de servicios profesionales y de apoyo a la gestión | E36: Contratación directa | F36: Prestación de servicios profesionales y de apoyo a la gestión, o para la ejecución de trabajos artísticos que sólo puedan encomendarse a determinadas personas naturales; | G36: PRESTAR SUS SERVICIOS PROFESIONALES PARA APOYAR JURÍDICAMENTE LA EJECUCIÓN DE LAS ACCIONES REQUERIDAS PARA LA DEPURACIÓN DE LAS ACTUACIONES ADMINISTRATIVAS QUE CURSAN EN LA ALCALDÍA LOCAL DE CIUDAD BOLÍVAR | H36: Inversión | I36: 45 | J36: =IF(ISERROR(VLOOKUP(I36,Eje_Pilar!$C$2:$E$47,2,FALSE))," ",VLOOKUP(I36,Eje_Pilar!$C$2:$E$47,2,FALSE)) -> Gobernanza e influencia local, regional e internacional | K36: =IF(ISERROR(VLOOKUP(I36,Eje_Pilar!$C$2:$E$47,3,FALSE))," ",VLOOKUP(I36,Eje_Pilar!$C$2:$E$47,3,FALSE)) -> Eje Transversal 4 Gobierno Legitimo, Fortalecimiento Local y Eficiencia | L36: 1281 | M36: 1032418847 | N36: DIEGO FERNANDO PULIDO CHICA | O36: 51700000 | R36: 1 | S36: 13160000 | T36: =+O36+Q36+S36 -> 64860000 | U36: 45903333 | V36: 2019-02-01 | W36: 2019-02-08 | X36: 2020-03-31 | Y36: 330 | Z36: 84 | AC36: X | AF36: 0.7077294635 | AH36: =IF(SUMPRODUCT((A$14:A36=A36)*(B$14:B36=B36)*(C$14:C36=C36))>1,0,1) -> 1 | AI36: =IFERROR(VLOOKUP(D36,tipo,1,FALSE),"NO") -> Contratos de prestación de servicios profesionales y de apoyo a la gestión | AJ36: =IFERROR(VLOOKUP(E36,modal,1,FALSE),"NO") -> Contratación directa | AK36: =IFERROR(VLOOKUP(F36,Tipo!$C$12:$C$27,1,FALSE),"NO") -> Prestación de servicios profesionales y de apoyo a la gestión, o para la ejecución de trabajos artísticos que sólo puedan encomendarse a determinadas personas naturales; | AL36: =IFERROR(VLOOKUP(H36,afectacion,1,FALSE),"NO") -> Inversión | AM36: =IFERROR(VLOOKUP(I36,programa,1,FALSE),"NO") -> 45
A37: CPS-024-2019 | B37: 2019 | C37: FDLCB-CD-023-2019 | D37: Contratos de prestación de servicios profesionales y de apoyo a la gestión | E37: Contratación directa | F37: Prestación de servicios profesionales y de apoyo a la gestión, o para la ejecución de trabajos artísticos que sólo puedan encomendarse a determinadas personas naturales; | G37: PRESTAR SUS SERVICIOS PROFESIONALES PARA APOYAR JURÍDICAMENTE LA EJECUCIÓN DE LAS ACCIONES REQUERIDAS PARA LA DEPURACIÓN DE LAS ACTUACIONES ADMINISTRATIVAS QUE CURSAN EN LA ALCALDÍA LOCAL DE CIUDAD BOLÍVAR. | H37: Inversión | I37: 45 | J37: =IF(ISERROR(VLOOKUP(I37,Eje_Pilar!$C$2:$E$47,2,FALSE))," ",VLOOKUP(I37,Eje_Pilar!$C$2:$E$47,2,FALSE)) -> Gobernanza e influencia local, regional e internacional | K37: =IF(ISERROR(VLOOKUP(I37,Eje_Pilar!$C$2:$E$47,3,FALSE))," ",VLOOKUP(I37,Eje_Pilar!$C$2:$E$47,3,FALSE)) -> Eje Transversal 4 Gobierno Legitimo, Fortalecimiento Local y Eficiencia | L37: 1281 | M37: 6748783 | N37: RAUL ENRIQUE MARTINEZ SANABRIA | O37: 51700000 | R37: 1 | S37: 12063333 | T37: 63763333 | U37: 44806667 | V37: 2019-02-01 | W37: 2019-02-15 | X37: 2020-03-31 | Y37: 330 | Z37: 77 | AC37: X | AF37: 0.7027027116 | AH37: =IF(SUMPRODUCT((A$14:A37=A37)*(B$14:B37=B37)*(C$14:C37=C37))>1,0,1) -> 1 | AI37: Contratos de prestación de servicios profesionales y de apoyo a la gestión | AJ37: Contratación directa | AK37: =IFERROR(VLOOKUP(F37,Tipo!$C$12:$C$27,1,FALSE),"NO") -> Prestación de servicios profesionales y de apoyo a la gestión, o para la ejecución de trabajos artísticos que sólo puedan encomendarse a determinadas personas naturales; | AL37: Inversión | AM37: 45
A38: CPS-025-2019 | B38: 2019 | C38: FDLCB-CD-024-2019 | D38: Contratos de prestación de servicios profesionales y de apoyo a la gestión | E38: Contratación directa | F38: Prestación de servicios profesionales y de apoyo a la gestión, o para la ejecución de trabajos artísticos que sólo puedan encomendarse a determinadas personas naturales; | G38: PRESTAR SUS SERVICIOS PROFESIONALES PARA APOYAR JURÍDICAMENTE LA EJECUCIÓN DE LAS ACCIONES REQUERIDAS PARA LA DEPURACIÓN DE LAS ACTUACIONES ADMINISTRATIVAS QUE CURSAN EN LA ALCALDÍA LOCAL DE CIUDAD BOLÍVAR. | H38: Inversión | I38: 45 | J38: =IF(ISERROR(VLOOKUP(I38,Eje_Pilar!$C$2:$E$47,2,FALSE))," ",VLOOKUP(I38,Eje_Pilar!$C$2:$E$47,2,FALSE)) -> Gobernanza e influencia local, regional e internacional | K38: =IF(ISERROR(VLOOKUP(I38,Eje_Pilar!$C$2:$E$47,3,FALSE))," ",VLOOKUP(I38,Eje_Pilar!$C$2:$E$47,3,FALSE)) -> Eje Transversal 4 Gobierno Legitimo, Fortalecimiento Local y Eficiencia | L38: 1281 | M38: 1072920306 | N38: MAURICIO CARDONA GARCIA | O38: 51700000 | T38: =+O38+Q38+S38 -> 51700000 | U38: 43866667 | V38: 2019-02-01 | W38: 2019-02-21 | X38: 2020-01-20 | Y38: 330 | AC38: X | AF38: 0.8484848549 | AH38: =IF(SUMPRODUCT((A$14:A38=A38)*(B$14:B38=B38)*(C$14:C38=C38))>1,0,1) -> 1 | AI38: =IFERROR(VLOOKUP(D38,tipo,1,FALSE),"NO") -> Contratos de prestación de servicios profesionales y de apoyo a la gestión | AJ38: =IFERROR(VLOOKUP(E38,modal,1,FALSE),"NO") -> Contratación directa | AK38: =IFERROR(VLOOKUP(F38,Tipo!$C$12:$C$27,1,FALSE),"NO") -> Prestación de servicios profesionales y de apoyo a la gestión, o para la ejecución de trabajos artísticos que sólo puedan encomendarse a determinadas personas naturales; | AL38: =IFERROR(VLOOKUP(H38,afectacion,1,FALSE),"NO") -> Inversión | AM38: =IFERROR(VLOOKUP(I38,programa,1,FALSE),"NO") -> 45
A39: CPS-026-2019 | B39: 2019 | C39: FDLCB-CD-025-2019 | D39: Contratos de prestación de servicios profesionales y de apoyo a la gestión | E39: Contratación directa | F39: Prestación de servicios profesionales y de apoyo a la gestión, o para la ejecución de trabajos artísticos que sólo puedan encomendarse a determinadas personas naturales; | G39: PRESTAR SUS SERVICIOS PROFESIONALES PARA APOYAR JURÍDICAMENTE LA EJECUCIÓN DE LAS ACCIONES REQUERIDAS PARA LA DEPURACIÓN DE LAS ACTUACIONES ADMINISTRATIVAS QUE CURSAN EN LA ALCALDÍA LOCAL DE CIUDAD BOLÍVAR | H39: Inversión | I39: 45 | J39: =IF(ISERROR(VLOOKUP(I39,Eje_Pilar!$C$2:$E$47,2,FALSE))," ",VLOOKUP(I39,Eje_Pilar!$C$2:$E$47,2,FALSE)) -> Gobernanza e influencia local, regional e internacional | K39: =IF(ISERROR(VLOOKUP(I39,Eje_Pilar!$C$2:$E$47,3,FALSE))," ",VLOOKUP(I39,Eje_Pilar!$C$2:$E$47,3,FALSE)) -> Eje Transversal 4 Gobierno Legitimo, Fortalecimiento Local y Eficiencia | L39: 1281 | M39: 52739925 | N39: YANETH MENDIVELSO PEREZ | O39: 51700000 | R39: 1 | S39: 13316667 | T39: 65016667 | U39: 46060000 | V39: 2019-02-01 | W39: 2019-02-07 | X39: 2020-03-31 | Y39: 330 | Z39: 85 | AC39: X | AF39: 0.7084337313 | AH39: =IF(SUMPRODUCT((A$14:A39=A39)*(B$14:B39=B39)*(C$14:C39=C39))>1,0,1) -> 1 | AI39: Contratos de prestación de servicios profesionales y de apoyo a la gestión | AJ39: Contratación directa | AK39: =IFERROR(VLOOKUP(F39,Tipo!$C$12:$C$27,1,FALSE),"NO") -> Prestación de servicios profesionales y de apoyo a la gestión, o para la ejecución de trabajos artísticos que sólo puedan encomendarse a determinadas personas naturales; | AL39: Inversión | AM39: 45
A40: CPS-027-2019 | B40: 2019 | C40: FDLCB-CD-026-2019 | D40: Contratos de prestación de servicios profesionales y de apoyo a la gestión | E40: Contratación directa | F40: Prestación de servicios profesionales y de apoyo a la gestión, o para la ejecución de trabajos artísticos que sólo puedan encomendarse a determinadas personas naturales; | G40: PRESTAR SUS SERVICIOS PROFESIONALES PARA APOYAR JURÍDICAMENTE LA EJECUCIÓN DE LAS ACCIONES REQUERIDAS PARA LA DEPURACIÓN DE LAS ACTUACIONES ADMINISTRATIVAS QUE CURSAN EN LA ALCALDÍA LOCAL DE CIUDAD BOLÍVAR. | H40: Inversión | I40: 45 | J40: =IF(ISERROR(VLOOKUP(I40,Eje_Pilar!$C$2:$E$47,2,FALSE))," ",VLOOKUP(I40,Eje_Pilar!$C$2:$E$47,2,FALSE)) -> Gobernanza e influencia local, regional e internacional | K40: =IF(ISERROR(VLOOKUP(I40,Eje_Pilar!$C$2:$E$47,3,FALSE))," ",VLOOKUP(I40,Eje_Pilar!$C$2:$E$47,3,FALSE)) -> Eje Transversal 4 Gobierno Legitimo, Fortalecimiento Local y Eficiencia | L40: 1281 | M40: 80272454 | N40: CARLOS JAVIER SANTAMARIA OVALLE | O40: 51700000 | T40: 51700000 | U40: 0 | V40: 2019-02-01 | W40: 2019-02-28 | X40: 2019-04-29 | Y40: 330 | AC40: X | AF40: 0 | AH40: =IF(SUMPRODUCT((A$14:A40=A40)*(B$14:B40=B40)*(C$14:C40=C40))>1,0,1) -> 1 | AI40: Contratos de prestación de servicios profesionales y de apoyo a la gestión | AJ40: Contratación directa | AK40: =IFERROR(VLOOKUP(F40,Tipo!$C$12:$C$27,1,FALSE),"NO") -> Prestación de servicios profesionales y de apoyo a la gestión, o para la ejecución de trabajos artísticos que sólo puedan encomendarse a determinadas personas naturales; | AL40: Inversión | AM40: 45
A41: CPS-028-2019 | B41: 2019 | C41: FDLCB-CD-027-2019 | D41: Contratos de prestación de servicios profesionales y de apoyo a la gestión | E41: Contratación directa | F41: Prestación de servicios profesionales y de apoyo a la gestión, o para la ejecución de trabajos artísticos que sólo puedan encomendarse a determinadas personas naturales; | G41: PRESTAR SUS SERVICIOS PROFESIONALES PARA APOYAR JURÍDICAMENTE LA EJECUCIÓN DE LAS ACCIONES REQUERIDAS PARA LA DEPURACIÓN DE LAS ACTUACIONES ADMINISTRATIVAS QUE CURSAN EN LA ALCALDÍA LOCAL DE CIUDAD BOLÍVAR | H41: Inversión | I41: 45 | J41: =IF(ISERROR(VLOOKUP(I41,Eje_Pilar!$C$2:$E$47,2,FALSE))," ",VLOOKUP(I41,Eje_Pilar!$C$2:$E$47,2,FALSE)) -> Gobernanza e influencia local, regional e internacional | K41: =IF(ISERROR(VLOOKUP(I41,Eje_Pilar!$C$2:$E$47,3,FALSE))," ",VLOOKUP(I41,Eje_Pilar!$C$2:$E$47,3,FALSE)) -> Eje Transversal 4 Gobierno Legitimo, Fortalecimiento Local y Eficiencia | L41: 1281 | M41: 80151229 | N41: ALEX JAVIER GUZMAN CUERVO | O41: 51700000 | T41: 51700000 | U41: 43866667 | V41: 2019-02-01 | W41: 2019-02-21 | X41: 2020-01-20 | Y41: 330 | AC41: X | AF41: 0.8484848549 | AH41: =IF(SUMPRODUCT((A$14:A41=A41)*(B$14:B41=B41)*(C$14:C41=C41))>1,0,1) -> 1 | AI41: Contratos de prestación de servicios profesionales y de apoyo a la gestión | AJ41: Contratación directa | AK41: =IFERROR(VLOOKUP(F41,Tipo!$C$12:$C$27,1,FALSE),"NO") -> Prestación de servicios profesionales y de apoyo a la gestión, o para la ejecución de trabajos artísticos que sólo puedan encomendarse a determinadas personas naturales; | AL41: Inversión | AM41: 45
A42: CPS-029-2019 | B42: 2019 | C42: FDLCB-CD-028-2019 | D42: Contratos de prestación de servicios profesionales y de apoyo a la gestión | E42: Contratación directa | F42: Prestación de servicios profesionales y de apoyo a la gestión, o para la ejecución de trabajos artísticos que sólo puedan encomendarse a determinadas personas naturales; | G42: PRESTACIÓN DE SERVICIOS PROFESIONALES COMO APOYO AL ÁREA DE GESTIÓN DE DESARROLLO LOCAL DE CIUDAD BOLÍVAR – PLANEACIÓN, REALIZANDO LAS ACTIVIDADES CONCERNIENTES AL DESARROLLO DE LOS PROYECTOS DE INVERSIÓN DE LA ALCALDÍA LOCAL DE CIUDAD BOLÍVAR, EN CUMPLIMIENTO AL PLAN DE DESARROLLO LOCAL 2017-2020 | H42: Inversión | I42: 45 | J42: =IF(ISERROR(VLOOKUP(I42,Eje_Pilar!$C$2:$E$47,2,FALSE))," ",VLOOKUP(I42,Eje_Pilar!$C$2:$E$47,2,FALSE)) -> Gobernanza e influencia local, regional e internacional | K42: =IF(ISERROR(VLOOKUP(I42,Eje_Pilar!$C$2:$E$47,3,FALSE))," ",VLOOKUP(I42,Eje_Pilar!$C$2:$E$47,3,FALSE)) -> Eje Transversal 4 Gobierno Legitimo, Fortalecimiento Local y Eficiencia | L42: 1281 | M42: 80730063 | N42: JORGE ALEXANDER ESQUIVEL GARCIA | O42: 55000000 | R42: 1 | S42: 13000000 | T42: 68000000 | U42: 47833333 | V42: 2019-02-05 | W42: 2019-02-07 | X42: 2020-03-31 | Y42: 330 | Z42: 78 | AC42: X | AF42: 0.7034313676 | AH42: =IF(SUMPRODUCT((A$14:A42=A42)*(B$14:B42=B42)*(C$14:C42=C42))>1,0,1) -> 1 | AI42: Contratos de prestación de servicios profesionales y de apoyo a la gestión | AJ42: Contratación directa | AK42: =IFERROR(VLOOKUP(F42,Tipo!$C$12:$C$27,1,FALSE),"NO") -> Prestación de servicios profesionales y de apoyo a la gestión, o para la ejecución de trabajos artísticos que sólo puedan encomendarse a determinadas personas naturales; | AL42: Inversión | AM42: 45
A43: CPS-030-2019 | B43: 2019 | C43: FDLCB-CD-029-2019 | D43: Contratos de prestación de servicios profesionales y de apoyo a la gestión | E43: Contratación directa | F43: Prestación de servicios profesionales y de apoyo a la gestión, o para la ejecución de trabajos artísticos que sólo puedan encomendarse a determinadas personas naturales; | G43: PRESTACIÓN DE SERVICIOS PROFESIONALES COMO APOYO AL ÁREA DE GESTIÓN DE DESARROLLO LOCAL DE CIUDAD BOLÍVAR – PLANEACIÓN, REALIZANDO LAS ACTIVIDADES CONCERNIENTES AL DESARROLLO DE LOS PROYECTOS DE INVERSIÓN DE LA ALCALDÍA LOCAL DE CIUDAD BOLÍVAR, EN CUMPLIMIENTO AL PLAN DE DESARROLLO LOCAL 2017-2020 | H43: Inversión | I43: 45 | J43: =IF(ISERROR(VLOOKUP(I43,Eje_Pilar!$C$2:$E$47,2,FALSE))," ",VLOOKUP(I43,Eje_Pilar!$C$2:$E$47,2,FALSE)) -> Gobernanza e influencia local, regional e internacional | K43: =IF(ISERROR(VLOOKUP(I43,Eje_Pilar!$C$2:$E$47,3,FALSE))," ",VLOOKUP(I43,Eje_Pilar!$C$2:$E$47,3,FALSE)) -> Eje Transversal 4 Gobierno Legitimo, Fortalecimiento Local y Eficiencia | L43: 1281 | M43: 79463678 | N43: HERNANDO ERNESTO GONZALEZ ATUESTA | O43: 55000000 | R43: 1 | S43: 14333333 | T43: 69333333 | U43: 49166667 | V43: 2019-02-04 | W43: 2019-02-06 | X43: 2020-03-31 | Y43: 330 | Z43: 76 | AC43: X | AF43: 0.7091346236 | AH43: =IF(SUMPRODUCT((A$14:A43=A43)*(B$14:B43=B43)*(C$14:C43=C43))>1,0,1) -> 1 | AI43: Contratos de prestación de servicios profesionales y de apoyo a la gestión | AJ43: Contratación directa | AK43: =IFERROR(VLOOKUP(F43,Tipo!$C$12:$C$27,1,FALSE),"NO") -> Prestación de servicios profesionales y de apoyo a la gestión, o para la ejecución de trabajos artísticos que sólo puedan encomendarse a determinadas personas naturales; | AL43: Inversión | AM43: 45
A44: CPS-031-2019 | B44: 2019 | C44: FDLCB-CD-030-2019 | D44: Contratos de prestación de servicios profesionales y de apoyo a la gestión | E44: Contratación directa | F44: Prestación de servicios profesionales y de apoyo a la gestión, o para la ejecución de trabajos artísticos que sólo puedan encomendarse a determinadas personas naturales; | G44: PRESTAR LOS SERVICIOS PROFESIONALES PARA REALIZAR EL CONTROL, SEGUIMIENTO, ACTUALIZACIÓN Y ANÁLISIS DEL BANCO DE PROGRAMAS Y PROYECTOS LOCALES CORRESPONDIENTES AL PLAN DE DESARROLLO LOCAL DE CIUDAD BOLÍVAR | H44: Inversión | I44: 45 | J44: =IF(ISERROR(VLOOKUP(I44,Eje_Pilar!$C$2:$E$47,2,FALSE))," ",VLOOKUP(I44,Eje_Pilar!$C$2:$E$47,2,FALSE)) -> Gobernanza e influencia local, regional e internacional | K44: =IF(ISERROR(VLOOKUP(I44,Eje_Pilar!$C$2:$E$47,3,FALSE))," ",VLOOKUP(I44,Eje_Pilar!$C$2:$E$47,3,FALSE)) -> Eje Transversal 4 Gobierno Legitimo, Fortalecimiento Local y Eficiencia | L44: 1281 | M44: 52071772 | N44: MARIELA JIMENEZ OVALLE | O44: 66000000 | R44: 1 | S44: 17200000 | T44: 83200000 | U44: 59000000 | V44: 2019-02-04 | W44: 2019-02-06 | X44: 2020-03-31 | Y44: 330 | Z44: 76 | AC44: X | AF44: 0.7091346154 | AH44: =IF(SUMPRODUCT((A$14:A44=A44)*(B$14:B44=B44)*(C$14:C44=C44))>1,0,1) -> 1 | AI44: Contratos de prestación de servicios profesionales y de apoyo a la gestión | AJ44: Contratación directa | AK44: =IFERROR(VLOOKUP(F44,Tipo!$C$12:$C$27,1,FALSE),"NO") -> Prestación de servicios profesionales y de apoyo a la gestión, o para la ejecución de trabajos artísticos que sólo puedan encomendarse a determinadas personas naturales; | AL44: Inversión | AM44: 45
A45: CPS-032-2019 | B45: 2019 | C45: FDLCB-CD-031-2019 | D45: Contratos de prestación de servicios profesionales y de apoyo a la gestión | E45: Contratación directa | F45: Prestación de servicios profesionales y de apoyo a la gestión, o para la ejecución de trabajos artísticos que sólo puedan encomendarse a determinadas personas naturales; | G45: PRESTAR SUS SERVICIOS DE APOYO ASISTENCIAL EN ACTIVIDADES DE GESTIÓN DOCUMENTAL EN LA ALCALDÍA LOCAL DE CIUDAD BOLÍVAR | H45: Inversión | I45: 45 | J45: =IF(ISERROR(VLOOKUP(I45,Eje_Pilar!$C$2:$E$47,2,FALSE))," ",VLOOKUP(I45,Eje_Pilar!$C$2:$E$47,2,FALSE)) -> Gobernanza e influencia local, regional e internacional | K45: =IF(ISERROR(VLOOKUP(I45,Eje_Pilar!$C$2:$E$47,3,FALSE))," ",VLOOKUP(I45,Eje_Pilar!$C$2:$E$47,3,FALSE)) -> Eje Transversal 4 Gobierno Legitimo, Fortalecimiento Local y Eficiencia | L45: 1281 | M45: 52457037 | N45: CLAUDIA MARIA OVALLE BUITRAGO | O45: 25300000 | T45: 25300000 | U45: 22616667 | V45: 2019-02-04 | W45: 2019-02-06 | X45: 2020-01-05 | Y45: 330 | AD45: X | AF45: 0.8939394071 | AH45: =IF(SUMPRODUCT((A$14:A45=A45)*(B$14:B45=B45)*(C$14:C45=C45))>1,0,1) -> 1 | AI45: Contratos de prestación de servicios profesionales y de apoyo a la gestión | AJ45: Contratación directa | AK45: =IFERROR(VLOOKUP(F45,Tipo!$C$12:$C$27,1,FALSE),"NO") -> Prestación de servicios profesionales y de apoyo a la gestión, o para la ejecución de trabajos artísticos que sólo puedan encomendarse a determinadas personas naturales; | AL45: Inversión | AM45: 45
A46: CPS-033-2019 | B46: 2019 | C46: FDLCB-CD-032-2019 | D46: Contratos de prestación de servicios profesionales y de apoyo a la gestión | E46: Contratación directa | F46: Prestación de servicios profesionales y de apoyo a la gestión, o para la ejecución de trabajos artísticos que sólo puedan encomendarse a determinadas personas naturales; | G46: PRESTAR SUS SERVICIOS DE APOYO ASISTENCIAL EN ACTIVIDADES DE GESTIÓN DOCUMENTAL EN LA ALCALDÍA LOCAL DE CIUDAD BOLÍVAR | H46: Inversión | I46: 45 | J46: =IF(ISERROR(VLOOKUP(I46,Eje_Pilar!$C$2:$E$47,2,FALSE))," ",VLOOKUP(I46,Eje_Pilar!$C$2:$E$47,2,FALSE)) -> Gobernanza e influencia local, regional e internacional | K46: =IF(ISERROR(VLOOKUP(I46,Eje_Pilar!$C$2:$E$47,3,FALSE))," ",VLOOKUP(I46,Eje_Pilar!$C$2:$E$47,3,FALSE)) -> Eje Transversal 4 Gobierno Legitimo, Fortalecimiento Local y Eficiencia | L46: 1281 | M46: 1024470589 | N46: ANGELA TATIANA SERRATO PALACIOS | O46: 25300000 | R46: 1 | S46: 5826667 | T46: 31126667 | U46: 21850000 | V46: 2019-02-05 | W46: 2019-02-06 | X46: 2020-03-31 | Y46: 330 | Z46: 76 | AC46: X | AF46: 0.7019704358 | AH46: =IF(SUMPRODUCT((A$14:A46=A46)*(B$14:B46=B46)*(C$14:C46=C46))>1,0,1) -> 1 | AI46: =IFERROR(VLOOKUP(D46,tipo,1,FALSE),"NO") -> Contratos de prestación de servicios profesionales y de apoyo a la gestión | AJ46: =IFERROR(VLOOKUP(E46,modal,1,FALSE),"NO") -> Contratación directa | AK46: =IFERROR(VLOOKUP(F46,Tipo!$C$12:$C$27,1,FALSE),"NO") -> Prestación de servicios profesionales y de apoyo a la gestión, o para la ejecución de trabajos artísticos que sólo puedan encomendarse a determinadas personas naturales; | AL46: =IFERROR(VLOOKUP(H46,afectacion,1,FALSE),"NO") -> Inversión | AM46: =IFERROR(VLOOKUP(I46,programa,1,FALSE),"NO") -> 45
A47: CPS-034-2019 | B47: 2019 | C47: FDLCB-CD-033-2019 | D47: Contratos de prestación de servicios profesionales y de apoyo a la gestión | E47: Contratación directa | F47: Prestación de servicios profesionales y de apoyo a la gestión, o para la ejecución de trabajos artísticos que sólo puedan encomendarse a determinadas personas naturales; | G47: APOYAR TÉCNICAMENTE LAS DISTINTAS ETAPAS DE LOS PROCESOS DE COMPETENCIA DE LAS INSPECCIONES DE POLICÍA DE LA LOCALIDAD, SEGÚN REPARTO | H47: Inversión | I47: 45 | J47: =IF(ISERROR(VLOOKUP(I47,Eje_Pilar!$C$2:$E$47,2,FALSE))," ",VLOOKUP(I47,Eje_Pilar!$C$2:$E$47,2,FALSE)) -> Gobernanza e influencia local, regional e internacional | K47: =IF(ISERROR(VLOOKUP(I47,Eje_Pilar!$C$2:$E$47,3,FALSE))," ",VLOOKUP(I47,Eje_Pilar!$C$2:$E$47,3,FALSE)) -> Eje Transversal 4 Gobierno Legitimo, Fortalecimiento Local y Eficiencia | L47: 1281 | M47: 52838318 | N47: DIANA JOHANA ALFONSO HERNANDEZ | O47: 59400000 | T47: =+O47+Q47+S47 -> 59400000 | U47: 50940000 | V47: 2019-02-01 | W47: 2019-02-18 | X47: 2020-01-17 | Y47: 330 | AC47: X | AF47: 0.8575757576 | AH47: =IF(SUMPRODUCT((A$14:A47=A47)*(B$14:B47=B47)*(C$14:C47=C47))>1,0,1) -> 1 | AI47: Contratos de prestación de servicios profesionales y de apoyo a la gestión | AJ47: Contratación directa | AK47: =IFERROR(VLOOKUP(F47,Tipo!$C$12:$C$27,1,FALSE),"NO") -> Prestación de servicios profesionales y de apoyo a la gestión, o para la ejecución de trabajos artísticos que sólo puedan encomendarse a determinadas personas naturales; | AL47: Inversión | AM47: 45
A48: CPS-035-2019 | B48: 2019 | C48: FDLCB-034-2019 | D48: Contratos de prestación de servicios profesionales y de apoyo a la gestión | E48: Contratación directa | F48: Prestación de servicios profesionales y de apoyo a la gestión, o para la ejecución de trabajos artísticos que sólo puedan encomendarse a determinadas personas naturales; | G48: APOYAR AL ALCALDE LOCAL EN LA PROMOCIÓN, ACOMPAÑAMIENTO, COORDINACIÓN Y ATENCIÓN DE LAS INSTANCIAS DE COORDINACIÓN INTERINSTITUCIONALES Y LAS INSTANCIAS DE PARTICIPACIÓN LOCALES, ASÍ COMO LOS PROCESOS COMUNITARIOS EN LA LOCALIDAD. | H48: Inversión | I48: 45 | J48: =IF(ISERROR(VLOOKUP(I48,Eje_Pilar!$C$2:$E$47,2,FALSE))," ",VLOOKUP(I48,Eje_Pilar!$C$2:$E$47,2,FALSE)) -> Gobernanza e influencia local, regional e internacional | K48: =IF(ISERROR(VLOOKUP(I48,Eje_Pilar!$C$2:$E$47,3,FALSE))," ",VLOOKUP(I48,Eje_Pilar!$C$2:$E$47,3,FALSE)) -> Eje Transversal 4 Gobierno Legitimo, Fortalecimiento Local y Eficiencia | L48: 1281 | M48: 1032367445 | N48: MIGUEL ANTONIO MORENO ANGULO | O48: 52800000 | R48: 1 | S48: 13760000 | T48: 66560000 | U48: 47200000 | V48: 2019-02-08 | W48: 2019-02-08 | X48: 2020-01-07 | Y48: 330 | Z48: 86 | AD48: X | AF48: 0.7091346154 | AH48: =IF(SUMPRODUCT((A$14:A48=A48)*(B$14:B48=B48)*(C$14:C48=C48))>1,0,1) -> 1 | AI48: Contratos de prestación de servicios profesionales y de apoyo a la gestión | AJ48: Contratación directa | AK48: =IFERROR(VLOOKUP(F48,Tipo!$C$12:$C$27,1,FALSE),"NO") -> Prestación de servicios profesionales y de apoyo a la gestión, o para la ejecución de trabajos artísticos que sólo puedan encomendarse a determinadas personas naturales; | AL48: Inversión | AM48: 45
A49: CPS-036-2019 | B49: 2019 | C49: FDLCB-CD-035-2019 | D49: Contratos de prestación de servicios profesionales y de apoyo a la gestión | E49: Contratación directa | F49: Prestación de servicios profesionales y de apoyo a la gestión, o para la ejecución de trabajos artísticos que sólo puedan encomendarse a determinadas personas naturales; | G49: APOYAR AL ALCALDE LOCAL EN LA PROMOCIÓN, ACOMPAÑAMIENTO, COORDINACIÓN Y ATENCIÓN DE LAS INSTANCIAS DE COORDINACIÓN INTERINSTITUCIONALES Y LAS INSTANCIAS DE PARTICIPACIÓN LOCALES, ASÍ COMO LOS PROCESOS COMUNITARIOS EN LA LOCALIDAD. | H49: Inversión | I49: 45 | J49: =IF(ISERROR(VLOOKUP(I49,Eje_Pilar!$C$2:$E$47,2,FALSE))," ",VLOOKUP(I49,Eje_Pilar!$C$2:$E$47,2,FALSE)) -> Gobernanza e influencia local, regional e internacional | K49: =IF(ISERROR(VLOOKUP(I49,Eje_Pilar!$C$2:$E$47,3,FALSE))," ",VLOOKUP(I49,Eje_Pilar!$C$2:$E$47,3,FALSE)) -> Eje Transversal 4 Gobierno Legitimo, Fortalecimiento Local y Eficiencia | L49: 1281 | M49: 53116983 | N49: JEIMY TATIANA ESCOBAR ESPINOSA | O49: 52800000 | T49: 52800000 | U49: 47200000 | V49: 2019-02-07 | W49: 2019-02-06 | X49: 2020-01-05 | Y49: 330 | AD49: X | AF49: 0.8939393939 | AH49: =IF(SUMPRODUCT((A$14:A49=A49)*(B$14:B49=B49)*(C$14:C49=C49))>1,0,1) -> 1 | AI49: Contratos de prestación de servicios profesionales y de apoyo a la gestión | AJ49: Contratación directa | AK49: =IFERROR(VLOOKUP(F49,Tipo!$C$12:$C$27,1,FALSE),"NO") -> Prestación de servicios profesionales y de apoyo a la gestión, o para la ejecución de trabajos artísticos que sólo puedan encomendarse a determinadas personas naturales; | AL49: Inversión | AM49: 45
A50: CPS-037-2019 | B50: 2019 | C50: FDLCB-CD-036-2019 | D50: Contratos de prestación de servicios profesionales y de apoyo a la gestión | E50: Contratación directa | F50: Prestación de servicios profesionales y de apoyo a la gestión, o para la ejecución de trabajos artísticos que sólo puedan encomendarse a determinadas personas naturales; | G50: APOYAR AL EQUIPO DE PRENSA Y COMUNICACIONES DE LA ALCALDÍA LOCAL EN LA CREACIÓN, REALIZACIÓN Y PRODUCCIÓN DE VÍDEOS QUE TRANSMITAN UN MENSAJE EN LA COMUNICACIÓN INTERNA Y EXTERNA | H50: Inversión | I50: 45 | J50: =IF(ISERROR(VLOOKUP(I50,Eje_Pilar!$C$2:$E$47,2,FALSE))," ",VLOOKUP(I50,Eje_Pilar!$C$2:$E$47,2,FALSE)) -> Gobernanza e influencia local, regional e internacional | K50: =IF(ISERROR(VLOOKUP(I50,Eje_Pilar!$C$2:$E$47,3,FALSE))," ",VLOOKUP(I50,Eje_Pilar!$C$2:$E$47,3,FALSE)) -> Eje Transversal 4 Gobierno Legitimo, Fortalecimiento Local y Eficiencia | L50: 1281 | M50: 80762395 | N50: DANNY IBAÑEZ CARDENAS | O50: 51700000 | R50: 1 | S50: 13316667 | T50: 65016667 | U50: 46060000 | V50: 2019-02-07 | W50: 2019-02-07 | X50: 2020-03-31 | Y50: 330 | Z50: 85 | AC50: X | AF50: 0.7084337313 | AH50: =IF(SUMPRODUCT((A$14:A50=A50)*(B$14:B50=B50)*(C$14:C50=C50))>1,0,1) -> 1 | AI50: Contratos de prestación de servicios profesionales y de apoyo a la gestión | AJ50: Contratación directa | AK50: =IFERROR(VLOOKUP(F50,Tipo!$C$12:$C$27,1,FALSE),"NO") -> Prestación de servicios profesionales y de apoyo a la gestión, o para la ejecución de trabajos artísticos que sólo puedan encomendarse a determinadas personas naturales; | AL50: Inversión | AM50: 45
A51: CPS-038-2019 | B51: 2019 | C51: FDLCB-CD-037-2019 | D51: Contratos de prestación de servicios profesionales y de apoyo a la gestión | E51: Contratación directa | F51: Prestación de servicios profesionales y de apoyo a la gestión, o para la ejecución de trabajos artísticos que sólo puedan encomendarse a determinadas personas naturales; | G51: PRESTAR LOS SERVICIOS DE APOYO PARA REALIZAR ACTIVIDADES ASISTENCIALES EN LAS DIFERENTES DEPENDENCIAS DE LA ALCALDÍA LOCAL DE CIUDAD BOLÍVAR. | H51: Inversión | I51: 45 | J51: =IF(ISERROR(VLOOKUP(I51,Eje_Pilar!$C$2:$E$47,2,FALSE))," ",VLOOKUP(I51,Eje_Pilar!$C$2:$E$47,2,FALSE)) -> Gobernanza e influencia local, regional e internacional | K51: =IF(ISERROR(VLOOKUP(I51,Eje_Pilar!$C$2:$E$47,3,FALSE))," ",VLOOKUP(I51,Eje_Pilar!$C$2:$E$47,3,FALSE)) -> Eje Transversal 4 Gobierno Legitimo, Fortalecimiento Local y Eficiencia | L51: 1281 | M51: 1022382549 | N51: JULIETH ALEXANDRA BULLA MELO | O51: 26400000 | R51: 1 | S51: 6880000 | T51: 33280000 | U51: 23600000 | V51: 2019-02-04 | W51: 2019-02-06 | X51: 2020-01-05 | Y51: 330 | Z51: 86 | AD51: X | AF51: 0.7091346154 | AH51: =IF(SUMPRODUCT((A$14:A51=A51)*(B$14:B51=B51)*(C$14:C51=C51))>1,0,1) -> 1 | AI51: Contratos de prestación de servicios profesionales y de apoyo a la gestión | AJ51: Contratación directa | AK51: =IFERROR(VLOOKUP(F51,Tipo!$C$12:$C$27,1,FALSE),"NO") -> Prestación de servicios profesionales y de apoyo a la gestión, o para la ejecución de trabajos artísticos que sólo puedan encomendarse a determinadas personas naturales; | AL51: Inversión | AM51: 45
A52: CPS-039-2019 | B52: 2019 | C52: FDLCB-CD-038-2019 | D52: Contratos de prestación de servicios profesionales y de apoyo a la gestión | E52: Contratación directa | F52: Prestación de servicios profesionales y de apoyo a la gestión, o para la ejecución de trabajos artísticos que sólo puedan encomendarse a determinadas personas naturales; | G52: “EL CONTRATISTA SE OBLIGA PARA CON EL FONDO DE DESARROLLO LOCAL DE CIUDAD BOLÍVAR A PRESTAR SUS SERVICIOS PROFESIONALES PARA REALIZAR TODAS LAS ACTIVIDADES CONCERNIENTES AL DESARROLLO DE LOS PROYECTOS DE INFRAESTRUCTURA EN LOS COMPONENTES QUE LE SEAN DESIGNADOS EN EL MARCO DEL PLAN DE DESARROLLO LOCAL 2017-2020.” | H52: Inversión | I52: 45 | J52: =IF(ISERROR(VLOOKUP(I52,Eje_Pilar!$C$2:$E$47,2,FALSE))," ",VLOOKUP(I52,Eje_Pilar!$C$2:$E$47,2,FALSE)) -> Gobernanza e influencia local, regional e internacional | K52: =IF(ISERROR(VLOOKUP(I52,Eje_Pilar!$C$2:$E$47,3,FALSE))," ",VLOOKUP(I52,Eje_Pilar!$C$2:$E$47,3,FALSE)) -> Eje Transversal 4 Gobierno Legitimo, Fortalecimiento Local y Eficiencia | L52: 1281 | M52: 1020750491 | N52: JUAN PABLO MOJICA FRIEDE | O52: 56100000 | T52: 56100000 | U52: 50150000 | V52: 2019-02-04 | W52: 2019-02-04 | X52: 2020-01-03 | Y52: 330 | AD52: X | AF52: 0.8939393939 | AH52: =IF(SUMPRODUCT((A$14:A52=A52)*(B$14:B52=B52)*(C$14:C52=C52))>1,0,1) -> 1 | AI52: Contratos de prestación de servicios profesionales y de apoyo a la gestión | AJ52: Contratación directa | AK52: =IFERROR(VLOOKUP(F52,Tipo!$C$12:$C$27,1,FALSE),"NO") -> Prestación de servicios profesionales y de apoyo a la gestión, o para la ejecución de trabajos artísticos que sólo puedan encomendarse a determinadas personas naturales; | AL52: Inversión | AM52: 45
A53: CPS-040-2019 | B53: 2019 | C53: FDLCB-CD-039-2019 | D53: Contratos de prestación de servicios profesionales y de apoyo a la gestión | E53: Contratación directa | F53: Prestación de servicios profesionales y de apoyo a la gestión, o para la ejecución de trabajos artísticos que sólo puedan encomendarse a determinadas personas naturales; | G53: PRESTAR SUS SERVICIOS COMO CONDUCTOR DEL VEHÍCULO LIVIANO DESIGNADO PARA LAS ACTIVIDADES PROPIAS DEL DESPACHO DEL FONDO DE DESARROLLO LOCAL DE CIUDAD BOLÍVAR. | H53: Inversión | I53: 45 | J53: =IF(ISERROR(VLOOKUP(I53,Eje_Pilar!$C$2:$E$47,2,FALSE))," ",VLOOKUP(I53,Eje_Pilar!$C$2:$E$47,2,FALSE)) -> Gobernanza e influencia local, regional e internacional | K53: =IF(ISERROR(VLOOKUP(I53,Eje_Pilar!$C$2:$E$47,3,FALSE))," ",VLOOKUP(I53,Eje_Pilar!$C$2:$E$47,3,FALSE)) -> Eje Transversal 4 Gobierno Legitimo, Fortalecimiento Local y Eficiencia | L53: 1281 | M53: 80047346 | N53: CARLOS ANDRES SANCHEZ RUIZ | O53: 33000000 | R53: 1 | S53: 8600000 | T53: 41600000 | U53: 29500000 | V53: 2019-02-05 | W53: 2019-02-06 | X53: 2020-01-04 | Y53: 330 | Z53: 86 | AD53: X | AF53: 0.7091346154 | AH53: =IF(SUMPRODUCT((A$14:A53=A53)*(B$14:B53=B53)*(C$14:C53=C53))>1,0,1) -> 1 | AI53: Contratos de prestación de servicios profesionales y de apoyo a la gestión | AJ53: Contratación directa | AK53: =IFERROR(VLOOKUP(F53,Tipo!$C$12:$C$27,1,FALSE),"NO") -> Prestación de servicios profesionales y de apoyo a la gestión, o para la ejecución de trabajos artísticos que sólo puedan encomendarse a determinadas personas naturales; | AL53: Inversión | AM53: 45
A54: CPS-041-2019 | B54: 2019 | C54: FDLCB-CD-040-2019 | D54: Contratos de prestación de servicios profesionales y de apoyo a la gestión | E54: Contratación directa | F54: Prestación de servicios profesionales y de apoyo a la gestión, o para la ejecución de trabajos artísticos que sólo puedan encomendarse a determinadas personas naturales; | G54: EL CONTRATISTA SE OBLIGA PARA CON EL FONDO DE DESARROLLO LOCAL DE CIUDAD BOLÍVAR A PRESTAR SUS SERVICIOS PROFESIONALES PARA REALIZAR TODAS LAS ACTIVIDADES CONCERNIENTES AL DESARROLLO DE LOS PROYECTOS DE INFRAESTRUCTURA EN LOS COMPONENTES QUE LE SEAN DESIGNADOS EN EL MARCO DEL PLAN DE DESARROLLO LOCAL 2017-2020. | H54: Inversión | I54: 45 | J54: =IF(ISERROR(VLOOKUP(I54,Eje_Pilar!$C$2:$E$47,2,FALSE))," ",VLOOKUP(I54,Eje_Pilar!$C$2:$E$47,2,FALSE)) -> Gobernanza e influencia local, regional e internacional | K54: =IF(ISERROR(VLOOKUP(I54,Eje_Pilar!$C$2:$E$47,3,FALSE))," ",VLOOKUP(I54,Eje_Pilar!$C$2:$E$47,3,FALSE)) -> Eje Transversal 4 Gobierno Legitimo, Fortalecimiento Local y Eficiencia | L54: 1281 | M54: 80126283 | N54: WALTER DONADO SANTAMARIA | O54: 56100000 | R54: 1 | S54: 14620000 | T54: 70720000 | U54: 50150000 | V54: 2019-02-05 | W54: 2019-02-06 | X54: 2020-03-31 | Y54: 330 | Z54: 86 | AC54: X | AF54: 0.7091346154 | AH54: =IF(SUMPRODUCT((A$14:A54=A54)*(B$14:B54=B54)*(C$14:C54=C54))>1,0,1) -> 1 | AI54: Contratos de prestación de servicios profesionales y de apoyo a la gestión | AJ54: Contratación directa | AK54: =IFERROR(VLOOKUP(F54,Tipo!$C$12:$C$27,1,FALSE),"NO") -> Prestación de servicios profesionales y de apoyo a la gestión, o para la ejecución de trabajos artísticos que sólo puedan encomendarse a determinadas personas naturales; | AL54: Inversión | AM54: 45
A55: CPS-042-2019 | B55: 2019 | C55: FDLCB-CD-041-2019 | D55: Contratos de prestación de servicios profesionales y de apoyo a la gestión | E55: Contratación directa | F55: Prestación de servicios profesionales y de apoyo a la gestión, o para la ejecución de trabajos artísticos que sólo puedan encomendarse a determinadas personas naturales; | G55: PRESTAR SUS SERVICIOS PROFESIONALES EN LA EJECUCIÓN DE ACTIVIDADES ADMINISTRATIVAS RELACIONADAS CON LOS PROCESOS CONTRACTUALES EN LA OFICINA DE CONTRATACIÓN DEL ÁREA DE GESTIÓN DE DESARROLLO LOCAL DE CIUDAD BOLÍVAR EN CUMPLIMIENTO DEL PLAN DE DESARROLLO LOCAL 2017-2020. | H55: Inversión | I55: 45 | J55: =IF(ISERROR(VLOOKUP(I55,Eje_Pilar!$C$2:$E$47,2,FALSE))," ",VLOOKUP(I55,Eje_Pilar!$C$2:$E$47,2,FALSE)) -> Gobernanza e influencia local, regional e internacional | K55: =IF(ISERROR(VLOOKUP(I55,Eje_Pilar!$C$2:$E$47,3,FALSE))," ",VLOOKUP(I55,Eje_Pilar!$C$2:$E$47,3,FALSE)) -> Eje Transversal 4 Gobierno Legitimo, Fortalecimiento Local y Eficiencia | L55: 1281 | M55: 80798186 | N55: OSCAR MAURICIO GIL | O55: 51700000 | R55: 1 | S55: 13473333 | T55: 65173333 | U55: 46216667 | V55: 2019-02-05 | W55: 2019-02-06 | X55: 2020-03-31 | Y55: 330 | Z55: 86 | AC55: X | AF55: 0.7091346241 | AH55: =IF(SUMPRODUCT((A$14:A55=A55)*(B$14:B55=B55)*(C$14:C55=C55))>1,0,1) -> 1 | AI55: Contratos de prestación de servicios profesionales y de apoyo a la gestión | AJ55: Contratación directa | AK55: =IFERROR(VLOOKUP(F55,Tipo!$C$12:$C$27,1,FALSE),"NO") -> Prestación de servicios profesionales y de apoyo a la gestión, o para la ejecución de trabajos artísticos que sólo puedan encomendarse a determinadas personas naturales; | AL55: Inversión | AM55: 45
A56: CPS-043-2019 | B56: 2019 | C56: FDLCB-CD-042-2019 | D56: Contratos de prestación de servicios profesionales y de apoyo a la gestión | E56: Contratación directa | F56: Prestación de servicios profesionales y de apoyo a la gestión, o para la ejecución de trabajos artísticos que sólo puedan encomendarse a determinadas personas naturales; | G56: LIDERAR Y GARANTIZAR LA IMPLEMENTACIÓN Y SEGUIMIENTO DE LOS PROCESOS Y PROCEDIMIENTOS DEL SERVICIO SOCIAL | H56: Inversión | I56: 3 | J56: =IF(ISERROR(VLOOKUP(I56,Eje_Pilar!$C$2:$E$47,2,FALSE))," ",VLOOKUP(I56,Eje_Pilar!$C$2:$E$47,2,FALSE)) -> Igualdad y autonomía para una Bogotá incluyente | K56: =IF(ISERROR(VLOOKUP(I56,Eje_Pilar!$C$2:$E$47,3,FALSE))," ",VLOOKUP(I56,Eje_Pilar!$C$2:$E$47,3,FALSE)) -> Pilar 1 Igualdad de Calidad de Vida | L56: 1399 | M56: 52821254 | N56: DEYSI LILIANA GARZON ROJAS | O56: 60500000 | R56: 1 | S56: 3483333 | T56: 63983333 | U56: 53900000 | V56: 2019-02-05 | W56: 2019-02-05 | X56: 2020-01-24 | Y56: 330 | Z56: 19 | AC56: X | AF56: 0.8424068812 | AH56: =IF(SUMPRODUCT((A$14:A56=A56)*(B$14:B56=B56)*(C$14:C56=C56))>1,0,1) -> 1 | AI56: Contratos de prestación de servicios profesionales y de apoyo a la gestión | AJ56: Contratación directa | AK56: =IFERROR(VLOOKUP(F56,Tipo!$C$12:$C$27,1,FALSE),"NO") -> Prestación de servicios profesionales y de apoyo a la gestión, o para la ejecución de trabajos artísticos que sólo puedan encomendarse a determinadas personas naturales; | AL56: Inversión | AM56: 3
A57: CPS-044-2019 | B57: 2019 | C57: FDLCB-CD-043-2019 | D57: Contratos de prestación de servicios profesionales y de apoyo a la gestión | E57: Contratación directa | F57: Prestación de servicios profesionales y de apoyo a la gestión, o para la ejecución de trabajos artísticos que sólo puedan encomendarse a determinadas personas naturales; | G57: PRESTAR SERVICIOS PROFESIONALES ESPECIALIZADOS EN EL DESPACHO DE LA ALCALDÍA LOCAL DE CIUDAD BOLÍVAR, PARA ADELANTAR TRÁMITES, PROCEDIMIENTOS Y LINEAMIENTOS EN MATERIA ADMINISTRATIVA Y JURÍDICA QUE PERMITAN GARANTIZAR EL CUMPLIMIENTO DE LAS METAS ESTABLECIDAS EN EL PLAN DE DESARROLLO LOCAL 2017-2020. | H57: Inversión | I57: 45 | J57: =IF(ISERROR(VLOOKUP(I57,Eje_Pilar!$C$2:$E$47,2,FALSE))," ",VLOOKUP(I57,Eje_Pilar!$C$2:$E$47,2,FALSE)) -> Gobernanza e influencia local, regional e internacional | K57: =IF(ISERROR(VLOOKUP(I57,Eje_Pilar!$C$2:$E$47,3,FALSE))," ",VLOOKUP(I57,Eje_Pilar!$C$2:$E$47,3,FALSE)) -> Eje Transversal 4 Gobierno Legitimo, Fortalecimiento Local y Eficiencia | L57: 1281 | M57: 79720987 | N57: ITALO EMILIANO GALLO ORTIZ | O57: 81400000 | R57: 1 | S57: 20966667 | T57: 102366667 | U57: 72520000 | V57: 2019-02-07 | W57: 2019-02-07 | X57: 2020-03-31 | Y57: 330 | Z57: 85 | AC57: X | AF57: 0.7084337326 | AH57: =IF(SUMPRODUCT((A$14:A57=A57)*(B$14:B57=B57)*(C$14:C57=C57))>1,0,1) -> 1 | AI57: Contratos de prestación de servicios profesionales y de apoyo a la gestión | AJ57: Contratación directa | AK57: =IFERROR(VLOOKUP(F57,Tipo!$C$12:$C$27,1,FALSE),"NO") -> Prestación de servicios profesionales y de apoyo a la gestión, o para la ejecución de trabajos artísticos que sólo puedan encomendarse a determinadas personas naturales; | AL57: Inversión | AM57: 45
A58: CPS-045-2019 | B58: 2019 | C58: FDLCB-CD-044-2019 | D58: Contratos de prestación de servicios profesionales y de apoyo a la gestión | E58: Contratación directa | F58: Prestación de servicios profesionales y de apoyo a la gestión, o para la ejecución de trabajos artísticos que sólo puedan encomendarse a determinadas personas naturales; | G58: EL CONTRATISTA SE OBLIGA PARA CON EL FONDO DE DESARROLLO LOCAL DE CIUDAD BOLÍVAR A PRESTAR SUS SERVICIOS PROFESIONALES PARA REALIZAR TODAS LAS ACTIVIDADES CONCERNIENTES AL DESARROLLO DE LOS PROYECTOS DE INFRAESTRUCTURA EN LOS COMPONENTES QUE LE SEAN DESIGNADOS EN EL MARCO DEL PLAN DE DESARROLLO LOCAL 2017-2020 | H58: Inversión | I58: 45 | J58: =IF(ISERROR(VLOOKUP(I58,Eje_Pilar!$C$2:$E$47,2,FALSE))," ",VLOOKUP(I58,Eje_Pilar!$C$2:$E$47,2,FALSE)) -> Gobernanza e influencia local, regional e internacional | K58: =IF(ISERROR(VLOOKUP(I58,Eje_Pilar!$C$2:$E$47,3,FALSE))," ",VLOOKUP(I58,Eje_Pilar!$C$2:$E$47,3,FALSE)) -> Eje Transversal 4 Gobierno Legitimo, Fortalecimiento Local y Eficiencia | L58: 1281 | M58: 79955781 | N58: JULIO CESAR GONZALEZ DUARTE | O58: 56100000 | T58: 56100000 | U58: 49810000 | V58: 2019-02-07 | W58: 2019-02-08 | X58: 2020-01-07 | Y58: 330 | AD58: X | AF58: 0.8878787879 | AH58: =IF(SUMPRODUCT((A$14:A58=A58)*(B$14:B58=B58)*(C$14:C58=C58))>1,0,1) -> 1 | AI58: Contratos de prestación de servicios profesionales y de apoyo a la gestión | AJ58: Contratación directa | AK58: =IFERROR(VLOOKUP(F58,Tipo!$C$12:$C$27,1,FALSE),"NO") -> Prestación de servicios profesionales y de apoyo a la gestión, o para la ejecución de trabajos artísticos que sólo puedan encomendarse a determinadas personas naturales; | AL58: Inversión | AM58: 45
A59: CPS-046-2019 | B59: 2019 | C59: FDLCB-CD-045-2019 | D59: Contratos de prestación de servicios profesionales y de apoyo a la gestión | E59: Contratación directa | F59: Prestación de servicios profesionales y de apoyo a la gestión, o para la ejecución de trabajos artísticos que sólo puedan encomendarse a determinadas personas naturales; | G59: PRESTAR LOS SERVICIOS DE APOYO PARA REALIZAR ACTIVIDADES ASISTENCIALES EN LAS DIFERENTES DEPENDENCIAS DE LA ALCALDÍA LOCAL DE CIUDAD BOLÍVAR | H59: Inversión | I59: 45 | J59: =IF(ISERROR(VLOOKUP(I59,Eje_Pilar!$C$2:$E$47,2,FALSE))," ",VLOOKUP(I59,Eje_Pilar!$C$2:$E$47,2,FALSE)) -> Gobernanza e influencia local, regional e internacional | K59: =IF(ISERROR(VLOOKUP(I59,Eje_Pilar!$C$2:$E$47,3,FALSE))," ",VLOOKUP(I59,Eje_Pilar!$C$2:$E$47,3,FALSE)) -> Eje Transversal 4 Gobierno Legitimo, Fortalecimiento Local y Eficiencia | L59: 1281 | M59: 1233489049 | N59: KAREN GISELL RODRIGUEZ MENDOZA | O59: 26400000 | T59: 26400000 | U59: 22320000 | V59: 2019-02-11 | W59: 2019-02-12 | X59: 2020-01-11 | Y59: 330 | AD59: X | AF59: 0.8454545455 | AH59: =IF(SUMPRODUCT((A$14:A59=A59)*(B$14:B59=B59)*(C$14:C59=C59))>1,0,1) -> 1 | AI59: Contratos de prestación de servicios profesionales y de apoyo a la gestión | AJ59: Contratación directa | AK59: =IFERROR(VLOOKUP(F59,Tipo!$C$12:$C$27,1,FALSE),"NO") -> Prestación de servicios profesionales y de apoyo a la gestión, o para la ejecución de trabajos artísticos que sólo puedan encomendarse a determinadas personas naturales; | AL59: Inversión | AM59: 45
A60: CPS-047-2019 | B60: 2019 | C60: FDLCB-CD-046-2019 | D60: Contratos de prestación de servicios profesionales y de apoyo a la gestión | E60: Contratación directa | F60: Prestación de servicios profesionales y de apoyo a la gestión, o para la ejecución de trabajos artísticos que sólo puedan encomendarse a determinadas personas naturales; | G60: PRESTAR SERVICIOS PROFESIONALES PARA APOYAR TÉCNICAMENTE A LOS RESPONSABLES E INTEGRANTES DE LOS PROCESOS EN LA IMPLEMENTACIÓN DE HERRAMIENTAS DE GESTIÓN, SIGUIENDO LOS LINEAMIENTOS METODOLÓGICOS ESTABLECIDOS POR LA OFICINA ASESORA DE PLANEACIÓN DE LA SECRETARÍA DISTRITAL DE GOBIERNO | H60: Inversión | I60: 45 | J60: =IF(ISERROR(VLOOKUP(I60,Eje_Pilar!$C$2:$E$47,2,FALSE))," ",VLOOKUP(I60,Eje_Pilar!$C$2:$E$47,2,FALSE)) -> Gobernanza e influencia local, regional e internacional | K60: =IF(ISERROR(VLOOKUP(I60,Eje_Pilar!$C$2:$E$47,3,FALSE))," ",VLOOKUP(I60,Eje_Pilar!$C$2:$E$47,3,FALSE)) -> Eje Transversal 4 Gobierno Legitimo, Fortalecimiento Local y Eficiencia | L60: 1281 | M60: 1013637783 | N60: INGRID YISETH CAMARGO MORALES | O60: 51700000 | R60: 1 | S60: 12690000 | T60: 64390000 | U60: 45433333 | V60: 2019-02-07 | W60: 2019-02-11 | X60: 2020-01-06 | Y60: 330 | Z60: 81 | AC60: X | AF60: 0.7055961019 | AH60: =IF(SUMPRODUCT((A$14:A60=A60)*(B$14:B60=B60)*(C$14:C60=C60))>1,0,1) -> 1 | AI60: Contratos de prestación de servicios profesionales y de apoyo a la gestión | AJ60: Contratación directa | AK60: =IFERROR(VLOOKUP(F60,Tipo!$C$12:$C$27,1,FALSE),"NO") -> Prestación de servicios profesionales y de apoyo a la gestión, o para la ejecución de trabajos artísticos que sólo puedan encomendarse a determinadas personas naturales; | AL60: Inversión | AM60: 45
A61: CPS-048-2019 | B61: 2019 | C61: FDLCB-CD-047-2019 | D61: Contratos de prestación de servicios profesionales y de apoyo a la gestión | E61: Contratación directa | F61: Prestación de servicios profesionales y de apoyo a la gestión, o para la ejecución de trabajos artísticos que sólo puedan encomendarse a determinadas personas naturales; | G61: PRESTAR LOS SERVICIOS DE APOYO ASISTENCIALES PARA LA JUNTA ADMINISTRADORA LOCAL DE CIUDAD BOLÍVAR | H61: Inversión | I61: 45 | J61: =IF(ISERROR(VLOOKUP(I61,Eje_Pilar!$C$2:$E$47,2,FALSE))," ",VLOOKUP(I61,Eje_Pilar!$C$2:$E$47,2,FALSE)) -> Gobernanza e influencia local, regional e internacional | K61: =IF(ISERROR(VLOOKUP(I61,Eje_Pilar!$C$2:$E$47,3,FALSE))," ",VLOOKUP(I61,Eje_Pilar!$C$2:$E$47,3,FALSE)) -> Eje Transversal 4 Gobierno Legitimo, Fortalecimiento Local y Eficiencia | L61: 1281 | M61: 79263795 | N61: HERNANDO BEDOYA MARTINEZ | O61: 26400000 | T61: 26400000 | U61: 22960000 | V61: 2019-02-12 | W61: 2019-02-14 | X61: 2020-01-13 | Y61: 330 | AC61: X | AF61: 0.8696969697 | AH61: =IF(SUMPRODUCT((A$14:A61=A61)*(B$14:B61=B61)*(C$14:C61=C61))>1,0,1) -> 1 | AI61: Contratos de prestación de servicios profesionales y de apoyo a la gestión | AJ61: Contratación directa | AK61: =IFERROR(VLOOKUP(F61,Tipo!$C$12:$C$27,1,FALSE),"NO") -> Prestación de servicios profesionales y de apoyo a la gestión, o para la ejecución de trabajos artísticos que sólo puedan encomendarse a determinadas personas naturales; | AL61: Inversión | AM61: 45
A62: CPS-049-2019 | B62: 2019 | C62: FDLCB-CD-048-2019 | D62: Contratos de prestación de servicios profesionales y de apoyo a la gestión | E62: Contratación directa | F62: Prestación de servicios profesionales y de apoyo a la gestión, o para la ejecución de trabajos artísticos que sólo puedan encomendarse a determinadas personas naturales; | G62: PRESTAR LOS SERVICIOS DE APOYO PARA REALIZAR ACTIVIDADES ASISTENCIALES EN LAS DIFERENTES DEPENDENCIAS DE LA ALCALDÍA LOCAL DE CIUDAD BOLÍVAR | H62: Inversión | I62: 45 | J62: =IF(ISERROR(VLOOKUP(I62,Eje_Pilar!$C$2:$E$47,2,FALSE))," ",VLOOKUP(I62,Eje_Pilar!$C$2:$E$47,2,FALSE)) -> Gobernanza e influencia local, regional e internacional | K62: =IF(ISERROR(VLOOKUP(I62,Eje_Pilar!$C$2:$E$47,3,FALSE))," ",VLOOKUP(I62,Eje_Pilar!$C$2:$E$47,3,FALSE)) -> Eje Transversal 4 Gobierno Legitimo, Fortalecimiento Local y Eficiencia | L62: 1281 | M62: 1024506245 | N62: LYANA MARIA BENAVIDES PALENCIA | O62: 26400000 | R62: 1 | S62: 6320000 | T62: 32720000 | U62: 23040000 | V62: 2019-02-11 | W62: 2019-02-13 | X62: 2020-03-31 | Y62: 330 | Z62: 79 | AC62: X | AF62: 0.7041564792 | AH62: =IF(SUMPRODUCT((A$14:A62=A62)*(B$14:B62=B62)*(C$14:C62=C62))>1,0,1) -> 1 | AI62: Contratos de prestación de servicios profesionales y de apoyo a la gestión | AJ62: Contratación directa | AK62: =IFERROR(VLOOKUP(F62,Tipo!$C$12:$C$27,1,FALSE),"NO") -> Prestación de servicios profesionales y de apoyo a la gestión, o para la ejecución de trabajos artísticos que sólo puedan encomendarse a determinadas personas naturales; | AL62: Inversión | AM62: 45
A63: CPS-050-2019 | B63: 2019 | C63: FDLCB-CD-049-2019 | D63: Contratos de prestación de servicios profesionales y de apoyo a la gestión | E63: Contratación directa | F63: Prestación de servicios profesionales y de apoyo a la gestión, o para la ejecución de trabajos artísticos que sólo puedan encomendarse a determinadas personas naturales; | G63: PRESTAR LOS SERVICIOS DE APOYO PARA REALIZAR ACTIVIDADES ASISTENCIALES EN LAS DIFERENTES DEPENDENCIAS DE LA ALCALDÍA LOCAL DE CIUDAD BOLÍVAR | H63: Inversión | I63: 45 | J63: =IF(ISERROR(VLOOKUP(I63,Eje_Pilar!$C$2:$E$47,2,FALSE))," ",VLOOKUP(I63,Eje_Pilar!$C$2:$E$47,2,FALSE)) -> Gobernanza e influencia local, regional e internacional | K63: =IF(ISERROR(VLOOKUP(I63,Eje_Pilar!$C$2:$E$47,3,FALSE))," ",VLOOKUP(I63,Eje_Pilar!$C$2:$E$47,3,FALSE)) -> Eje Transversal 4 Gobierno Legitimo, Fortalecimiento Local y Eficiencia | L63: 1281 | M63: 1010223643 | N63: IVONNE STEPHANY MORENO VARGAS | O63: 26400000 | T63: 26400000 | U63: 22560000 | V63: 2019-02-12 | W63: 2019-02-19 | X63: 2020-01-18 | Y63: 330 | AC63: X | AF63: 0.8545454545 | AH63: =IF(SUMPRODUCT((A$14:A63=A63)*(B$14:B63=B63)*(C$14:C63=C63))>1,0,1) -> 1 | AI63: Contratos de prestación de servicios profesionales y de apoyo a la gestión | AJ63: Contratación directa | AK63: =IFERROR(VLOOKUP(F63,Tipo!$C$12:$C$27,1,FALSE),"NO") -> Prestación de servicios profesionales y de apoyo a la gestión, o para la ejecución de trabajos artísticos que sólo puedan encomendarse a determinadas personas naturales; | AL63: Inversión | AM63: 45
A64: CPS-051-2019 | B64: 2019 | C64: FDLCB-CD-050-2019 | D64: Contratos de prestación de servicios profesionales y de apoyo a la gestión | E64: Contratación directa | F64: Prestación de servicios profesionales y de apoyo a la gestión, o para la ejecución de trabajos artísticos que sólo puedan encomendarse a determinadas personas naturales; | G64: PRESTAR SUS SERVICIOS COMO CONDUCTOR DE VOLQUETA DE PROPIEDAD DEL FONDO DE DESARROLLO LOCAL DE CIUDAD BOLÍVAR PARA LA REALIZACIÓN DE LABORES DE MANTENIMIENTO DE LA MALLA VIAL Y LAS ZONAS PÚBLICAS DE LA LOCALIDAD, ASÍ COMO ATENDER LAS EMERGENCIAS QUE SURJAN EN LA LOCALIDAD | H64: Inversión | I64: 18 | J64: =IF(ISERROR(VLOOKUP(I64,Eje_Pilar!$C$2:$E$47,2,FALSE))," ",VLOOKUP(I64,Eje_Pilar!$C$2:$E$47,2,FALSE)) -> Mejor movilidad para todos | K64: =IF(ISERROR(VLOOKUP(I64,Eje_Pilar!$C$2:$E$47,3,FALSE))," ",VLOOKUP(I64,Eje_Pilar!$C$2:$E$47,3,FALSE)) -> Pilar 2 Democracía Urbana | L64: 1424 | M64: 1024515510 | N64: JIMMI ALEXANDER PALACIOS | O64: 25300000 | R64: 1 | S64: 6210000 | T64: 31510000 | U64: 22233333 | V64: 2019-02-08 | W64: 2019-02-11 | X64: 2020-03-31 | Y64: 330 | Z64: 81 | AC64: X | AF64: 0.7055960965 | AH64: =IF(SUMPRODUCT((A$14:A64=A64)*(B$14:B64=B64)*(C$14:C64=C64))>1,0,1) -> 1 | AI64: Contratos de prestación de servicios profesionales y de apoyo a la gestión | AJ64: Contratación directa | AK64: =IFERROR(VLOOKUP(F64,Tipo!$C$12:$C$27,1,FALSE),"NO") -> Prestación de servicios profesionales y de apoyo a la gestión, o para la ejecución de trabajos artísticos que sólo puedan encomendarse a determinadas personas naturales; | AL64: Inversión | AM64: 18
A65: CPS-052-2019 | B65: 2019 | C65: FDLCB-CD-051-2019 | D65: Contratos de prestación de servicios profesionales y de apoyo a la gestión | E65: Contratación directa | F65: Prestación de servicios profesionales y de apoyo a la gestión, o para la ejecución de trabajos artísticos que sólo puedan encomendarse a determinadas personas naturales; | G65: APOYAR AL ALCALDE LOCAL EN LA PROMOCIÓN, ACOMPAÑAMIENTO, COORDINACIÓN Y ATENCIÓN DE LAS INSTANCIAS DE COORDINACIÓN INTERINSTITUCIONALES Y LAS INSTANCIAS DE PARTICIPACIÓN LOCALES, ASÍ COMO LOS PROCESOS COMUNITARIOS EN LA LOCALIDAD. | H65: Inversión | I65: 45 | J65: =IF(ISERROR(VLOOKUP(I65,Eje_Pilar!$C$2:$E$47,2,FALSE))," ",VLOOKUP(I65,Eje_Pilar!$C$2:$E$47,2,FALSE)) -> Gobernanza e influencia local, regional e internacional | K65: =IF(ISERROR(VLOOKUP(I65,Eje_Pilar!$C$2:$E$47,3,FALSE))," ",VLOOKUP(I65,Eje_Pilar!$C$2:$E$47,3,FALSE)) -> Eje Transversal 4 Gobierno Legitimo, Fortalecimiento Local y Eficiencia | L65: 1281 | M65: 1030583525 | N65: ERIKA YICEL DIAZ VELASQUEZ | O65: 52800000 | R65: 1 | S65: 12960000 | T65: 65760000 | U65: 46400000 | V65: 2019-02-13 | W65: 2019-02-11 | X65: 2020-03-31 | Y65: 330 | Z65: 81 | AC65: X | AF65: 0.7055961071 | AH65: =IF(SUMPRODUCT((A$14:A65=A65)*(B$14:B65=B65)*(C$14:C65=C65))>1,0,1) -> 1 | AI65: Contratos de prestación de servicios profesionales y de apoyo a la gestión | AJ65: Contratación directa | AK65: =IFERROR(VLOOKUP(F65,Tipo!$C$12:$C$27,1,FALSE),"NO") -> Prestación de servicios profesionales y de apoyo a la gestión, o para la ejecución de trabajos artísticos que sólo puedan encomendarse a determinadas personas naturales; | AL65: Inversión | AM65: 45
A66: CPS-053-2019 | B66: 2019 | C66: FDLCB-CD-052-2019 | D66: Contratos de prestación de servicios profesionales y de apoyo a la gestión | E66: Contratación directa | F66: Prestación de servicios profesionales y de apoyo a la gestión, o para la ejecución de trabajos artísticos que sólo puedan encomendarse a determinadas personas naturales; | G66: PRESTAR SUS SERVICIOS PARA REALIZAR ACTIVIDADES DE APOYO EN EL CDI DEL FONDO DE DESARROLLO LOCAL DE CIUDAD BOLÍVAR | H66: Inversión | I66: 45 | J66: =IF(ISERROR(VLOOKUP(I66,Eje_Pilar!$C$2:$E$47,2,FALSE))," ",VLOOKUP(I66,Eje_Pilar!$C$2:$E$47,2,FALSE)) -> Gobernanza e influencia local, regional e internacional | K66: =IF(ISERROR(VLOOKUP(I66,Eje_Pilar!$C$2:$E$47,3,FALSE))," ",VLOOKUP(I66,Eje_Pilar!$C$2:$E$47,3,FALSE)) -> Eje Transversal 4 Gobierno Legitimo, Fortalecimiento Local y Eficiencia | L66: 1281 | M66: 1030528305 | N66: DARWIN ANDRES RICO GONZALEZ | O66: 25300000 | T66: 25300000 | U66: 22156666 | V66: 2019-02-07 | W66: 2019-02-08 | X66: 2020-01-07 | Y66: 330 | AD66: X | AF66: 0.8757575494 | AH66: =IF(SUMPRODUCT((A$14:A66=A66)*(B$14:B66=B66)*(C$14:C66=C66))>1,0,1) -> 1 | AI66: Contratos de prestación de servicios profesionales y de apoyo a la gestión | AJ66: Contratación directa | AK66: =IFERROR(VLOOKUP(F66,Tipo!$C$12:$C$27,1,FALSE),"NO") -> Prestación de servicios profesionales y de apoyo a la gestión, o para la ejecución de trabajos artísticos que sólo puedan encomendarse a determinadas personas naturales; | AL66: Inversión | AM66: 45
A67: CPS-054-2019 | B67: 2019 | C67: FDLCB-CD-053-2019 | D67: Contratos de prestación de servicios profesionales y de apoyo a la gestión | E67: Contratación directa | F67: Prestación de servicios profesionales y de apoyo a la gestión, o para la ejecución de trabajos artísticos que sólo puedan encomendarse a determinadas personas naturales; | G67: PRESTAR SUS SERVICIOS PROFESIONALES PARA DESARROLLAR TODAS LAS ACTIVIDADES CONCERNIENTES A LA EJECUCIÓN DE BIENES Y7O SERVICIOS PARA LA LOCALIDAD DE CIUDAD BOLÍVAR DE ACUERDO CON LOS PROCEDIMIENTOS ESTABLECIDOS EN EL SIG Y LA NORMATIVIDAD VIGENTE EN MATERIA DE CONTRATACIÓN ESTATAL EN CUMPLIMIENTO DE LAS METAS ESTABLECIDAS EN EL PLAN DE DESARROLLO LOCAL DE CIUDAD BOLÍVAR Y EL PLAN ANUAL DE ADQUISICIONES. | H67: Inversión | I67: 45 | J67: =IF(ISERROR(VLOOKUP(I67,Eje_Pilar!$C$2:$E$47,2,FALSE))," ",VLOOKUP(I67,Eje_Pilar!$C$2:$E$47,2,FALSE)) -> Gobernanza e influencia local, regional e internacional | K67: =IF(ISERROR(VLOOKUP(I67,Eje_Pilar!$C$2:$E$47,3,FALSE))," ",VLOOKUP(I67,Eje_Pilar!$C$2:$E$47,3,FALSE)) -> Eje Transversal 4 Gobierno Legitimo, Fortalecimiento Local y Eficiencia | L67: 1281 | M67: 1081398435 | N67: FARLY STHER GUAÑARITA QUILINDO | O67: 60500000 | R67: 1 | S67: 15400000 | T67: 75900000 | U67: 53716667 | V67: 2019-02-08 | W67: 2019-02-08 | X67: 2020-03-31 | Y67: 330 | Z67: 84 | AC67: X | AF67: 0.707729473 | AH67: =IF(SUMPRODUCT((A$14:A67=A67)*(B$14:B67=B67)*(C$14:C67=C67))>1,0,1) -> 1 | AI67: Contratos de prestación de servicios profesionales y de apoyo a la gestión | AJ67: Contratación directa | AK67: =IFERROR(VLOOKUP(F67,Tipo!$C$12:$C$27,1,FALSE),"NO") -> Prestación de servicios profesionales y de apoyo a la gestión, o para la ejecución de trabajos artísticos que sólo puedan encomendarse a determinadas personas naturales; | AL67: Inversión | AM67: 45
A68: CPS-055-2019 | B68: 2019 | C68: FDLCB-054-2019 | D68: Contratos de prestación de servicios profesionales y de apoyo a la gestión | E68: Contratación directa | F68: Prestación de servicios profesionales y de apoyo a la gestión, o para la ejecución de trabajos artísticos que sólo puedan encomendarse a determinadas personas naturales; | G68: PRESTAR SUS SERVICIOS PROFESIONALES PARA APOYAR EL ÁREA DE GESTIÓN PARA EL DESARROLLO LOCAL EN TEMAS PRESUPUESTALES DE LA ALCALDÍA LOCAL DE CIUDAD BOLÍVAR | H68: Inversión | I68: 45 | J68: =IF(ISERROR(VLOOKUP(I68,Eje_Pilar!$C$2:$E$47,2,FALSE))," ",VLOOKUP(I68,Eje_Pilar!$C$2:$E$47,2,FALSE)) -> Gobernanza e influencia local, regional e internacional | K68: =IF(ISERROR(VLOOKUP(I68,Eje_Pilar!$C$2:$E$47,3,FALSE))," ",VLOOKUP(I68,Eje_Pilar!$C$2:$E$47,3,FALSE)) -> Eje Transversal 4 Gobierno Legitimo, Fortalecimiento Local y Eficiencia | L68: 1281 | M68: 93297980 | N68: JESUS ANDRES ARISMENDI DE LA CRUZ | O68: 55000000 | R68: 1 | S68: 13500000 | T68: 68500000 | U68: 48333333 | V68: 2019-02-07 | W68: 2019-02-11 | X68: 2020-01-10 | Y68: 330 | Z68: 81 | AD68: X | AF68: 0.7055961022 | AH68: =IF(SUMPRODUCT((A$14:A68=A68)*(B$14:B68=B68)*(C$14:C68=C68))>1,0,1) -> 1 | AI68: Contratos de prestación de servicios profesionales y de apoyo a la gestión | AJ68: Contratación directa | AK68: =IFERROR(VLOOKUP(F68,Tipo!$C$12:$C$27,1,FALSE),"NO") -> Prestación de servicios profesionales y de apoyo a la gestión, o para la ejecución de trabajos artísticos que sólo puedan encomendarse a determinadas personas naturales; | AL68: Inversión | AM68: 45
A69: CPS-056-2019 | B69: 2019 | C69: FDLCB-CD-055-2019 | D69: Contratos de prestación de servicios profesionales y de apoyo a la gestión | E69: Contratación directa | F69: Prestación de servicios profesionales y de apoyo a la gestión, o para la ejecución de trabajos artísticos que sólo puedan encomendarse a determinadas personas naturales; | G69: PRESTAR SU SERVICIO DE APOYO PARA REALIZAR LAS OBLIGACIONES ASISTENCIALES EN LA OFICINA DE GESTIÓN AMBIENTAL, AGROPECUARIA, RIESGOS Y CAMBIO CLIMÁTICO | H69: Inversión | I69: 45 | J69: =IF(ISERROR(VLOOKUP(I69,Eje_Pilar!$C$2:$E$47,2,FALSE))," ",VLOOKUP(I69,Eje_Pilar!$C$2:$E$47,2,FALSE)) -> Gobernanza e influencia local, regional e internacional | K69: =IF(ISERROR(VLOOKUP(I69,Eje_Pilar!$C$2:$E$47,3,FALSE))," ",VLOOKUP(I69,Eje_Pilar!$C$2:$E$47,3,FALSE)) -> Eje Transversal 4 Gobierno Legitimo, Fortalecimiento Local y Eficiencia | L69: 1281 | M69: 1024599165 | N69: VALENTINA VILLARREAL CARDENAS | O69: 16500000 | T69: 16500000 | U69: 14050000 | V69: 2019-02-11 | W69: 2019-02-12 | X69: 2020-01-10 | Y69: 330 | AD69: X | AF69: 0.8515151515 | AH69: =IF(SUMPRODUCT((A$14:A69=A69)*(B$14:B69=B69)*(C$14:C69=C69))>1,0,1) -> 1 | AI69: Contratos de prestación de servicios profesionales y de apoyo a la gestión | AJ69: Contratación directa | AK69: =IFERROR(VLOOKUP(F69,Tipo!$C$12:$C$27,1,FALSE),"NO") -> Prestación de servicios profesionales y de apoyo a la gestión, o para la ejecución de trabajos artísticos que sólo puedan encomendarse a determinadas personas naturales; | AL69: Inversión | AM69: 45
A70: CPS-057-2019 | B70: 2019 | C70: FDLCB-CD-056-2019 | D70: Contratos de prestación de servicios profesionales y de apoyo a la gestión | E70: Contratación directa | F70: Prestación de servicios profesionales y de apoyo a la gestión, o para la ejecución de trabajos artísticos que sólo puedan encomendarse a determinadas personas naturales; | G70: APOYAR ADMINISTRATIVA Y ASISTENCIALMENTE A LAS INSPECCIONES DE POLICÍA- CORREGIDURIA DE LA LOCALIDAD | H70: Inversión | I70: 45 | J70: =IF(ISERROR(VLOOKUP(I70,Eje_Pilar!$C$2:$E$47,2,FALSE))," ",VLOOKUP(I70,Eje_Pilar!$C$2:$E$47,2,FALSE)) -> Gobernanza e influencia local, regional e internacional | K70: =IF(ISERROR(VLOOKUP(I70,Eje_Pilar!$C$2:$E$47,3,FALSE))," ",VLOOKUP(I70,Eje_Pilar!$C$2:$E$47,3,FALSE)) -> Eje Transversal 4 Gobierno Legitimo, Fortalecimiento Local y Eficiencia | L70: 1281 | M70: 79432303 | N70: ONASIS LAMILLA TAPIERO | O70: 25300000 | R70: 1 | S70: 6210000 | T70: 31510000 | U70: 22233333 | V70: 2019-02-11 | W70: 2019-02-11 | X70: 2020-03-31 | Y70: 330 | Z70: 81 | AC70: X | AF70: 0.7055960965 | AH70: =IF(SUMPRODUCT((A$14:A70=A70)*(B$14:B70=B70)*(C$14:C70=C70))>1,0,1) -> 1 | AI70: Contratos de prestación de servicios profesionales y de apoyo a la gestión | AJ70: Contratación directa | AK70: =IFERROR(VLOOKUP(F70,Tipo!$C$12:$C$27,1,FALSE),"NO") -> Prestación de servicios profesionales y de apoyo a la gestión, o para la ejecución de trabajos artísticos que sólo puedan encomendarse a determinadas personas naturales; | AL70: Inversión | AM70: 45
A71: CPS-058-2019 | B71: 2019 | C71: FDLCB-CD-057-2019 | D71: Contratos de prestación de servicios profesionales y de apoyo a la gestión | E71: Contratación directa | F71: Prestación de servicios profesionales y de apoyo a la gestión, o para la ejecución de trabajos artísticos que sólo puedan encomendarse a determinadas personas naturales; | G71: PRESTAR SUS SERVICIOS COMO CONDUCTOR DE AUTOMOTOR PARA LA MAQUINARIA PESADA DE PROPIEDAD DEL FONDO DE DESARROLLO LOCAL DE CIUDAD BOLÍVAR PARA LA REALIZACIÓN DE LABORES DE MANTENIMIENTO DE LA MALLA VIAL Y LAS ZONAS PÚBLICAS DE LA LOCALIDAD, ASÍ COMO ATENDER LAS EMERGENCIAS QUE SURJAN EN LA LOCALIDAD DE CIUDAD BOLÍVAR | H71: Inversión | I71: 18 | J71: =IF(ISERROR(VLOOKUP(I71,Eje_Pilar!$C$2:$E$47,2,FALSE))," ",VLOOKUP(I71,Eje_Pilar!$C$2:$E$47,2,FALSE)) -> Mejor movilidad para todos | K71: =IF(ISERROR(VLOOKUP(I71,Eje_Pilar!$C$2:$E$47,3,FALSE))," ",VLOOKUP(I71,Eje_Pilar!$C$2:$E$47,3,FALSE)) -> Pilar 2 Democracía Urbana | L71: 1424 | M71: 6682689 | N71: ISRAEL ORTIZ CAMPOS | O71: 25300000 | R71: 1 | S71: 5980000 | T71: 31280000 | U71: 22003333 | V71: 2019-02-12 | W71: 2019-02-14 | X71: 2020-03-31 | Y71: 330 | Z71: 78 | AC71: X | AF71: 0.7034313619 | AH71: =IF(SUMPRODUCT((A$14:A71=A71)*(B$14:B71=B71)*(C$14:C71=C71))>1,0,1) -> 1 | AI71: Contratos de prestación de servicios profesionales y de apoyo a la gestión | AJ71: Contratación directa | AK71: =IFERROR(VLOOKUP(F71,Tipo!$C$12:$C$27,1,FALSE),"NO") -> Prestación de servicios profesionales y de apoyo a la gestión, o para la ejecución de trabajos artísticos que sólo puedan encomendarse a determinadas personas naturales; | AL71: Inversión | AM71: 18
A72: CPS-059-2019 | B72: 2019 | C72: FDLCB-CD-058-2019 | D72: Contratos de prestación de servicios profesionales y de apoyo a la gestión | E72: Contratación directa | F72: Prestación de servicios profesionales y de apoyo a la gestión, o para la ejecución de trabajos artísticos que sólo puedan encomendarse a determinadas personas naturales; | G72: APOYAR LAS LABORES DE ENTREGA Y RECIBO DE LAS COMUNICACIONES EMITIDAS O RECIBIDAS POR LAS DIFERENTES DEPENDENCIAS DEL ÁREA DE GESTIÓN DESARROLLO LOCAL DE LA ALCALDÍA LOCAL DE CIUDAD BOLÍVAR | H72: Inversión | I72: 45 | J72: =IF(ISERROR(VLOOKUP(I72,Eje_Pilar!$C$2:$E$47,2,FALSE))," ",VLOOKUP(I72,Eje_Pilar!$C$2:$E$47,2,FALSE)) -> Gobernanza e influencia local, regional e internacional | K72: =IF(ISERROR(VLOOKUP(I72,Eje_Pilar!$C$2:$E$47,3,FALSE))," ",VLOOKUP(I72,Eje_Pilar!$C$2:$E$47,3,FALSE)) -> Eje Transversal 4 Gobierno Legitimo, Fortalecimiento Local y Eficiencia | L72: 1281 | M72: 79611892 | N72: JAVIER CRUZ VALBUENA | O72: 25300000 | R72: 1 | S72: 5980000 | T72: 31280000 | U72: 22003333 | V72: 2019-02-21 | W72: 2019-02-14 | X72: 2020-03-31 | Y72: 330 | Z72: 78 | AC72: X | AF72: 0.7034313619 | AH72: =IF(SUMPRODUCT((A$14:A72=A72)*(B$14:B72=B72)*(C$14:C72=C72))>1,0,1) -> 1 | AI72: Contratos de prestación de servicios profesionales y de apoyo a la gestión | AJ72: Contratación directa | AK72: =IFERROR(VLOOKUP(F72,Tipo!$C$12:$C$27,1,FALSE),"NO") -> Prestación de servicios profesionales y de apoyo a la gestión, o para la ejecución de trabajos artísticos que sólo puedan encomendarse a determinadas personas naturales; | AL72: Inversión | AM72: 45
A73: CPS-060-2019 | B73: 2019 | C73: FDLCB-CD-059-2019 | D73: Contratos de prestación de servicios profesionales y de apoyo a la gestión | E73: Contratación directa | F73: Prestación de servicios profesionales y de apoyo a la gestión, o para la ejecución de trabajos artísticos que sólo puedan encomendarse a determinadas personas naturales; | G73: APOYAR ADMINISTRATIVA Y ASISTENCIALMENTE A LAS INSPECCIONES DE POLICÍA- CORREGIDURIA DE LA LOCALIDAD | H73: Inversión | I73: 45 | J73: =IF(ISERROR(VLOOKUP(I73,Eje_Pilar!$C$2:$E$47,2,FALSE))," ",VLOOKUP(I73,Eje_Pilar!$C$2:$E$47,2,FALSE)) -> Gobernanza e influencia local, regional e internacional | K73: =IF(ISERROR(VLOOKUP(I73,Eje_Pilar!$C$2:$E$47,3,FALSE))," ",VLOOKUP(I73,Eje_Pilar!$C$2:$E$47,3,FALSE)) -> Eje Transversal 4 Gobierno Legitimo, Fortalecimiento Local y Eficiencia | L73: 1281 | M73: 1033743652 | N73: JESSICA MARIA MONTAÑA MILLAN | O73: 25300000 | R73: 1 | S73: 6056667 | T73: 31356667 | U73: 22080000 | V73: 2019-02-11 | W73: 2019-02-13 | X73: 2020-03-31 | Y73: 330 | Z73: 79 | AC73: X | AF73: 0.7041564717 | AH73: =IF(SUMPRODUCT((A$14:A73=A73)*(B$14:B73=B73)*(C$14:C73=C73))>1,0,1) -> 1 | AI73: Contratos de prestación de servicios profesionales y de apoyo a la gestión | AJ73: Contratación directa | AK73: =IFERROR(VLOOKUP(F73,Tipo!$C$12:$C$27,1,FALSE),"NO") -> Prestación de servicios profesionales y de apoyo a la gestión, o para la ejecución de trabajos artísticos que sólo puedan encomendarse a determinadas personas naturales; | AL73: Inversión | AM73: 45
A74: CPS-061-2019 | B74: 2019 | C74: FDLCB-CD-060-2019 | D74: Contratos de prestación de servicios profesionales y de apoyo a la gestión | E74: Contratación directa | F74: Prestación de servicios profesionales y de apoyo a la gestión, o para la ejecución de trabajos artísticos que sólo puedan encomendarse a determinadas personas naturales; | G74: PRESTAR LOS SERVICIOS DE APOYO PARA REALIZAR ACTIVIDADES ASISTENCIALES EN LAS DIFERENTES DEPENDENCIAS DE LA ALCALDÍA LOCAL DE CIUDAD BOLÍVAR | H74: Inversión | I74: 45 | J74: =IF(ISERROR(VLOOKUP(I74,Eje_Pilar!$C$2:$E$47,2,FALSE))," ",VLOOKUP(I74,Eje_Pilar!$C$2:$E$47,2,FALSE)) -> Gobernanza e influencia local, regional e internacional | K74: =IF(ISERROR(VLOOKUP(I74,Eje_Pilar!$C$2:$E$47,3,FALSE))," ",VLOOKUP(I74,Eje_Pilar!$C$2:$E$47,3,FALSE)) -> Eje Transversal 4 Gobierno Legitimo, Fortalecimiento Local y Eficiencia | L74: 1281 | M74: 1024519152 | N74: YESID ALEXANDER CASTRO MARTINEZ | O74: 26400000 | T74: 26400000 | U74: 23040000 | V74: 2019-02-11 | W74: 2019-02-13 | X74: 2020-01-12 | Y74: 330 | AD74: X | AF74: 0.8727272727 | AH74: =IF(SUMPRODUCT((A$14:A74=A74)*(B$14:B74=B74)*(C$14:C74=C74))>1,0,1) -> 1 | AI74: Contratos de prestación de servicios profesionales y de apoyo a la gestión | AJ74: Contratación directa | AK74: =IFERROR(VLOOKUP(F74,Tipo!$C$12:$C$27,1,FALSE),"NO") -> Prestación de servicios profesionales y de apoyo a la gestión, o para la ejecución de trabajos artísticos que sólo puedan encomendarse a determinadas personas naturales; | AL74: Inversión | AM74: 45
A75: CPS-062-2019 | B75: 2019 | C75: FDLCB-062-2019 | D75: Contratos de prestación de servicios profesionales y de apoyo a la gestión | E75: Contratación directa | F75: Prestación de servicios profesionales y de apoyo a la gestión, o para la ejecución de trabajos artísticos que sólo puedan encomendarse a determinadas personas naturales; | G75: PRESTAR SUS SERVICIOS DE APOYO ASISTENCIAL EN ACTIVIDADES DE GESTIÓN DOCUMENTAL EN LA ALCALDÍA LOCAL DE CIUDAD BOLÍVAR | H75: Inversión | I75: 45 | J75: =IF(ISERROR(VLOOKUP(I75,Eje_Pilar!$C$2:$E$47,2,FALSE))," ",VLOOKUP(I75,Eje_Pilar!$C$2:$E$47,2,FALSE)) -> Gobernanza e influencia local, regional e internacional | K75: =IF(ISERROR(VLOOKUP(I75,Eje_Pilar!$C$2:$E$47,3,FALSE))," ",VLOOKUP(I75,Eje_Pilar!$C$2:$E$47,3,FALSE)) -> Eje Transversal 4 Gobierno Legitimo, Fortalecimiento Local y Eficiencia | L75: 1281 | M75: 52433242 | N75: MARIA YOLANDA LINARES BALCERO | O75: 25300000 | T75: 25300000 | U75: 22233333 | V75: 2019-02-08 | W75: 2019-02-11 | X75: 2020-01-10 | Y75: 330 | AD75: X | AF75: 0.8787878656 | AH75: =IF(SUMPRODUCT((A$14:A75=A75)*(B$14:B75=B75)*(C$14:C75=C75))>1,0,1) -> 1 | AI75: Contratos de prestación de servicios profesionales y de apoyo a la gestión | AJ75: Contratación directa | AK75: =IFERROR(VLOOKUP(F75,Tipo!$C$12:$C$27,1,FALSE),"NO") -> Prestación de servicios profesionales y de apoyo a la gestión, o para la ejecución de trabajos artísticos que sólo puedan encomendarse a determinadas personas naturales; | AL75: Inversión | AM75: 45
A76: CPS-063-2019 | B76: 2019 | C76: FDLCB-CD-062-2019 | D76: Contratos de prestación de servicios profesionales y de apoyo a la gestión | E76: Contratación directa | F76: Prestación de servicios profesionales y de apoyo a la gestión, o para la ejecución de trabajos artísticos que sólo puedan encomendarse a determinadas personas naturales; | G76: PRESTAR SUS SERVICIOS PROFESIONALES PARA APOYAR LA FORMULACIÓN, GESTIÓN Y SEGUIMIENTO DE ACTIVIDADES ENFOCADAS A LA GESTIÓN AMBIENTAL EXTERNA, ENCAMINADAS A LA MITIGACIÓN DE LOS DIFERENTES IMPACTOS AMBIENTALES Y LA CONSERVACIÓN DE LOS RECURSOS NATURALES DE LA LOCALIDAD DE CIUDAD BOLÍVAR | H76: Inversión | I76: 45 | J76: =IF(ISERROR(VLOOKUP(I76,Eje_Pilar!$C$2:$E$47,2,FALSE))," ",VLOOKUP(I76,Eje_Pilar!$C$2:$E$47,2,FALSE)) -> Gobernanza e influencia local, regional e internacional | K76: =IF(ISERROR(VLOOKUP(I76,Eje_Pilar!$C$2:$E$47,3,FALSE))," ",VLOOKUP(I76,Eje_Pilar!$C$2:$E$47,3,FALSE)) -> Eje Transversal 4 Gobierno Legitimo, Fortalecimiento Local y Eficiencia | L76: 1281 | M76: 1018469343 | N76: LUISA FERNANDA CORONADO CORONADO | O76: 51700000 | R76: 1 | S76: 12690000 | T76: 64390000 | U76: 45433333 | V76: 2019-02-08 | W76: 2019-02-11 | X76: 2020-03-31 | Y76: 330 | Z76: 81 | AC76: X | AF76: 0.7055961019 | AH76: =IF(SUMPRODUCT((A$14:A76=A76)*(B$14:B76=B76)*(C$14:C76=C76))>1,0,1) -> 1 | AI76: Contratos de prestación de servicios profesionales y de apoyo a la gestión | AJ76: Contratación directa | AK76: =IFERROR(VLOOKUP(F76,Tipo!$C$12:$C$27,1,FALSE),"NO") -> Prestación de servicios profesionales y de apoyo a la gestión, o para la ejecución de trabajos artísticos que sólo puedan encomendarse a determinadas personas naturales; | AL76: Inversión | AM76: 45
A77: CPS-064-2019 | B77: 2019 | C77: FDLCB-CD-063-2019 | D77: Contratos de prestación de servicios profesionales y de apoyo a la gestión | E77: Contratación directa | F77: Prestación de servicios profesionales y de apoyo a la gestión, o para la ejecución de trabajos artísticos que sólo puedan encomendarse a determinadas personas naturales; | G77: APOYAR LA GESTIÓN DOCUMENTAL DE LA ALCALDIA LOCAL, ACOMPAÑANDO AL EQUIPO JURIDICO DE DEPURACIÓN EN LAS LABORES OPERATIVAS QUE GENERA EL PROCESO DE IMPULSO DE LAS ACTUACIONES ADMINISTRATIVAS EXISTENTES EN LA ALCALDIA LOCAL DE CIUDAD BOLIVAR. | H77: Inversión | I77: 45 | J77: =IF(ISERROR(VLOOKUP(I77,Eje_Pilar!$C$2:$E$47,2,FALSE))," ",VLOOKUP(I77,Eje_Pilar!$C$2:$E$47,2,FALSE)) -> Gobernanza e influencia local, regional e internacional | K77: =IF(ISERROR(VLOOKUP(I77,Eje_Pilar!$C$2:$E$47,3,FALSE))," ",VLOOKUP(I77,Eje_Pilar!$C$2:$E$47,3,FALSE)) -> Eje Transversal 4 Gobierno Legitimo, Fortalecimiento Local y Eficiencia | L77: 1281 | M77: 52977635 | N77: LUZ HELENA VELASQUEZ MARTINEZ | O77: 25300000 | T77: 25300000 | U77: 22156667 | V77: 2019-02-08 | W77: 2019-02-12 | X77: 2020-01-11 | Y77: 330 | AD77: X | AF77: 0.8757575889 | AH77: =IF(SUMPRODUCT((A$14:A77=A77)*(B$14:B77=B77)*(C$14:C77=C77))>1,0,1) -> 1 | AI77: Contratos de prestación de servicios profesionales y de apoyo a la gestión | AJ77: Contratación directa | AK77: =IFERROR(VLOOKUP(F77,Tipo!$C$12:$C$27,1,FALSE),"NO") -> Prestación de servicios profesionales y de apoyo a la gestión, o para la ejecución de trabajos artísticos que sólo puedan encomendarse a determinadas personas naturales; | AL77: Inversión | AM77: 45
A78: CPS-065-2019 | B78: 2019 | C78: FDLCB-CD-064-2019 | D78: Contratos de prestación de servicios profesionales y de apoyo a la gestión | E78: Contratación directa | F78: Prestación de servicios profesionales y de apoyo a la gestión, o para la ejecución de trabajos artísticos que sólo puedan encomendarse a determinadas personas naturales; | G78: PRESTAR SUS SERVICIOS DE APOYO ASISTENCIAL EN ACTIVIDADES DE GESTIÓN DOCUMENTAL EN LA ALCALDÍA LOCAL DE CIUDAD BOLÍVAR | H78: Inversión | I78: 45 | J78: =IF(ISERROR(VLOOKUP(I78,Eje_Pilar!$C$2:$E$47,2,FALSE))," ",VLOOKUP(I78,Eje_Pilar!$C$2:$E$47,2,FALSE)) -> Gobernanza e influencia local, regional e internacional | K78: =IF(ISERROR(VLOOKUP(I78,Eje_Pilar!$C$2:$E$47,3,FALSE))," ",VLOOKUP(I78,Eje_Pilar!$C$2:$E$47,3,FALSE)) -> Eje Transversal 4 Gobierno Legitimo, Fortalecimiento Local y Eficiencia | L78: 1281 | M78: 80067605 | N78: DIEGO WILMAR ROMERO VILLALOBOS | O78: 25300000 | R78: 1 | S78: 6133333 | T78: 31433333 | U78: 22156667 | V78: 2019-02-08 | W78: 2019-02-12 | X78: 2020-03-31 | Y78: 330 | Z78: 80 | AC78: X | AF78: 0.7048780669 | AH78: =IF(SUMPRODUCT((A$14:A78=A78)*(B$14:B78=B78)*(C$14:C78=C78))>1,0,1) -> 1 | AI78: Contratos de prestación de servicios profesionales y de apoyo a la gestión | AJ78: Contratación directa | AK78: =IFERROR(VLOOKUP(F78,Tipo!$C$12:$C$27,1,FALSE),"NO") -> Prestación de servicios profesionales y de apoyo a la gestión, o para la ejecución de trabajos artísticos que sólo puedan encomendarse a determinadas personas naturales; | AL78: Inversión | AM78: 45
A79: CPS-066-2019 | B79: 2019 | C79: FDLCB-CD-066-2019 | D79: Contratos de prestación de servicios profesionales y de apoyo a la gestión | E79: Contratación directa | F79: Prestación de servicios profesionales y de apoyo a la gestión, o para la ejecución de trabajos artísticos que sólo puedan encomendarse a determinadas personas naturales; | G79: APOYAR LA GESTIÓN DOCUMENTAL DE LA ALCALDIA LOCAL, ACOMPAÑANDO AL EQUIPO JURIDICO DE DEPURACIÓN EN LAS LABORES OPERATIVAS QUE GENERA EL PROCESO DE IMPULSO DE LAS ACTUACIONES ADMINISTRATIVAS EXISTENTES EN LA ALCALDIA LOCAL DE CIUDAD BOLIVAR. | H79: Inversión | I79: 45 | J79: =IF(ISERROR(VLOOKUP(I79,Eje_Pilar!$C$2:$E$47,2,FALSE))," ",VLOOKUP(I79,Eje_Pilar!$C$2:$E$47,2,FALSE)) -> Gobernanza e influencia local, regional e internacional | K79: =IF(ISERROR(VLOOKUP(I79,Eje_Pilar!$C$2:$E$47,3,FALSE))," ",VLOOKUP(I79,Eje_Pilar!$C$2:$E$47,3,FALSE)) -> Eje Transversal 4 Gobierno Legitimo, Fortalecimiento Local y Eficiencia | L79: 1281 | M79: 52870892 | N79: MARIA ANGELICA RUBIO PEÑARETE | O79: 25300000 | T79: 25300000 | U79: 22233333 | V79: 2019-02-08 | W79: 2019-02-11 | X79: 2020-01-10 | Y79: 330 | AD79: X | AF79: 0.8787878656 | AH79: =IF(SUMPRODUCT((A$14:A79=A79)*(B$14:B79=B79)*(C$14:C79=C79))>1,0,1) -> 1 | AI79: Contratos de prestación de servicios profesionales y de apoyo a la gestión | AJ79: Contratación directa | AK79: =IFERROR(VLOOKUP(F79,Tipo!$C$12:$C$27,1,FALSE),"NO") -> Prestación de servicios profesionales y de apoyo a la gestión, o para la ejecución de trabajos artísticos que sólo puedan encomendarse a determinadas personas naturales; | AL79: Inversión | AM79: 45
A80: CPS-067-2019 | B80: 2019 | C80: FDLCB-CD-065-2019 | D80: Contratos de prestación de servicios profesionales y de apoyo a la gestión | E80: Contratación directa | F80: Prestación de servicios profesionales y de apoyo a la gestión, o para la ejecución de trabajos artísticos que sólo puedan encomendarse a determinadas personas naturales; | G80: APOYAR LA GESTIÓN DOCUMENTAL DE LA ALCALDIA LOCAL, ACOMPAÑANDO AL EQUIPO JURIDICO DE DEPURACIÓN EN LAS LABORES OPERATIVAS QUE GENERA EL PROCESO DE IMPULSO DE LAS ACTUACIONES ADMINISTRATIVAS EXISTENTES EN LA ALCALDIA LOCAL DE CIUDAD BOLIVAR. | H80: Inversión | I80: 45 | J80: =IF(ISERROR(VLOOKUP(I80,Eje_Pilar!$C$2:$E$47,2,FALSE))," ",VLOOKUP(I80,Eje_Pilar!$C$2:$E$47,2,FALSE)) -> Gobernanza e influencia local, regional e internacional | K80: =IF(ISERROR(VLOOKUP(I80,Eje_Pilar!$C$2:$E$47,3,FALSE))," ",VLOOKUP(I80,Eje_Pilar!$C$2:$E$47,3,FALSE)) -> Eje Transversal 4 Gobierno Legitimo, Fortalecimiento Local y Eficiencia | L80: 1281 | M80: 52368582 | N80: YOLANDA PATRICIA GARCIA AVILA | O80: 25300000 | R80: 1 | S80: 6210000 | T80: 31510000 | U80: 22233333 | V80: 2019-02-08 | W80: 2019-02-11 | X80: 2020-03-31 | Y80: 330 | Z80: 81 | AC80: X | AF80: =IF(ISERROR(U80/T80),"-",(U80/T80)) -> 0.7055960965 | AH80: =IF(SUMPRODUCT((A$14:A80=A80)*(B$14:B80=B80)*(C$14:C80=C80))>1,0,1) -> 1 | AI80: Contratos de prestación de servicios profesionales y de apoyo a la gestión | AJ80: Contratación directa | AK80: =IFERROR(VLOOKUP(F80,Tipo!$C$12:$C$27,1,FALSE),"NO") -> Prestación de servicios profesionales y de apoyo a la gestión, o para la ejecución de trabajos artísticos que sólo puedan encomendarse a determinadas personas naturales; | AL80: Inversión | AM80: 45
A81: CPS-068-2019 | B81: 2019 | C81: FDLCB-CD-067-2019 | D81: Contratos de prestación de servicios profesionales y de apoyo a la gestión | E81: Contratación directa | F81: Prestación de servicios profesionales y de apoyo a la gestión, o para la ejecución de trabajos artísticos que sólo puedan encomendarse a determinadas personas naturales; | G81: PRESTAR SUS SERVICIOS COMO CONDUCTOR DE VEHÍCULO LIVIANO DE PROPIEDAD DEL FONDO DE DESARROLLO LOCAL DE CIUDAD BOLÍVAR | H81: Inversión | I81: 45 | J81: =IF(ISERROR(VLOOKUP(I81,Eje_Pilar!$C$2:$E$47,2,FALSE))," ",VLOOKUP(I81,Eje_Pilar!$C$2:$E$47,2,FALSE)) -> Gobernanza e influencia local, regional e internacional | K81: =IF(ISERROR(VLOOKUP(I81,Eje_Pilar!$C$2:$E$47,3,FALSE))," ",VLOOKUP(I81,Eje_Pilar!$C$2:$E$47,3,FALSE)) -> Eje Transversal 4 Gobierno Legitimo, Fortalecimiento Local y Eficiencia | L81: 1281 | M81: 79657241 | N81: CARLOS JULIO MIRANDA DOMINGUEZ | O81: 25300000 | T81: 25300000 | U81: 22080000 | V81: 2019-02-11 | W81: 2019-02-13 | X81: 2020-01-12 | Y81: 330 | AD81: X | AF81: 0.8727272727 | AH81: =IF(SUMPRODUCT((A$14:A81=A81)*(B$14:B81=B81)*(C$14:C81=C81))>1,0,1) -> 1 | AI81: Contratos de prestación de servicios profesionales y de apoyo a la gestión | AJ81: Contratación directa | AK81: =IFERROR(VLOOKUP(F81,Tipo!$C$12:$C$27,1,FALSE),"NO") -> Prestación de servicios profesionales y de apoyo a la gestión, o para la ejecución de trabajos artísticos que sólo puedan encomendarse a determinadas personas naturales; | AL81: Inversión | AM81: 45
A82: CPS-069-2019 | B82: 2019 | C82: FDLCB-CD-068-2019 | D82: Contratos de prestación de servicios profesionales y de apoyo a la gestión | E82: Contratación directa | F82: Prestación de servicios profesionales y de apoyo a la gestión, o para la ejecución de trabajos artísticos que sólo puedan encomendarse a determinadas personas naturales; | G82: Apoyar la gestión documental de la Alcaldía Local, acompañando al equipo jurídico de depuración en las labores operativas que genera el proceso de impulso de las actuaciones administrativas existentes en la Alcaldía Local de Ciudad Bolívar | H82: Inversión | I82: 45 | J82: =IF(ISERROR(VLOOKUP(I82,Eje_Pilar!$C$2:$E$47,2,FALSE))," ",VLOOKUP(I82,Eje_Pilar!$C$2:$E$47,2,FALSE)) -> Gobernanza e influencia local, regional e internacional | K82: =IF(ISERROR(VLOOKUP(I82,Eje_Pilar!$C$2:$E$47,3,FALSE))," ",VLOOKUP(I82,Eje_Pilar!$C$2:$E$47,3,FALSE)) -> Eje Transversal 4 Gobierno Legitimo, Fortalecimiento Local y Eficiencia | L82: 1281 | M82: 53046490 | N82: JAQUELINE LUCLLY RUIZ ARTENAS | O82: 25300000 | T82: 25300000 | U82: 22233333 | V82: 2019-02-08 | W82: 2019-02-11 | X82: 2020-01-10 | Y82: 330 | AD82: X | AF82: 0.8787878656 | AH82: =IF(SUMPRODUCT((A$14:A82=A82)*(B$14:B82=B82)*(C$14:C82=C82))>1,0,1) -> 1 | AI82: Contratos de prestación de servicios profesionales y de apoyo a la gestión | AJ82: Contratación directa | AK82: =IFERROR(VLOOKUP(F82,Tipo!$C$12:$C$27,1,FALSE),"NO") -> Prestación de servicios profesionales y de apoyo a la gestión, o para la ejecución de trabajos artísticos que sólo puedan encomendarse a determinadas personas naturales; | AL82: Inversión | AM82: 45
A83: CPS-070-2019 | B83: 2019 | C83: FDLCB-CD-069-2019 | D83: Contratos de prestación de servicios profesionales y de apoyo a la gestión | E83: Contratación directa | F83: Prestación de servicios profesionales y de apoyo a la gestión, o para la ejecución de trabajos artísticos que sólo puedan encomendarse a determinadas personas naturales; | G83: Prestar sus servicios como conductor de vehiculo líviana de propiedad del Fondo del Fondo de Desarrollo Local de Ciudad Bolívar | H83: Inversión | I83: 45 | J83: =IF(ISERROR(VLOOKUP(I83,Eje_Pilar!$C$2:$E$47,2,FALSE))," ",VLOOKUP(I83,Eje_Pilar!$C$2:$E$47,2,FALSE)) -> Gobernanza e influencia local, regional e internacional | K83: =IF(ISERROR(VLOOKUP(I83,Eje_Pilar!$C$2:$E$47,3,FALSE))," ",VLOOKUP(I83,Eje_Pilar!$C$2:$E$47,3,FALSE)) -> Eje Transversal 4 Gobierno Legitimo, Fortalecimiento Local y Eficiencia | L83: 1281 | M83: 19093267 | N83: JAIRO ALBERTO AGUILAR LUNA | O83: 25300000 | T83: 25300000 | U83: 19973333 | V83: 2019-02-08 | W83: 2019-02-11 | X83: 2020-01-10 | Y83: 330 | AD83: X | AF83: 0.7894598024 | AH83: =IF(SUMPRODUCT((A$14:A83=A83)*(B$14:B83=B83)*(C$14:C83=C83))>1,0,1) -> 1 | AI83: Contratos de prestación de servicios profesionales y de apoyo a la gestión | AJ83: Contratación directa | AK83: =IFERROR(VLOOKUP(F83,Tipo!$C$12:$C$27,1,FALSE),"NO") -> Prestación de servicios profesionales y de apoyo a la gestión, o para la ejecución de trabajos artísticos que sólo puedan encomendarse a determinadas personas naturales; | AL83: Inversión | AM83: 45
A84: CPS-071-2019 | B84: 2019 | C84: FDLCB-CD-070-2019 | D84: Contratos de prestación de servicios profesionales y de apoyo a la gestión | E84: Contratación directa | F84: Prestación de servicios profesionales y de apoyo a la gestión, o para la ejecución de trabajos artísticos que sólo puedan encomendarse a determinadas personas naturales; | G84: Prestar sus servicios profesionales para Coordinar, liderar y asesorar los planes y estrategias de comunicación interna y externa para la divulgación de los programas, proyectos y actividades de la Alcaldía Local de Ciudad Bolívar | H84: Inversión | I84: 45 | J84: =IF(ISERROR(VLOOKUP(I84,Eje_Pilar!$C$2:$E$47,2,FALSE))," ",VLOOKUP(I84,Eje_Pilar!$C$2:$E$47,2,FALSE)) -> Gobernanza e influencia local, regional e internacional | K84: =IF(ISERROR(VLOOKUP(I84,Eje_Pilar!$C$2:$E$47,3,FALSE))," ",VLOOKUP(I84,Eje_Pilar!$C$2:$E$47,3,FALSE)) -> Eje Transversal 4 Gobierno Legitimo, Fortalecimiento Local y Eficiencia | L84: 1281 | M84: 86068147 | N84: JOHN FREDY HERNANDEZ PEREZ | O84: 66000000 | R84: 1 | S84: 16200000 | T84: 82200000 | U84: 58000000 | V84: 2019-02-11 | W84: 2019-02-11 | X84: 2020-03-31 | Y84: 330 | Z84: 81 | AC84: X | AF84: 0.7055961071 | AH84: =IF(SUMPRODUCT((A$14:A84=A84)*(B$14:B84=B84)*(C$14:C84=C84))>1,0,1) -> 1 | AI84: Contratos de prestación de servicios profesionales y de apoyo a la gestión | AJ84: Contratación directa | AK84: =IFERROR(VLOOKUP(F84,Tipo!$C$12:$C$27,1,FALSE),"NO") -> Prestación de servicios profesionales y de apoyo a la gestión, o para la ejecución de trabajos artísticos que sólo puedan encomendarse a determinadas personas naturales; | AL84: Inversión | AM84: 45
A85: CPS-072-2019 | B85: 2019 | C85: FDLCB-CD-071-2019 | D85: Contratos de prestación de servicios profesionales y de apoyo a la gestión | E85: Contratación directa | F85: Prestación de servicios profesionales y de apoyo a la gestión, o para la ejecución de trabajos artísticos que sólo puedan encomendarse a determinadas personas naturales; | G85: Prestar los servicios profesionales para la operación, prestación, seguimineto y cumplimiento de los procedimientos administrativos, operativos y programáticos de los servicios sociales del proyecto de subsidio/apoyo económico tipoC, que contribuyan a la garantía de los derechos de la población mayor en el marco de la política pública social para el envejecimiento y la vejez en el Distrito Capital a cargo de la Alcadía Local 51,700,000.00 0.00 0.00 51,700,000.00 0.00 51,700,000.00 | H85: Inversión | I85: 3 | J85: =IF(ISERROR(VLOOKUP(I85,Eje_Pilar!$C$2:$E$47,2,FALSE))," ",VLOOKUP(I85,Eje_Pilar!$C$2:$E$47,2,FALSE)) -> Igualdad y autonomía para una Bogotá incluyente | K85: =IF(ISERROR(VLOOKUP(I85,Eje_Pilar!$C$2:$E$47,3,FALSE))," ",VLOOKUP(I85,Eje_Pilar!$C$2:$E$47,3,FALSE)) -> Pilar 1 Igualdad de Calidad de Vida | L85: 1399 | M85: 80920091 | N85: LEONARDO GUZMAN CEPEDA | O85: 51700000 | T85: 51700000 | U85: 45276667 | V85: 2019-02-11 | W85: 2019-02-12 | X85: 2020-01-11 | Y85: 330 | AD85: X | AF85: 0.8757575822 | AH85: =IF(SUMPRODUCT((A$14:A85=A85)*(B$14:B85=B85)*(C$14:C85=C85))>1,0,1) -> 1 | AI85: Contratos de prestación de servicios profesionales y de apoyo a la gestión | AJ85: Contratación directa | AK85: =IFERROR(VLOOKUP(F85,Tipo!$C$12:$C$27,1,FALSE),"NO") -> Prestación de servicios profesionales y de apoyo a la gestión, o para la ejecución de trabajos artísticos que sólo puedan encomendarse a determinadas personas naturales; | AL85: Inversión | AM85: 3
A86: CPS-073-2019 | B86: 2019 | C86: FDLCB-CD-072-2019 | D86: Contratos de prestación de servicios profesionales y de apoyo a la gestión | E86: Contratación directa | F86: Prestación de servicios profesionales y de apoyo a la gestión, o para la ejecución de trabajos artísticos que sólo puedan encomendarse a determinadas personas naturales; | G86: Prestar sus servicios profesionales como apoyo a la oficina jurídica en el proceso de liquidación de los convenios y contratos suscritos por el Fondo de Desarrollo Local de Ciudad Bolívar y en el seguimiento, depuración y consolidación de la información de las obligaciones por pagar vigentes. | H86: Inversión | I86: 45 | J86: =IF(ISERROR(VLOOKUP(I86,Eje_Pilar!$C$2:$E$47,2,FALSE))," ",VLOOKUP(I86,Eje_Pilar!$C$2:$E$47,2,FALSE)) -> Gobernanza e influencia local, regional e internacional | K86: =IF(ISERROR(VLOOKUP(I86,Eje_Pilar!$C$2:$E$47,3,FALSE))," ",VLOOKUP(I86,Eje_Pilar!$C$2:$E$47,3,FALSE)) -> Eje Transversal 4 Gobierno Legitimo, Fortalecimiento Local y Eficiencia | L86: 1281 | M86: 51940961 | N86: CLARA ROCIO CRISTANCHO MUÑOZ | O86: 50600000 | T86: 50600000 | U86: 44006667 | V86: 2019-02-13 | W86: 2019-02-14 | X86: 2020-01-13 | Y86: 330 | AD86: X | AF86: 0.8696969763 | AH86: =IF(SUMPRODUCT((A$14:A86=A86)*(B$14:B86=B86)*(C$14:C86=C86))>1,0,1) -> 1 | AI86: Contratos de prestación de servicios profesionales y de apoyo a la gestión | AJ86: Contratación directa | AK86: =IFERROR(VLOOKUP(F86,Tipo!$C$12:$C$27,1,FALSE),"NO") -> Prestación de servicios profesionales y de apoyo a la gestión, o para la ejecución de trabajos artísticos que sólo puedan encomendarse a determinadas personas naturales; | AL86: Inversión | AM86: 45
A87: CPS-074-2019 | B87: 2019 | C87: FDLCB-CD-073-2019 | D87: Contratos de prestación de servicios profesionales y de apoyo a la gestión | E87: Contratación directa | F87: Prestación de servicios profesionales y de apoyo a la gestión, o para la ejecución de trabajos artísticos que sólo puedan encomendarse a determinadas personas naturales; | G87: Prestar sus servicios como conductor de volqueta de propiedad del Fondo De Desarrollo Local de Ciudad Bolívar para la realización de labores de mantenimiento de la malla vial y las zonas públicas de la localidad, así como atender las emergencias que surjan en la Localidad de Ciudad Bolívar. | H87: Inversión | I87: 18 | J87: =IF(ISERROR(VLOOKUP(I87,Eje_Pilar!$C$2:$E$47,2,FALSE))," ",VLOOKUP(I87,Eje_Pilar!$C$2:$E$47,2,FALSE)) -> Mejor movilidad para todos | K87: =IF(ISERROR(VLOOKUP(I87,Eje_Pilar!$C$2:$E$47,3,FALSE))," ",VLOOKUP(I87,Eje_Pilar!$C$2:$E$47,3,FALSE)) -> Pilar 2 Democracía Urbana | L87: 1424 | M87: 79922052 | N87: CESAR ALBERTO RODRIGUEZ OVALLE | O87: 25300000 | T87: 25300000 | U87: 22003333 | V87: 2019-02-14 | W87: 2019-02-14 | X87: 2020-01-13 | Y87: 330 | AD87: X | AF87: 0.8696969565 | AH87: =IF(SUMPRODUCT((A$14:A87=A87)*(B$14:B87=B87)*(C$14:C87=C87))>1,0,1) -> 1 | AI87: Contratos de prestación de servicios profesionales y de apoyo a la gestión | AJ87: Contratación directa | AK87: =IFERROR(VLOOKUP(F87,Tipo!$C$12:$C$27,1,FALSE),"NO") -> Prestación de servicios profesionales y de apoyo a la gestión, o para la ejecución de trabajos artísticos que sólo puedan encomendarse a determinadas personas naturales; | AL87: Inversión | AM87: 18
A88: CAR-075-2019 | B88: 2019 | C88: FDLCB-CD-074-2019 | D88: Arrendamiento de bienes muebles | E88: Contratación directa | F88: Prestación de servicios profesionales y de apoyo a la gestión, o para la ejecución de trabajos artísticos que sólo puedan encomendarse a determinadas personas naturales; | G88: Arrendamiento del bien inmueble(local para oficina)N° 201 UBICADO EN LA CARRERA 73 # 59 - 12 sur (Centro Comercial Metrosur), con el fin de fortalecer las funciones de inspección, vigilancia y control que adelanta la Alcaldía Local de Ciudad Bolívar | H88: Inversión | I88: 45 | J88: =IF(ISERROR(VLOOKUP(I88,Eje_Pilar!$C$2:$E$47,2,FALSE))," ",VLOOKUP(I88,Eje_Pilar!$C$2:$E$47,2,FALSE)) -> Gobernanza e influencia local, regional e internacional | K88: =IF(ISERROR(VLOOKUP(I88,Eje_Pilar!$C$2:$E$47,3,FALSE))," ",VLOOKUP(I88,Eje_Pilar!$C$2:$E$47,3,FALSE)) -> Eje Transversal 4 Gobierno Legitimo, Fortalecimiento Local y Eficiencia | L88: 1281 | M88: 900301116 | N88: GRUPO CANO VALENCIA SAS | O88: 15373620 | R88: 1 | S88: 3843405 | T88: 19217025 | U88: =15373620+3843405 -> 19217025 | V88: 2019-02-13 | W88: 2019-02-14 | X88: 2019-06-13 | Y88: 120 | AD88: X | AF88: 1 | AH88: =IF(SUMPRODUCT((A$14:A88=A88)*(B$14:B88=B88)*(C$14:C88=C88))>1,0,1) -> 1 | AI88: Arrendamiento de bienes muebles | AJ88: Contratación directa | AK88: =IFERROR(VLOOKUP(F88,Tipo!$C$12:$C$27,1,FALSE),"NO") -> Prestación de servicios profesionales y de apoyo a la gestión, o para la ejecución de trabajos artísticos que sólo puedan encomendarse a determinadas personas naturales; | AL88: Inversión | AM88: 45
A89: CAR-076-2019 | B89: 2019 | C89: FDLCB-CD-075-2019 | D89: Arrendamiento de bienes muebles | E89: Contratación directa | F89: Prestación de servicios profesionales y de apoyo a la gestión, o para la ejecución de trabajos artísticos que sólo puedan encomendarse a determinadas personas naturales; | G89: Arrendamiento del bien inmueble(local para oficina)N° 211 y N°213 ubicado en la Carrera 73 # 59 - 12 sur (Centro Comercial Metrosur), con el fin de fortalecer las funciones de inspección, vigilancia y control que adelanta la Alcaldía Local de Ciudad Bolívar | H89: Inversión | I89: 45 | J89: =IF(ISERROR(VLOOKUP(I89,Eje_Pilar!$C$2:$E$47,2,FALSE))," ",VLOOKUP(I89,Eje_Pilar!$C$2:$E$47,2,FALSE)) -> Gobernanza e influencia local, regional e internacional | K89: =IF(ISERROR(VLOOKUP(I89,Eje_Pilar!$C$2:$E$47,3,FALSE))," ",VLOOKUP(I89,Eje_Pilar!$C$2:$E$47,3,FALSE)) -> Eje Transversal 4 Gobierno Legitimo, Fortalecimiento Local y Eficiencia | L89: 1281 | M89: 63300538 | N89: MARTHA ELENA RENDON RUIZ | O89: 7428000 | T89: 7428000 | U89: 7428000 | V89: 2019-02-13 | W89: 2019-02-14 | X89: 2019-06-13 | Y89: 120 | AD89: X | AF89: 1 | AH89: =IF(SUMPRODUCT((A$14:A89=A89)*(B$14:B89=B89)*(C$14:C89=C89))>1,0,1) -> 1 | AI89: Arrendamiento de bienes muebles | AJ89: Contratación directa | AK89: =IFERROR(VLOOKUP(F89,Tipo!$C$12:$C$27,1,FALSE),"NO") -> Prestación de servicios profesionales y de apoyo a la gestión, o para la ejecución de trabajos artísticos que sólo puedan encomendarse a determinadas personas naturales; | AL89: Inversión | AM89: 45
A90: CPS-077-2019 | B90: 2019 | C90: FDLCB-CD-076-2019 | D90: Contratos de prestación de servicios profesionales y de apoyo a la gestión | E90: Contratación directa | F90: Prestación de servicios profesionales y de apoyo a la gestión, o para la ejecución de trabajos artísticos que sólo puedan encomendarse a determinadas personas naturales; | G90: Prestar los servicios como administrador de red en lo relacionado con l aplataforma informática y medios tecnológicos de la Alcaldía Local de Ciudad Bolívar y ser el enlace con la Secretaría Distrital de Gobierno | H90: Inversión | I90: 45 | J90: =IF(ISERROR(VLOOKUP(I90,Eje_Pilar!$C$2:$E$47,2,FALSE))," ",VLOOKUP(I90,Eje_Pilar!$C$2:$E$47,2,FALSE)) -> Gobernanza e influencia local, regional e internacional | K90: =IF(ISERROR(VLOOKUP(I90,Eje_Pilar!$C$2:$E$47,3,FALSE))," ",VLOOKUP(I90,Eje_Pilar!$C$2:$E$47,3,FALSE)) -> Eje Transversal 4 Gobierno Legitimo, Fortalecimiento Local y Eficiencia | L90: 1281 | M90: 52824644 | N90: SANDRA MILENA GONZALEZ COY | O90: 45600000 | R90: 2 | S90: 22800000 | T90: 68400000 | U90: 54530000 | V90: 2019-02-12 | W90: 2019-02-12 | X90: 2020-02-13 | Y90: 240 | Z90: 120 | AC90: X | AF90: 0.7972222222 | AH90: =IF(SUMPRODUCT((A$14:A90=A90)*(B$14:B90=B90)*(C$14:C90=C90))>1,0,1) -> 1 | AI90: Contratos de prestación de servicios profesionales y de apoyo a la gestión | AJ90: Contratación directa | AK90: =IFERROR(VLOOKUP(F90,Tipo!$C$12:$C$27,1,FALSE),"NO") -> Prestación de servicios profesionales y de apoyo a la gestión, o para la ejecución de trabajos artísticos que sólo puedan encomendarse a determinadas personas naturales; | AL90: Inversión | AM90: 45
A91: CPS-078-2019 | B91: 2019 | C91: FDLCB-CD-077-2019 | D91: Contratos de prestación de servicios profesionales y de apoyo a la gestión | E91: Contratación directa | F91: Prestación de servicios profesionales y de apoyo a la gestión, o para la ejecución de trabajos artísticos que sólo puedan encomendarse a determinadas personas naturales; | G91: Prestar los servicios profesionales en el Despacho de la Alcaldía Local de Ciudad Bolívar para la respuesta efectiva y oportuna a los requerimientos presentados, revisión de las actuaciones, manejo de relaciones en sus distintos niveles y demás asuntos de competencia de la Alcaldía Local de Ciudad Bolívar | H91: Inversión | I91: 45 | J91: =IF(ISERROR(VLOOKUP(I91,Eje_Pilar!$C$2:$E$47,2,FALSE))," ",VLOOKUP(I91,Eje_Pilar!$C$2:$E$47,2,FALSE)) -> Gobernanza e influencia local, regional e internacional | K91: =IF(ISERROR(VLOOKUP(I91,Eje_Pilar!$C$2:$E$47,3,FALSE))," ",VLOOKUP(I91,Eje_Pilar!$C$2:$E$47,3,FALSE)) -> Eje Transversal 4 Gobierno Legitimo, Fortalecimiento Local y Eficiencia | L91: 1281 | M91: 63319152 | N91: CARMEN HERCILIA GARCIA FLOREZ | O91: 50600000 | R91: 1 | S91: 11960000 | T91: 62560000 | U91: 44006667 | V91: 2019-02-13 | W91: 2019-02-14 | X91: 2020-03-31 | Y91: 330 | Z91: 78 | AC91: X | AF91: 0.7034313779 | AH91: =IF(SUMPRODUCT((A$14:A91=A91)*(B$14:B91=B91)*(C$14:C91=C91))>1,0,1) -> 1 | AI91: Contratos de prestación de servicios profesionales y de apoyo a la gestión | AJ91: Contratación directa | AK91: =IFERROR(VLOOKUP(F91,Tipo!$C$12:$C$27,1,FALSE),"NO") -> Prestación de servicios profesionales y de apoyo a la gestión, o para la ejecución de trabajos artísticos que sólo puedan encomendarse a determinadas personas naturales; | AL91: Inversión | AM91: 45
A92: CPS-079-2019 | B92: 2019 | C92: FDLCB-CD-078-2019 | D92: Contratos de prestación de servicios profesionales y de apoyo a la gestión | E92: Contratación directa | F92: Prestación de servicios profesionales y de apoyo a la gestión, o para la ejecución de trabajos artísticos que sólo puedan encomendarse a determinadas personas naturales; | G92: Prestar sus servicios asistenciales de apoyo ára las labores operativas que se adelantan en el almacén de la Alcaldía Local de Ciudad Bolívar | H92: Inversión | I92: 45 | J92: =IF(ISERROR(VLOOKUP(I92,Eje_Pilar!$C$2:$E$47,2,FALSE))," ",VLOOKUP(I92,Eje_Pilar!$C$2:$E$47,2,FALSE)) -> Gobernanza e influencia local, regional e internacional | K92: =IF(ISERROR(VLOOKUP(I92,Eje_Pilar!$C$2:$E$47,3,FALSE))," ",VLOOKUP(I92,Eje_Pilar!$C$2:$E$47,3,FALSE)) -> Eje Transversal 4 Gobierno Legitimo, Fortalecimiento Local y Eficiencia | L92: 1281 | M92: 5506182 | N92: CARMEN EMIRO PEINADO ARDILA | O92: 26400000 | R92: 1 | S92: 6240000 | T92: 32640000 | U92: 22960000 | V92: 2019-02-12 | W92: 2019-02-14 | X92: 2020-03-31 | Y92: 330 | Z92: 78 | AC92: X | AF92: 0.7034313725 | AH92: =IF(SUMPRODUCT((A$14:A92=A92)*(B$14:B92=B92)*(C$14:C92=C92))>1,0,1) -> 1 | AI92: Contratos de prestación de servicios profesionales y de apoyo a la gestión | AJ92: Contratación directa | AK92: =IFERROR(VLOOKUP(F92,Tipo!$C$12:$C$27,1,FALSE),"NO") -> Prestación de servicios profesionales y de apoyo a la gestión, o para la ejecución de trabajos artísticos que sólo puedan encomendarse a determinadas personas naturales; | AL92: Inversión | AM92: 45
A93: CPS-080-2019 | B93: 2019 | C93: FDLCB-CD-079-2019 | D93: Contratos de prestación de servicios profesionales y de apoyo a la gestión | E93: Contratación directa | F93: Prestación de servicios profesionales y de apoyo a la gestión, o para la ejecución de trabajos artísticos que sólo puedan encomendarse a determinadas personas naturales; | G93: Prestar sus servicios como conductor de volqueta de propiedad del Fondo del Fondo de Desarrollo Local de Ciudad Bolívar para la realización labores de mantenimiento de la malla vial y las zonas publicas de la Localidad, así como atender las emergencias que surjan en la Localidad de Ciudad Bolívar | H93: Inversión | I93: 18 | J93: =IF(ISERROR(VLOOKUP(I93,Eje_Pilar!$C$2:$E$47,2,FALSE))," ",VLOOKUP(I93,Eje_Pilar!$C$2:$E$47,2,FALSE)) -> Mejor movilidad para todos | K93: =IF(ISERROR(VLOOKUP(I93,Eje_Pilar!$C$2:$E$47,3,FALSE))," ",VLOOKUP(I93,Eje_Pilar!$C$2:$E$47,3,FALSE)) -> Pilar 2 Democracía Urbana | L93: 1424 | M93: 79990673 | N93: HERMES FABIAN CARVAJAL RODRIGUEZ | O93: 25300000 | R93: 1 | S93: 5980000 | T93: 31280000 | U93: 22003333 | V93: 2019-02-14 | W93: 2019-02-14 | X93: 2020-03-31 | Y93: 330 | Z93: 78 | AC93: X | AF93: 0.7034313619 | AH93: =IF(SUMPRODUCT((A$14:A93=A93)*(B$14:B93=B93)*(C$14:C93=C93))>1,0,1) -> 1 | AI93: Contratos de prestación de servicios profesionales y de apoyo a la gestión | AJ93: Contratación directa | AK93: =IFERROR(VLOOKUP(F93,Tipo!$C$12:$C$27,1,FALSE),"NO") -> Prestación de servicios profesionales y de apoyo a la gestión, o para la ejecución de trabajos artísticos que sólo puedan encomendarse a determinadas personas naturales; | AL93: Inversión | AM93: 18
A94: CPS-081-2019 | B94: 2019 | C94: FDLCB-CD-080-2019 | D94: Contratos de prestación de servicios profesionales y de apoyo a la gestión | E94: Contratación directa | F94: Prestación de servicios profesionales y de apoyo a la gestión, o para la ejecución de trabajos artísticos que sólo puedan encomendarse a determinadas personas naturales; | G94: Prestar sus servicios como conductor de volqueta de propiedad del Fondo De Desarrollo Local de Ciudad Bolívar para la realización de labores de mantenimiento de la malla vial y las zonas públicas de la localidad, así como atender las emergencias que surjan en la localidad. | H94: Inversión | I94: 18 | J94: =IF(ISERROR(VLOOKUP(I94,Eje_Pilar!$C$2:$E$47,2,FALSE))," ",VLOOKUP(I94,Eje_Pilar!$C$2:$E$47,2,FALSE)) -> Mejor movilidad para todos | K94: =IF(ISERROR(VLOOKUP(I94,Eje_Pilar!$C$2:$E$47,3,FALSE))," ",VLOOKUP(I94,Eje_Pilar!$C$2:$E$47,3,FALSE)) -> Pilar 2 Democracía Urbana | L94: 1424 | M94: 79418734 | N94: ALDOD DIAZ SARMIENTO | O94: 25300000 | T94: 25300000 | U94: 22003333 | V94: 2019-02-12 | W94: 2019-02-14 | X94: 2020-01-13 | Y94: 330 | AD94: X | AF94: 0.8696969565 | AH94: =IF(SUMPRODUCT((A$14:A94=A94)*(B$14:B94=B94)*(C$14:C94=C94))>1,0,1) -> 1 | AI94: Contratos de prestación de servicios profesionales y de apoyo a la gestión | AJ94: Contratación directa | AK94: =IFERROR(VLOOKUP(F94,Tipo!$C$12:$C$27,1,FALSE),"NO") -> Prestación de servicios profesionales y de apoyo a la gestión, o para la ejecución de trabajos artísticos que sólo puedan encomendarse a determinadas personas naturales; | AL94: Inversión | AM94: 18
A95: CPS-082-2019 | B95: 2019 | C95: FDLCB-CD-081-2019 | D95: Contratos de prestación de servicios profesionales y de apoyo a la gestión | E95: Contratación directa | F95: Prestación de servicios profesionales y de apoyo a la gestión, o para la ejecución de trabajos artísticos que sólo puedan encomendarse a determinadas personas naturales; | G95: Prestar los servicios profesionales para realizar todas las actividades concernientes al desarrollo de los proyectos de infraestructura en los componetes que le sean designados en el marco del Plan de Desarrollo Local 2017 - 2020 | H95: Inversión | I95: 45 | J95: =IF(ISERROR(VLOOKUP(I95,Eje_Pilar!$C$2:$E$47,2,FALSE))," ",VLOOKUP(I95,Eje_Pilar!$C$2:$E$47,2,FALSE)) -> Gobernanza e influencia local, regional e internacional | K95: =IF(ISERROR(VLOOKUP(I95,Eje_Pilar!$C$2:$E$47,3,FALSE))," ",VLOOKUP(I95,Eje_Pilar!$C$2:$E$47,3,FALSE)) -> Eje Transversal 4 Gobierno Legitimo, Fortalecimiento Local y Eficiencia | L95: 1281 | M95: 1032376594 | N95: PATRICIA SOLANO LEON | O95: 56100000 | T95: 56100000 | U95: 27370000 | V95: 2019-02-12 | W95: 2019-03-06 | X95: 2020-05-19 | Y95: 330 | AC95: X | AF95: 0.4878787879 | AH95: =IF(SUMPRODUCT((A$14:A95=A95)*(B$14:B95=B95)*(C$14:C95=C95))>1,0,1) -> 1 | AI95: Contratos de prestación de servicios profesionales y de apoyo a la gestión | AJ95: Contratación directa | AK95: =IFERROR(VLOOKUP(F95,Tipo!$C$12:$C$27,1,FALSE),"NO") -> Prestación de servicios profesionales y de apoyo a la gestión, o para la ejecución de trabajos artísticos que sólo puedan encomendarse a determinadas personas naturales; | AL95: Inversión | AM95: 45
A96: CPS-083-2019 | B96: 2019 | C96: FDLCB-CD-082-2019 | D96: Contratos de prestación de servicios profesionales y de apoyo a la gestión | E96: Contratación directa | F96: Prestación de servicios profesionales y de apoyo a la gestión, o para la ejecución de trabajos artísticos que sólo puedan encomendarse a determinadas personas naturales; | G96: Prestar los servicios técnicos para la operación, seguimiento y cumplimiento de los procesos y procedimientos del servicio apoyos para la seguridad económica Tpo C requridos para el oportuno y adecuado resgistro, cruce y reporte de los datos en el sistema Misional - SIRBE, que contribuyan a la garantía de los derechos de la población mayor en el marco de la Política Pública Social para el Envejecimiento y la Vejez en el Distrito Capital a cargo de la ASlcaldía Local | H96: Inversión | I96: 3 | J96: =IF(ISERROR(VLOOKUP(I96,Eje_Pilar!$C$2:$E$47,2,FALSE))," ",VLOOKUP(I96,Eje_Pilar!$C$2:$E$47,2,FALSE)) -> Igualdad y autonomía para una Bogotá incluyente | K96: =IF(ISERROR(VLOOKUP(I96,Eje_Pilar!$C$2:$E$47,3,FALSE))," ",VLOOKUP(I96,Eje_Pilar!$C$2:$E$47,3,FALSE)) -> Pilar 1 Igualdad de Calidad de Vida | L96: 1399 | M96: 1016037910 | N96: JULY VANESA MEZA SANCHEZ | O96: 33000000 | T96: 33000000 | U96: 28700000 | V96: 2019-02-12 | W96: 2019-02-14 | X96: 2020-01-13 | Y96: 330 | AD96: X | AF96: 0.8696969697 | AH96: =IF(SUMPRODUCT((A$14:A96=A96)*(B$14:B96=B96)*(C$14:C96=C96))>1,0,1) -> 1 | AI96: Contratos de prestación de servicios profesionales y de apoyo a la gestión | AJ96: Contratación directa | AK96: =IFERROR(VLOOKUP(F96,Tipo!$C$12:$C$27,1,FALSE),"NO") -> Prestación de servicios profesionales y de apoyo a la gestión, o para la ejecución de trabajos artísticos que sólo puedan encomendarse a determinadas personas naturales; | AL96: Inversión | AM96: 3
A97: CPS-084-2019 | B97: 2019 | C97: FDLCB-CD-083-2019 | D97: Contratos de prestación de servicios profesionales y de apoyo a la gestión | E97: Contratación directa | F97: Prestación de servicios profesionales y de apoyo a la gestión, o para la ejecución de trabajos artísticos que sólo puedan encomendarse a determinadas personas naturales; | G97: Prestar sus servicios para realizar actividades de apoyo en el CDI del Fondo de Desarrollo Local de de Ciudad Bolívar. | H97: Inversión | I97: 45 | J97: =IF(ISERROR(VLOOKUP(I97,Eje_Pilar!$C$2:$E$47,2,FALSE))," ",VLOOKUP(I97,Eje_Pilar!$C$2:$E$47,2,FALSE)) -> Gobernanza e influencia local, regional e internacional | K97: =IF(ISERROR(VLOOKUP(I97,Eje_Pilar!$C$2:$E$47,3,FALSE))," ",VLOOKUP(I97,Eje_Pilar!$C$2:$E$47,3,FALSE)) -> Eje Transversal 4 Gobierno Legitimo, Fortalecimiento Local y Eficiencia | L97: 1281 | M97: 52132884 | N97: LUCERO FRANCO | O97: 25300000 | R97: 1 | S97: 5903333 | T97: 31203333 | U97: 21926667 | V97: 2019-02-13 | W97: 2019-02-15 | X97: 2020-03-31 | Y97: 330 | Z97: 77 | AC97: X | AF97: 0.7027027209 | AH97: =IF(SUMPRODUCT((A$14:A97=A97)*(B$14:B97=B97)*(C$14:C97=C97))>1,0,1) -> 1 | AI97: Contratos de prestación de servicios profesionales y de apoyo a la gestión | AJ97: Contratación directa | AK97: =IFERROR(VLOOKUP(F97,Tipo!$C$12:$C$27,1,FALSE),"NO") -> Prestación de servicios profesionales y de apoyo a la gestión, o para la ejecución de trabajos artísticos que sólo puedan encomendarse a determinadas personas naturales; | AL97: Inversión | AM97: 45
A98: CPS-085-2019 | B98: 2019 | C98: FDLCB-CD-084-2019 | D98: Contratos de prestación de servicios profesionales y de apoyo a la gestión | E98: Contratación directa | F98: Prestación de servicios profesionales y de apoyo a la gestión, o para la ejecución de trabajos artísticos que sólo puedan encomendarse a determinadas personas naturales; | G98: Prestar sus servicios como conductor de vehiculo liviano de propiedad del Fondo de Desarrollo Local de de Ciudad Bolívar. | H98: Inversión | I98: 45 | J98: =IF(ISERROR(VLOOKUP(I98,Eje_Pilar!$C$2:$E$47,2,FALSE))," ",VLOOKUP(I98,Eje_Pilar!$C$2:$E$47,2,FALSE)) -> Gobernanza e influencia local, regional e internacional | K98: =IF(ISERROR(VLOOKUP(I98,Eje_Pilar!$C$2:$E$47,3,FALSE))," ",VLOOKUP(I98,Eje_Pilar!$C$2:$E$47,3,FALSE)) -> Eje Transversal 4 Gobierno Legitimo, Fortalecimiento Local y Eficiencia | L98: 1281 | M98: 79603539 | N98: JULIO CESAR BARRANTES ACOSTA | O98: 25300000 | R98: 1 | S98: 5213333 | T98: 30513333 | U98: 21236666 | V98: 2019-02-14 | W98: 2019-02-14 | X98: 2020-03-31 | Y98: 330 | Z98: 68 | AC98: X | AF98: 0.6959798853 | AH98: =IF(SUMPRODUCT((A$14:A98=A98)*(B$14:B98=B98)*(C$14:C98=C98))>1,0,1) -> 1 | AI98: Contratos de prestación de servicios profesionales y de apoyo a la gestión | AJ98: Contratación directa | AK98: =IFERROR(VLOOKUP(F98,Tipo!$C$12:$C$27,1,FALSE),"NO") -> Prestación de servicios profesionales y de apoyo a la gestión, o para la ejecución de trabajos artísticos que sólo puedan encomendarse a determinadas personas naturales; | AL98: Inversión | AM98: 45
A99: CPS-086-2019 | B99: 2019 | C99: FDLCB-CD-085-2019 | D99: Contratos de prestación de servicios profesionales y de apoyo a la gestión | E99: Contratación directa | F99: Prestación de servicios profesionales y de apoyo a la gestión, o para la ejecución de trabajos artísticos que sólo puedan encomendarse a determinadas personas naturales; | G99: Apoyar jurídicamente la ejecución de las acciones requeridas para trámite e impulso procesal de las actuaciones contravencioneales y/o querellas que cursen en las inspecciones de policía de la Localidad | H99: Inversión | I99: 45 | J99: =IF(ISERROR(VLOOKUP(I99,Eje_Pilar!$C$2:$E$47,2,FALSE))," ",VLOOKUP(I99,Eje_Pilar!$C$2:$E$47,2,FALSE)) -> Gobernanza e influencia local, regional e internacional | K99: =IF(ISERROR(VLOOKUP(I99,Eje_Pilar!$C$2:$E$47,3,FALSE))," ",VLOOKUP(I99,Eje_Pilar!$C$2:$E$47,3,FALSE)) -> Eje Transversal 4 Gobierno Legitimo, Fortalecimiento Local y Eficiencia | L99: 1281 | M99: 1022396204 | N99: DIXON RICARDO CARRASCAL FRANCO | O99: 51700000 | R99: 1 | S99: 12220000 | T99: 63920000 | U99: 44963333 | V99: 2019-02-13 | W99: 2019-02-14 | X99: 2020-01-13 | Y99: 330 | Z99: 78 | AD99: X | AF99: 0.7034313673 | AH99: =IF(SUMPRODUCT((A$14:A99=A99)*(B$14:B99=B99)*(C$14:C99=C99))>1,0,1) -> 1 | AI99: Contratos de prestación de servicios profesionales y de apoyo a la gestión | AJ99: Contratación directa | AK99: =IFERROR(VLOOKUP(F99,Tipo!$C$12:$C$27,1,FALSE),"NO") -> Prestación de servicios profesionales y de apoyo a la gestión, o para la ejecución de trabajos artísticos que sólo puedan encomendarse a determinadas personas naturales; | AL99: Inversión | AM99: 45
A100: CPS-087-2019 | B100: 2019 | C100: FDLCB-CD-086-2019 | D100: Contratos de prestación de servicios profesionales y de apoyo a la gestión | E100: Contratación directa | F100: Prestación de servicios profesionales y de apoyo a la gestión, o para la ejecución de trabajos artísticos que sólo puedan encomendarse a determinadas personas naturales; | G100: Prestar sus servicios como conductor de volqueta de propiedad del Fondo del Fondo de Desarrollo Local de Ciudad Bolívar para la realización labores de mantenimiento de la malla vial y las zonas publicas de la Localidad, así como atender las emergencias que surjan en la Localidad de Ciudad Bolívar | H100: Inversión | I100: 18 | J100: =IF(ISERROR(VLOOKUP(I100,Eje_Pilar!$C$2:$E$47,2,FALSE))," ",VLOOKUP(I100,Eje_Pilar!$C$2:$E$47,2,FALSE)) -> Mejor movilidad para todos | K100: =IF(ISERROR(VLOOKUP(I100,Eje_Pilar!$C$2:$E$47,3,FALSE))," ",VLOOKUP(I100,Eje_Pilar!$C$2:$E$47,3,FALSE)) -> Pilar 2 Democracía Urbana | L100: 1424 | M100: 1018431014 | N100: CESAR AUGUSTO ALVARADO LOZANO | O100: 25300000 | R100: 1 | S100: 5903333 | T100: 31203333 | U100: 21926667 | V100: 2019-02-15 | W100: 2019-02-15 | X100: 2020-01-14 | Y100: 330 | Z100: 77 | AC100: X | AF100: 0.7027027209 | AH100: =IF(SUMPRODUCT((A$14:A100=A100)*(B$14:B100=B100)*(C$14:C100=C100))>1,0,1) -> 1 | AI100: Contratos de prestación de servicios profesionales y de apoyo a la gestión | AJ100: Contratación directa | AK100: =IFERROR(VLOOKUP(F100,Tipo!$C$12:$C$27,1,FALSE),"NO") -> Prestación de servicios profesionales y de apoyo a la gestión, o para la ejecución de trabajos artísticos que sólo puedan encomendarse a determinadas personas naturales; | AL100: Inversión | AM100: 18
A101: CPS-088-2019 | B101: 2019 | C101: FDLCB-CD-087-2019 | D101: Contratos de prestación de servicios profesionales y de apoyo a la gestión | E101: Contratación directa | F101: Prestación de servicios profesionales y de apoyo a la gestión, o para la ejecución de trabajos artísticos que sólo puedan encomendarse a determinadas personas naturales; | G101: Apoyar jurídicamente la ejecución de las acciones requeridas para trámite e impulso procesal de las actuaciones contravencioneales y/o querellas que cursen en las inspecciones de policía de la Localidad | H101: Inversión | I101: 45 | J101: =IF(ISERROR(VLOOKUP(I101,Eje_Pilar!$C$2:$E$47,2,FALSE))," ",VLOOKUP(I101,Eje_Pilar!$C$2:$E$47,2,FALSE)) -> Gobernanza e influencia local, regional e internacional | K101: =IF(ISERROR(VLOOKUP(I101,Eje_Pilar!$C$2:$E$47,3,FALSE))," ",VLOOKUP(I101,Eje_Pilar!$C$2:$E$47,3,FALSE)) -> Eje Transversal 4 Gobierno Legitimo, Fortalecimiento Local y Eficiencia | L101: 1281 | M101: 1010197959 | N101: NATALIA ALEJANDRA DIAZ NIETO | O101: 51700000 | R101: 1 | S101: 12220000 | T101: 63920000 | U101: 44963334 | V101: 2019-02-13 | W101: 2019-02-14 | X101: 2020-03-31 | Y101: 330 | Z101: 78 | AC101: X | AF101: 0.703431383 | AH101: =IF(SUMPRODUCT((A$14:A101=A101)*(B$14:B101=B101)*(C$14:C101=C101))>1,0,1) -> 1 | AI101: Contratos de prestación de servicios profesionales y de apoyo a la gestión | AJ101: Contratación directa | AK101: =IFERROR(VLOOKUP(F101,Tipo!$C$12:$C$27,1,FALSE),"NO") -> Prestación de servicios profesionales y de apoyo a la gestión, o para la ejecución de trabajos artísticos que sólo puedan encomendarse a determinadas personas naturales; | AL101: Inversión | AM101: 45
A102: CPS-089-2019 | B102: 2019 | C102: FDLCB-CD-088-2019 | D102: Contratos de prestación de servicios profesionales y de apoyo a la gestión | E102: Contratación directa | F102: Prestación de servicios profesionales y de apoyo a la gestión, o para la ejecución de trabajos artísticos que sólo puedan encomendarse a determinadas personas naturales; | G102: Prestar los servicios profesionales para para la programación, organización y realización de actividades que se desarrollen en la casa de la cuiltura de Arborizadora baja ubicada en la Localidad de Ciudad Bolívar | H102: Inversión | I102: 45 | J102: =IF(ISERROR(VLOOKUP(I102,Eje_Pilar!$C$2:$E$47,2,FALSE))," ",VLOOKUP(I102,Eje_Pilar!$C$2:$E$47,2,FALSE)) -> Gobernanza e influencia local, regional e internacional | K102: =IF(ISERROR(VLOOKUP(I102,Eje_Pilar!$C$2:$E$47,3,FALSE))," ",VLOOKUP(I102,Eje_Pilar!$C$2:$E$47,3,FALSE)) -> Eje Transversal 4 Gobierno Legitimo, Fortalecimiento Local y Eficiencia | L102: 1281 | M102: 79901601 | N102: DANIEL EDUARDO RODRIGUEZ TORO | O102: 51700000 | T102: 51700000 | U102: 44806667 | V102: 2019-02-12 | W102: 2019-02-15 | X102: 2020-01-14 | Y102: 330 | AC102: X | AF102: 0.8666666731 | AH102: =IF(SUMPRODUCT((A$14:A102=A102)*(B$14:B102=B102)*(C$14:C102=C102))>1,0,1) -> 1 | AI102: Contratos de prestación de servicios profesionales y de apoyo a la gestión | AJ102: Contratación directa | AK102: =IFERROR(VLOOKUP(F102,Tipo!$C$12:$C$27,1,FALSE),"NO") -> Prestación de servicios profesionales y de apoyo a la gestión, o para la ejecución de trabajos artísticos que sólo puedan encomendarse a determinadas personas naturales; | AL102: Inversión | AM102: 45
A103: CPS-090-2019 | B103: 2019 | C103: FDLCB-CD-089-2019 | D103: Contratos de prestación de servicios profesionales y de apoyo a la gestión | E103: Contratación directa | F103: Prestación de servicios profesionales y de apoyo a la gestión, o para la ejecución de trabajos artísticos que sólo puedan encomendarse a determinadas personas naturales; | G103: Prestar los servicios de apoyo asistencial en actividades de gestión documental en la Alcaldía Local de Ciudad Bolívar. | H103: Inversión | I103: 45 | J103: =IF(ISERROR(VLOOKUP(I103,Eje_Pilar!$C$2:$E$47,2,FALSE))," ",VLOOKUP(I103,Eje_Pilar!$C$2:$E$47,2,FALSE)) -> Gobernanza e influencia local, regional e internacional | K103: =IF(ISERROR(VLOOKUP(I103,Eje_Pilar!$C$2:$E$47,3,FALSE))," ",VLOOKUP(I103,Eje_Pilar!$C$2:$E$47,3,FALSE)) -> Eje Transversal 4 Gobierno Legitimo, Fortalecimiento Local y Eficiencia | L103: 1281 | M103: 1014221158 | N103: JHON JAIRO ARIAS CADAVID | O103: 25300000 | R103: 1 | S103: 5980000 | T103: 31280000 | U103: 22003333 | V103: 2019-02-14 | W103: 2019-02-14 | X103: 2020-01-13 | Y103: 330 | Z103: 78 | AC103: X | AF103: 0.7034313619 | AH103: =IF(SUMPRODUCT((A$14:A103=A103)*(B$14:B103=B103)*(C$14:C103=C103))>1,0,1) -> 1 | AI103: Contratos de prestación de servicios profesionales y de apoyo a la gestión | AJ103: Contratación directa | AK103: =IFERROR(VLOOKUP(F103,Tipo!$C$12:$C$27,1,FALSE),"NO") -> Prestación de servicios profesionales y de apoyo a la gestión, o para la ejecución de trabajos artísticos que sólo puedan encomendarse a determinadas personas naturales; | AL103: Inversión | AM103: 45
A104: CPS-091-2019 | B104: 2019 | C104: FDLCB-CD-090-2019 | D104: Contratos de prestación de servicios profesionales y de apoyo a la gestión | E104: Contratación directa | F104: Prestación de servicios profesionales y de apoyo a la gestión, o para la ejecución de trabajos artísticos que sólo puedan encomendarse a determinadas personas naturales; | G104: Prestar servicios profesionles para apoyar técnicamnete a los responsables e integrantes de los procesos en la implementación de herramientas de gestión, siguiendo los lineamientos metodológicos establecidos por la oficina Asesora de Planeación de la Secretaría Distrital de Gobierno. | H104: Inversión | I104: 45 | J104: =IF(ISERROR(VLOOKUP(I104,Eje_Pilar!$C$2:$E$47,2,FALSE))," ",VLOOKUP(I104,Eje_Pilar!$C$2:$E$47,2,FALSE)) -> Gobernanza e influencia local, regional e internacional | K104: =IF(ISERROR(VLOOKUP(I104,Eje_Pilar!$C$2:$E$47,3,FALSE))," ",VLOOKUP(I104,Eje_Pilar!$C$2:$E$47,3,FALSE)) -> Eje Transversal 4 Gobierno Legitimo, Fortalecimiento Local y Eficiencia | L104: 1281 | M104: 1030544996 | N104: JEIMMY ALEXANDRA RODRIGUEZ BOLIVAR | O104: 51700000 | R104: 1 | S104: 12220000 | T104: 63920000 | U104: 44963333 | V104: 2019-02-14 | W104: 2019-02-14 | X104: 2020-03-31 | Y104: 330 | Z104: 78 | AC104: X | AF104: 0.7034313673 | AH104: =IF(SUMPRODUCT((A$14:A104=A104)*(B$14:B104=B104)*(C$14:C104=C104))>1,0,1) -> 1 | AI104: Contratos de prestación de servicios profesionales y de apoyo a la gestión | AJ104: Contratación directa | AK104: =IFERROR(VLOOKUP(F104,Tipo!$C$12:$C$27,1,FALSE),"NO") -> Prestación de servicios profesionales y de apoyo a la gestión, o para la ejecución de trabajos artísticos que sólo puedan encomendarse a determinadas personas naturales; | AL104: Inversión | AM104: 45
A105: CPS-092-2019 | B105: 2019 | C105: FDLCB-CD-091-2019 | D105: Contratos de prestación de servicios profesionales y de apoyo a la gestión | E105: Contratación directa | F105: Prestación de servicios profesionales y de apoyo a la gestión, o para la ejecución de trabajos artísticos que sólo puedan encomendarse a determinadas personas naturales; | G105: Prestar los servicios de apoyo técnico para realizar actividades administrativas y contables que se adeLantan en la oficina de contabilidad del Fondo de Desarrollo local de Ciudad Bolívar | H105: Inversión | I105: 45 | J105: =IF(ISERROR(VLOOKUP(I105,Eje_Pilar!$C$2:$E$47,2,FALSE))," ",VLOOKUP(I105,Eje_Pilar!$C$2:$E$47,2,FALSE)) -> Gobernanza e influencia local, regional e internacional | K105: =IF(ISERROR(VLOOKUP(I105,Eje_Pilar!$C$2:$E$47,3,FALSE))," ",VLOOKUP(I105,Eje_Pilar!$C$2:$E$47,3,FALSE)) -> Eje Transversal 4 Gobierno Legitimo, Fortalecimiento Local y Eficiencia | L105: 1281 | M105: 52932560 | N105: HEIDI MANYELI ROJAS MARTINEZ | O105: 34100000 | R105: 1 | S105: 7336667 | T105: 41436667 | U105: 28933334 | V105: 2019-02-13 | W105: 2019-02-14 | X105: 2020-03-31 | Y105: 330 | Z105: 71 | AC105: X | AF105: 0.6982543746 | AH105: =IF(SUMPRODUCT((A$14:A105=A105)*(B$14:B105=B105)*(C$14:C105=C105))>1,0,1) -> 1 | AI105: Contratos de prestación de servicios profesionales y de apoyo a la gestión | AJ105: Contratación directa | AK105: =IFERROR(VLOOKUP(F105,Tipo!$C$12:$C$27,1,FALSE),"NO") -> Prestación de servicios profesionales y de apoyo a la gestión, o para la ejecución de trabajos artísticos que sólo puedan encomendarse a determinadas personas naturales; | AL105: Inversión | AM105: 45
A106: CPS-093-2019 | B106: 2019 | C106: FDLCB-CD-092-2019 | D106: Contratos de prestación de servicios profesionales y de apoyo a la gestión | E106: Contratación directa | F106: Prestación de servicios profesionales y de apoyo a la gestión, o para la ejecución de trabajos artísticos que sólo puedan encomendarse a determinadas personas naturales; | G106: Prestar sus servicios especializados para apoyar, orientar y liderar los proyectos, obras y actividades relacionadas eon el área de infraestructura y espacio público del Fondo de Desarrollo Local de Ciudad Bolívar | H106: Inversión | I106: 45 | J106: =IF(ISERROR(VLOOKUP(I106,Eje_Pilar!$C$2:$E$47,2,FALSE))," ",VLOOKUP(I106,Eje_Pilar!$C$2:$E$47,2,FALSE)) -> Gobernanza e influencia local, regional e internacional | K106: =IF(ISERROR(VLOOKUP(I106,Eje_Pilar!$C$2:$E$47,3,FALSE))," ",VLOOKUP(I106,Eje_Pilar!$C$2:$E$47,3,FALSE)) -> Eje Transversal 4 Gobierno Legitimo, Fortalecimiento Local y Eficiencia | L106: 1281 | M106: 79505644 | N106: JUAN ALFREDO TORRES PRIETO | O106: 79200000 | R106: 1 | S106: 18480000 | T106: 97680000 | U106: 68640000 | V106: 2019-02-14 | W106: 2019-02-15 | X106: 2020-03-31 | Y106: 330 | Z106: 77 | AC106: X | AF106: 0.7027027027 | AH106: =IF(SUMPRODUCT((A$14:A106=A106)*(B$14:B106=B106)*(C$14:C106=C106))>1,0,1) -> 1 | AI106: Contratos de prestación de servicios profesionales y de apoyo a la gestión | AJ106: Contratación directa | AK106: =IFERROR(VLOOKUP(F106,Tipo!$C$12:$C$27,1,FALSE),"NO") -> Prestación de servicios profesionales y de apoyo a la gestión, o para la ejecución de trabajos artísticos que sólo puedan encomendarse a determinadas personas naturales; | AL106: Inversión | AM106: 45
A107: CPS-094-2019 | B107: 2019 | C107: FDLCB-CD-093-2019 | D107: Contratos de prestación de servicios profesionales y de apoyo a la gestión | E107: Contratación directa | F107: Prestación de servicios profesionales y de apoyo a la gestión, o para la ejecución de trabajos artísticos que sólo puedan encomendarse a determinadas personas naturales; | G107: Prestar los servicios de apoyo técnico para el desarrollo de las actividades administrativas y operativas que se adelantan en el almacén de la Alcaldía Local de Ciudad Bolívar. | H107: Inversión | I107: 45 | J107: =IF(ISERROR(VLOOKUP(I107,Eje_Pilar!$C$2:$E$47,2,FALSE))," ",VLOOKUP(I107,Eje_Pilar!$C$2:$E$47,2,FALSE)) -> Gobernanza e influencia local, regional e internacional | K107: =IF(ISERROR(VLOOKUP(I107,Eje_Pilar!$C$2:$E$47,3,FALSE))," ",VLOOKUP(I107,Eje_Pilar!$C$2:$E$47,3,FALSE)) -> Eje Transversal 4 Gobierno Legitimo, Fortalecimiento Local y Eficiencia | L107: 1281 | M107: 1026562172 | N107: HECTOR ESTIVEN GUEVARA HERNANDEZ | O107: 40700000 | R107: 1 | S107: 8880000 | T107: 49580000 | U107: 34656667 | V107: 2019-02-20 | W107: 2019-02-20 | X107: 2020-03-31 | Y107: 330 | Z107: 72 | AC107: X | AF107: 0.6990049818 | AH107: =IF(SUMPRODUCT((A$14:A107=A107)*(B$14:B107=B107)*(C$14:C107=C107))>1,0,1) -> 1 | AI107: Contratos de prestación de servicios profesionales y de apoyo a la gestión | AJ107: Contratación directa | AK107: =IFERROR(VLOOKUP(F107,Tipo!$C$12:$C$27,1,FALSE),"NO") -> Prestación de servicios profesionales y de apoyo a la gestión, o para la ejecución de trabajos artísticos que sólo puedan encomendarse a determinadas personas naturales; | AL107: Inversión | AM107: 45
A108: CPS-095-2019 | B108: 2019 | C108: FDLCB-CD-094-2019 | D108: Contratos de prestación de servicios profesionales y de apoyo a la gestión | E108: Contratación directa | F108: Prestación de servicios profesionales y de apoyo a la gestión, o para la ejecución de trabajos artísticos que sólo puedan encomendarse a determinadas personas naturales; | G108: Prestar sus servicios como conductor de maquinaría pesada de propiedad del Fondo del Fondo de Desarrollo Local de Ciudad Bolívar para la realización labores de mantenimiento de la malla vial y las zonas publicas de la Localidad, así como atender las emergencias que surjan en la Localidad de Ciudad Bolívar | H108: Inversión | I108: 18 | J108: =IF(ISERROR(VLOOKUP(I108,Eje_Pilar!$C$2:$E$47,2,FALSE))," ",VLOOKUP(I108,Eje_Pilar!$C$2:$E$47,2,FALSE)) -> Mejor movilidad para todos | K108: =IF(ISERROR(VLOOKUP(I108,Eje_Pilar!$C$2:$E$47,3,FALSE))," ",VLOOKUP(I108,Eje_Pilar!$C$2:$E$47,3,FALSE)) -> Pilar 2 Democracía Urbana | L108: 1424 | M108: 1013584256 | N108: JOSE VICENTE TRUJILLO PEREZ | O108: 25300000 | T108: 25300000 | U108: 22003333 | V108: 2019-02-14 | W108: 2019-02-14 | X108: 2020-01-13 | Y108: 330 | AD108: X | AF108: 0.8696969565 | AH108: =IF(SUMPRODUCT((A$14:A108=A108)*(B$14:B108=B108)*(C$14:C108=C108))>1,0,1) -> 1 | AI108: Contratos de prestación de servicios profesionales y de apoyo a la gestión | AJ108: Contratación directa | AK108: =IFERROR(VLOOKUP(F108,Tipo!$C$12:$C$27,1,FALSE),"NO") -> Prestación de servicios profesionales y de apoyo a la gestión, o para la ejecución de trabajos artísticos que sólo puedan encomendarse a determinadas personas naturales; | AL108: Inversión | AM108: 18
A109: CPS-096-2019 | B109: 2019 | C109: FDLCB-CD-095-2019 | D109: Contratos de prestación de servicios profesionales y de apoyo a la gestión | E109: Contratación directa | F109: Prestación de servicios profesionales y de apoyo a la gestión, o para la ejecución de trabajos artísticos que sólo puedan encomendarse a determinadas personas naturales; | G109: Prestar sus servicios como conductor de automotor para la maquinaria pesada de propiedad del Fondo De Desarrollo Local de Ciudad Bolívar para la realización de labores de mantenimiento de la malla vial y las zonas públicas de la localidad, así como atender las emergencias que surjan en la localidad de ciudad bolívar. | H109: Inversión | I109: 18 | J109: =IF(ISERROR(VLOOKUP(I109,Eje_Pilar!$C$2:$E$47,2,FALSE))," ",VLOOKUP(I109,Eje_Pilar!$C$2:$E$47,2,FALSE)) -> Mejor movilidad para todos | K109: =IF(ISERROR(VLOOKUP(I109,Eje_Pilar!$C$2:$E$47,3,FALSE))," ",VLOOKUP(I109,Eje_Pilar!$C$2:$E$47,3,FALSE)) -> Pilar 2 Democracía Urbana | L109: 1424 | M109: 5893483 | N109: DOMINGO CANGREJO VIASUS | O109: 25300000 | R109: 1 | S109: 5980000 | T109: 31280000 | U109: 22003333 | V109: 2019-02-14 | W109: 2019-02-14 | X109: 2020-03-31 | Y109: 330 | Z109: 78 | AC109: X | AF109: 0.7034313619 | AH109: =IF(SUMPRODUCT((A$14:A109=A109)*(B$14:B109=B109)*(C$14:C109=C109))>1,0,1) -> 1 | AI109: Contratos de prestación de servicios profesionales y de apoyo a la gestión | AJ109: Contratación directa | AK109: =IFERROR(VLOOKUP(F109,Tipo!$C$12:$C$27,1,FALSE),"NO") -> Prestación de servicios profesionales y de apoyo a la gestión, o para la ejecución de trabajos artísticos que sólo puedan encomendarse a determinadas personas naturales; | AL109: Inversión | AM109: 18
A110: CPS-097-2019 | B110: 2019 | C110: FDLCB-CD-096-2019 | D110: Contratos de prestación de servicios profesionales y de apoyo a la gestión | E110: Contratación directa | F110: Prestación de servicios profesionales y de apoyo a la gestión, o para la ejecución de trabajos artísticos que sólo puedan encomendarse a determinadas personas naturales; | G110: Prestación de servicios profesionales como apoyo al área de gestión de desarrollo de ciudad bolívar - planeación, realizando las actividades concernientes al desarrollo de los proyectos de inversión de la Alcaldía Local de Ciudad Bolívar, en el cumplimiento al Plan de Desarrollo Local 2017 - 2020 | H110: Inversión | I110: 45 | J110: =IF(ISERROR(VLOOKUP(I110,Eje_Pilar!$C$2:$E$47,2,FALSE))," ",VLOOKUP(I110,Eje_Pilar!$C$2:$E$47,2,FALSE)) -> Gobernanza e influencia local, regional e internacional | K110: =IF(ISERROR(VLOOKUP(I110,Eje_Pilar!$C$2:$E$47,3,FALSE))," ",VLOOKUP(I110,Eje_Pilar!$C$2:$E$47,3,FALSE)) -> Eje Transversal 4 Gobierno Legitimo, Fortalecimiento Local y Eficiencia | L110: 1281 | M110: 52698150 | N110: KETTY JOHANNA CORONADO CANO | O110: 55000000 | T110: 55000000 | U110: 47666667 | V110: 2019-02-14 | W110: 2019-02-15 | X110: 2020-01-14 | Y110: 330 | AC110: X | AF110: 0.8666666727 | AH110: =IF(SUMPRODUCT((A$14:A110=A110)*(B$14:B110=B110)*(C$14:C110=C110))>1,0,1) -> 1 | AI110: Contratos de prestación de servicios profesionales y de apoyo a la gestión | AJ110: Contratación directa | AK110: =IFERROR(VLOOKUP(F110,Tipo!$C$12:$C$27,1,FALSE),"NO") -> Prestación de servicios profesionales y de apoyo a la gestión, o para la ejecución de trabajos artísticos que sólo puedan encomendarse a determinadas personas naturales; | AL110: Inversión | AM110: 45
A111: CPS-098-2019 | B111: 2019 | C111: FDLCB-CD-097-2019 | D111: Contratos de prestación de servicios profesionales y de apoyo a la gestión | E111: Contratación directa | F111: Prestación de servicios profesionales y de apoyo a la gestión, o para la ejecución de trabajos artísticos que sólo puedan encomendarse a determinadas personas naturales; | G111: Prestar sus servicios como conductor de automotor para la maquinaría pesada de propiedad del Fondo del Fondo de Desarrollo Local de Ciudad Bolívar para la realización labores de mantenimiento de la malla vial y las zonas p{ublicas de la Localidad, así como atender las emergencias que surjan en la Localidad de Ciudad Bolívar | H111: Inversión | I111: 18 | J111: =IF(ISERROR(VLOOKUP(I111,Eje_Pilar!$C$2:$E$47,2,FALSE))," ",VLOOKUP(I111,Eje_Pilar!$C$2:$E$47,2,FALSE)) -> Mejor movilidad para todos | K111: =IF(ISERROR(VLOOKUP(I111,Eje_Pilar!$C$2:$E$47,3,FALSE))," ",VLOOKUP(I111,Eje_Pilar!$C$2:$E$47,3,FALSE)) -> Pilar 2 Democracía Urbana | L111: 1424 | M111: 80050205 | N111: LUIS FELIPE RODRIGUEZ VARGAS | O111: 25300000 | R111: 1 | S111: 5520000 | T111: 30820000 | U111: 21543333 | V111: 2019-02-14 | W111: 2019-02-20 | X111: 2020-03-31 | Y111: 330 | Z111: 72 | AC111: X | AF111: 0.6990049643 | AH111: =IF(SUMPRODUCT((A$14:A111=A111)*(B$14:B111=B111)*(C$14:C111=C111))>1,0,1) -> 1 | AI111: Contratos de prestación de servicios profesionales y de apoyo a la gestión | AJ111: Contratación directa | AK111: =IFERROR(VLOOKUP(F111,Tipo!$C$12:$C$27,1,FALSE),"NO") -> Prestación de servicios profesionales y de apoyo a la gestión, o para la ejecución de trabajos artísticos que sólo puedan encomendarse a determinadas personas naturales; | AL111: Inversión | AM111: 18
A112: CPS-099-2019 | B112: 2019 | C112: FDLCB-CD-098-2019 | D112: Contratos de prestación de servicios profesionales y de apoyo a la gestión | E112: Contratación directa | F112: Prestación de servicios profesionales y de apoyo a la gestión, o para la ejecución de trabajos artísticos que sólo puedan encomendarse a determinadas personas naturales; | G112: Prestar sus servicios como conductor de automotor para la maquinaría pesada de propiedad del Fondo del Fondo de Desarrollo Local de Ciudad Bolívar para la realización labores de mantenimiento de la malla vial y las zonas publicas de la Localidad, así como atender las emergencias que surjan en la Localidad de Ciudad Bolívar | H112: Inversión | I112: 18 | J112: =IF(ISERROR(VLOOKUP(I112,Eje_Pilar!$C$2:$E$47,2,FALSE))," ",VLOOKUP(I112,Eje_Pilar!$C$2:$E$47,2,FALSE)) -> Mejor movilidad para todos | K112: =IF(ISERROR(VLOOKUP(I112,Eje_Pilar!$C$2:$E$47,3,FALSE))," ",VLOOKUP(I112,Eje_Pilar!$C$2:$E$47,3,FALSE)) -> Pilar 2 Democracía Urbana | L112: 1424 | M112: 79757857 | N112: JOHN ALEXANDER GUTIERREZ MARTINEZ | O112: 25300000 | R112: 1 | S112: 5980000 | T112: 31280000 | U112: 22003333 | V112: 2019-02-14 | W112: 2019-02-14 | X112: 2020-03-31 | Y112: 330 | Z112: 78 | AC112: X | AF112: 0.7034313619 | AH112: =IF(SUMPRODUCT((A$14:A112=A112)*(B$14:B112=B112)*(C$14:C112=C112))>1,0,1) -> 1 | AI112: Contratos de prestación de servicios profesionales y de apoyo a la gestión | AJ112: Contratación directa | AK112: =IFERROR(VLOOKUP(F112,Tipo!$C$12:$C$27,1,FALSE),"NO") -> Prestación de servicios profesionales y de apoyo a la gestión, o para la ejecución de trabajos artísticos que sólo puedan encomendarse a determinadas personas naturales; | AL112: Inversión | AM112: 18
A113: CPS-100-2019 | B113: 2019 | C113: FDLCB-CD-099-2019 | D113: Contratos de prestación de servicios profesionales y de apoyo a la gestión | E113: Contratación directa | F113: Prestación de servicios profesionales y de apoyo a la gestión, o para la ejecución de trabajos artísticos que sólo puedan encomendarse a determinadas personas naturales; | G113: Prestar sus servicios profesionales para monitorear, informar, atender y demas actividades de gestion del riesgo y cambio climatico de la Localidad De Ciudad Bolivar. | H113: Inversión | I113: 45 | J113: =IF(ISERROR(VLOOKUP(I113,Eje_Pilar!$C$2:$E$47,2,FALSE))," ",VLOOKUP(I113,Eje_Pilar!$C$2:$E$47,2,FALSE)) -> Gobernanza e influencia local, regional e internacional | K113: =IF(ISERROR(VLOOKUP(I113,Eje_Pilar!$C$2:$E$47,3,FALSE))," ",VLOOKUP(I113,Eje_Pilar!$C$2:$E$47,3,FALSE)) -> Eje Transversal 4 Gobierno Legitimo, Fortalecimiento Local y Eficiencia | L113: 1281 | M113: 79873619 | N113: LEONARDO FABIO QUINTERO LOPEZ | O113: 53900000 | R113: 1 | S113: 7350000 | T113: 61250000 | U113: 41323333 | V113: 2019-02-14 | W113: 2019-02-18 | X113: 2020-03-31 | Y113: 330 | Z113: 45 | AC113: X | AF113: 0.6746666612 | AH113: =IF(SUMPRODUCT((A$14:A113=A113)*(B$14:B113=B113)*(C$14:C113=C113))>1,0,1) -> 1 | AI113: =IFERROR(VLOOKUP(D113,tipo,1,FALSE),"NO") -> Contratos de prestación de servicios profesionales y de apoyo a la gestión | AJ113: =IFERROR(VLOOKUP(E113,modal,1,FALSE),"NO") -> Contratación directa | AK113: =IFERROR(VLOOKUP(F113,Tipo!$C$12:$C$27,1,FALSE),"NO") -> Prestación de servicios profesionales y de apoyo a la gestión, o para la ejecución de trabajos artísticos que sólo puedan encomendarse a determinadas personas naturales; | AL113: =IFERROR(VLOOKUP(H113,afectacion,1,FALSE),"NO") -> Inversión | AM113: =IFERROR(VLOOKUP(I113,programa,1,FALSE),"NO") -> 45
A114: CPS-101-2019 | B114: 2019 | C114: FDLCB-CD-100-2019 | D114: Contratos de prestación de servicios profesionales y de apoyo a la gestión | E114: Contratación directa | F114: Prestación de servicios profesionales y de apoyo a la gestión, o para la ejecución de trabajos artísticos que sólo puedan encomendarse a determinadas personas naturales; | G114: Presta los servicios como apoyo administrativo y asistencial en los asuntos relacionados con lostemas de participación y realciones comunitarias de la Alcaldía Local de Ciudad Bol´vars labores de entrega y recibo de las comunicaciones emitidas o recibidas por las inspecciones de policia de la Localidad | H114: Inversión | I114: 45 | J114: =IF(ISERROR(VLOOKUP(I114,Eje_Pilar!$C$2:$E$47,2,FALSE))," ",VLOOKUP(I114,Eje_Pilar!$C$2:$E$47,2,FALSE)) -> Gobernanza e influencia local, regional e internacional | K114: =IF(ISERROR(VLOOKUP(I114,Eje_Pilar!$C$2:$E$47,3,FALSE))," ",VLOOKUP(I114,Eje_Pilar!$C$2:$E$47,3,FALSE)) -> Eje Transversal 4 Gobierno Legitimo, Fortalecimiento Local y Eficiencia | L114: 1281 | M114: 53006044 | N114: LUZ MARINA CHASOY CUANTINDIOY | O114: 25300000 | T114: =+O114+Q114+S114 -> 25300000 | U114: 21543333 | V114: 2019-02-14 | W114: 2019-02-20 | X114: 2020-01-19 | Y114: 330 | AC114: X | AF114: 0.8515151383 | AH114: =IF(SUMPRODUCT((A$14:A114=A114)*(B$14:B114=B114)*(C$14:C114=C114))>1,0,1) -> 1 | AI114: Contratos de prestación de servicios profesionales y de apoyo a la gestión | AJ114: Contratación directa | AK114: =IFERROR(VLOOKUP(F114,Tipo!$C$12:$C$27,1,FALSE),"NO") -> Prestación de servicios profesionales y de apoyo a la gestión, o para la ejecución de trabajos artísticos que sólo puedan encomendarse a determinadas personas naturales; | AL114: Inversión | AM114: 45
A115: CPS-102-2019 | B115: 2019 | C115: FDLCB-CD-101-2019 | D115: Contratos de prestación de servicios profesionales y de apoyo a la gestión | E115: Contratación directa | F115: Prestación de servicios profesionales y de apoyo a la gestión, o para la ejecución de trabajos artísticos que sólo puedan encomendarse a determinadas personas naturales; | G115: Prestar sus servicios como conductor de automotor para la maquinaría pesada de propiedad del Fondo del Fondo de Desarrollo Local de Ciudad Bolívar para la realización labores de mantenimiento de la malla vial y las zonas publicas de la Localidad, así como atender las emergencias que surjan en la Localidad de Ciudad Bolívar | H115: Inversión | I115: 18 | J115: =IF(ISERROR(VLOOKUP(I115,Eje_Pilar!$C$2:$E$47,2,FALSE))," ",VLOOKUP(I115,Eje_Pilar!$C$2:$E$47,2,FALSE)) -> Mejor movilidad para todos | K115: =IF(ISERROR(VLOOKUP(I115,Eje_Pilar!$C$2:$E$47,3,FALSE))," ",VLOOKUP(I115,Eje_Pilar!$C$2:$E$47,3,FALSE)) -> Pilar 2 Democracía Urbana | L115: 1424 | M115: 19431810 | N115: CARLOS HECTOR BEJARANO BEJARANO | O115: 25300000 | R115: 1 | S115: 5520000 | T115: 30820000 | U115: 21543333 | V115: 2019-02-20 | W115: 2019-02-20 | X115: 2020-01-19 | Y115: 330 | Z115: 72 | AC115: X | AF115: 0.6990049643 | AH115: =IF(SUMPRODUCT((A$14:A115=A115)*(B$14:B115=B115)*(C$14:C115=C115))>1,0,1) -> 1 | AI115: Contratos de prestación de servicios profesionales y de apoyo a la gestión | AJ115: Contratación directa | AK115: =IFERROR(VLOOKUP(F115,Tipo!$C$12:$C$27,1,FALSE),"NO") -> Prestación de servicios profesionales y de apoyo a la gestión, o para la ejecución de trabajos artísticos que sólo puedan encomendarse a determinadas personas naturales; | AL115: Inversión | AM115: 18
A116: CPS-103-2019 | B116: 2019 | C116: FDLCB-CD-102-2019 | D116: Contratos de prestación de servicios profesionales y de apoyo a la gestión | E116: Contratación directa | F116: Prestación de servicios profesionales y de apoyo a la gestión, o para la ejecución de trabajos artísticos que sólo puedan encomendarse a determinadas personas naturales; | G116: Prestar servicios profesionales para apoyar técnicamente a los responsables e integrantes de los procesos en la implementación de herramientas de gestión, siguiendo los lineamientos metodológicos establecidos por la Oficina Asesora de Planeación de la Secretaría Distrital de Gobierno. | H116: Inversión | I116: 45 | J116: =IF(ISERROR(VLOOKUP(I116,Eje_Pilar!$C$2:$E$47,2,FALSE))," ",VLOOKUP(I116,Eje_Pilar!$C$2:$E$47,2,FALSE)) -> Gobernanza e influencia local, regional e internacional | K116: =IF(ISERROR(VLOOKUP(I116,Eje_Pilar!$C$2:$E$47,3,FALSE))," ",VLOOKUP(I116,Eje_Pilar!$C$2:$E$47,3,FALSE)) -> Eje Transversal 4 Gobierno Legitimo, Fortalecimiento Local y Eficiencia | L116: 1281 | M116: 1022373093 | N116: MARCIA CAROLINA MARULANDA CORTES | O116: 51700000 | T116: 51700000 | U116: 40890000 | V116: 2019-02-14 | W116: 2019-02-19 | X116: 2020-01-18 | Y116: 330 | AC116: X | AF116: 0.7909090909 | AH116: =IF(SUMPRODUCT((A$14:A116=A116)*(B$14:B116=B116)*(C$14:C116=C116))>1,0,1) -> 1 | AI116: Contratos de prestación de servicios profesionales y de apoyo a la gestión | AJ116: Contratación directa | AK116: =IFERROR(VLOOKUP(F116,Tipo!$C$12:$C$27,1,FALSE),"NO") -> Prestación de servicios profesionales y de apoyo a la gestión, o para la ejecución de trabajos artísticos que sólo puedan encomendarse a determinadas personas naturales; | AL116: Inversión | AM116: 45
A117: CPS-104-2019 | B117: 2019 | C117: FDLCB-CD-103-2019 | D117: Contratos de prestación de servicios profesionales y de apoyo a la gestión | E117: Contratación directa | F117: Prestación de servicios profesionales y de apoyo a la gestión, o para la ejecución de trabajos artísticos que sólo puedan encomendarse a determinadas personas naturales; | G117: Prestar sus servicios como conductor de volqueta de propiedad del Fondo del Fondo de Desarrollo Local de Ciudad Bolívar para la realización labores de mantenimiento de la malla vial y las zonas publicas de la Localidad, así como atender las emergencias que surjan en la Localidad de Ciudad Bolívar | H117: Inversión | I117: 18 | J117: =IF(ISERROR(VLOOKUP(I117,Eje_Pilar!$C$2:$E$47,2,FALSE))," ",VLOOKUP(I117,Eje_Pilar!$C$2:$E$47,2,FALSE)) -> Mejor movilidad para todos | K117: =IF(ISERROR(VLOOKUP(I117,Eje_Pilar!$C$2:$E$47,3,FALSE))," ",VLOOKUP(I117,Eje_Pilar!$C$2:$E$47,3,FALSE)) -> Pilar 2 Democracía Urbana | L117: 1424 | M117: 80247744 | N117: GONZALO RICO ORTEGA | O117: 25300000 | T117: 25300000 | U117: 21543333 | V117: 2019-02-14 | W117: 2019-02-20 | X117: 2020-01-19 | Y117: 330 | AC117: X | AF117: 0.8515151383 | AH117: =IF(SUMPRODUCT((A$14:A117=A117)*(B$14:B117=B117)*(C$14:C117=C117))>1,0,1) -> 1 | AI117: Contratos de prestación de servicios profesionales y de apoyo a la gestión | AJ117: Contratación directa | AK117: =IFERROR(VLOOKUP(F117,Tipo!$C$12:$C$27,1,FALSE),"NO") -> Prestación de servicios profesionales y de apoyo a la gestión, o para la ejecución de trabajos artísticos que sólo puedan encomendarse a determinadas personas naturales; | AL117: Inversión | AM117: 18
A118: CPS-105-2019 | B118: 2019 | C118: FDLCB-CD-104-2019 | D118: Contratos de prestación de servicios profesionales y de apoyo a la gestión | E118: Contratación directa | F118: Prestación de servicios profesionales y de apoyo a la gestión, o para la ejecución de trabajos artísticos que sólo puedan encomendarse a determinadas personas naturales; | G118: Apoyar al Alcalde Local en la promoción, acompañamiento, coordinación y atención de las instancias de coordinación interinstitucionales y las instancias de participación locales, así como los procesos comunitarios en la localidad | H118: Inversión | I118: 45 | J118: =IF(ISERROR(VLOOKUP(I118,Eje_Pilar!$C$2:$E$47,2,FALSE))," ",VLOOKUP(I118,Eje_Pilar!$C$2:$E$47,2,FALSE)) -> Gobernanza e influencia local, regional e internacional | K118: =IF(ISERROR(VLOOKUP(I118,Eje_Pilar!$C$2:$E$47,3,FALSE))," ",VLOOKUP(I118,Eje_Pilar!$C$2:$E$47,3,FALSE)) -> Eje Transversal 4 Gobierno Legitimo, Fortalecimiento Local y Eficiencia | L118: 1281 | M118: 1024525504 | N118: KIMBERLY LADINO FELIZZOLA | O118: 52800000 | T118: 52800000 | U118: 44000000 | V118: 2019-02-14 | W118: 2019-02-19 | X118: 2020-01-25 | Y118: 330 | AC118: X | AF118: 0.8333333333 | AH118: =IF(SUMPRODUCT((A$14:A118=A118)*(B$14:B118=B118)*(C$14:C118=C118))>1,0,1) -> 1 | AI118: Contratos de prestación de servicios profesionales y de apoyo a la gestión | AJ118: Contratación directa | AK118: =IFERROR(VLOOKUP(F118,Tipo!$C$12:$C$27,1,FALSE),"NO") -> Prestación de servicios profesionales y de apoyo a la gestión, o para la ejecución de trabajos artísticos que sólo puedan encomendarse a determinadas personas naturales; | AL118: Inversión | AM118: 45
A119: CPS-106-2019 | B119: 2019 | C119: FDLCB-CD-105-2019 | D119: Contratos de prestación de servicios profesionales y de apoyo a la gestión | E119: Contratación directa | F119: Prestación de servicios profesionales y de apoyo a la gestión, o para la ejecución de trabajos artísticos que sólo puedan encomendarse a determinadas personas naturales; | G119: Prestar sus servicios profesionales para desarrollar todas las actividades concernientes a la consecución de bienes y/o servicios para la localidad de ciudad bolívar de acuerdo con los procedimientos establecidos en el SIG a la normatividad vigente en materia de contratación estatal en cumplimiento de las metas establecidas en plan de desarrollo local de ciudad bolívar, Plan de Gestión y Plan Anual de Adquisiciones. | H119: Inversión | I119: 45 | J119: =IF(ISERROR(VLOOKUP(I119,Eje_Pilar!$C$2:$E$47,2,FALSE))," ",VLOOKUP(I119,Eje_Pilar!$C$2:$E$47,2,FALSE)) -> Gobernanza e influencia local, regional e internacional | K119: =IF(ISERROR(VLOOKUP(I119,Eje_Pilar!$C$2:$E$47,3,FALSE))," ",VLOOKUP(I119,Eje_Pilar!$C$2:$E$47,3,FALSE)) -> Eje Transversal 4 Gobierno Legitimo, Fortalecimiento Local y Eficiencia | L119: 1281 | M119: 1082869685 | N119: CARLOS ANDRES PINEDO MENESES | O119: 60500000 | R119: 1 | S119: 14300000 | T119: 74800000 | U119: 52616667 | V119: 2019-02-14 | W119: 2019-02-14 | X119: 2020-03-31 | Y119: 330 | Z119: 78 | AC119: X | AF119: 0.703431377 | AH119: =IF(SUMPRODUCT((A$14:A119=A119)*(B$14:B119=B119)*(C$14:C119=C119))>1,0,1) -> 1 | AI119: Contratos de prestación de servicios profesionales y de apoyo a la gestión | AJ119: Contratación directa | AK119: =IFERROR(VLOOKUP(F119,Tipo!$C$12:$C$27,1,FALSE),"NO") -> Prestación de servicios profesionales y de apoyo a la gestión, o para la ejecución de trabajos artísticos que sólo puedan encomendarse a determinadas personas naturales; | AL119: Inversión | AM119: 45
A120: CPS-107-2019 | B120: 2019 | C120: FDLCB-CD-106-2019 | D120: Contratos de prestación de servicios profesionales y de apoyo a la gestión | E120: Contratación directa | F120: Prestación de servicios profesionales y de apoyo a la gestión, o para la ejecución de trabajos artísticos que sólo puedan encomendarse a determinadas personas naturales; | G120: Prestar sus servicios como conductor de automotor para la maquinaría pesada de propiedad del Fondo del Fondo de Desarrollo Local de Ciudad Bolívar para la realización labores de mantenimiento de la malla vial y las zonas publicas de la Localidad, así como atender las emergencias que surjan en la Localidad de Ciudad Bolívar | H120: Inversión | I120: 18 | J120: =IF(ISERROR(VLOOKUP(I120,Eje_Pilar!$C$2:$E$47,2,FALSE))," ",VLOOKUP(I120,Eje_Pilar!$C$2:$E$47,2,FALSE)) -> Mejor movilidad para todos | K120: =IF(ISERROR(VLOOKUP(I120,Eje_Pilar!$C$2:$E$47,3,FALSE))," ",VLOOKUP(I120,Eje_Pilar!$C$2:$E$47,3,FALSE)) -> Pilar 2 Democracía Urbana | L120: 1424 | M120: 19099599 | N120: FLORESMIRO SEGURA MORA | O120: 25300000 | R120: 1 | S120: 5520000 | T120: 30820000 | U120: 21543333 | V120: 2019-02-20 | W120: 2019-02-20 | X120: 2020-03-31 | Y120: 330 | Z120: 72 | AC120: X | AF120: 0.6990049643 | AH120: =IF(SUMPRODUCT((A$14:A120=A120)*(B$14:B120=B120)*(C$14:C120=C120))>1,0,1) -> 1 | AI120: Contratos de prestación de servicios profesionales y de apoyo a la gestión | AJ120: Contratación directa | AK120: =IFERROR(VLOOKUP(F120,Tipo!$C$12:$C$27,1,FALSE),"NO") -> Prestación de servicios profesionales y de apoyo a la gestión, o para la ejecución de trabajos artísticos que sólo puedan encomendarse a determinadas personas naturales; | AL120: Inversión | AM120: 18
A121: CPS-108-2019 | B121: 2019 | C121: FDLCB-CD-107-2019 | D121: Contratos de prestación de servicios profesionales y de apoyo a la gestión | E121: Contratación directa | F121: Prestación de servicios profesionales y de apoyo a la gestión, o para la ejecución de trabajos artísticos que sólo puedan encomendarse a determinadas personas naturales; | G121: Prestar sus servicios técnicos para el apoyo en la gestión, seguimiento y ejecución de las actividades relacionadas con temas agropecuarios y ambientales en la zona rural de la Localidad de de Ciudad Bolívar. | H121: Inversión | I121: 45 | J121: =IF(ISERROR(VLOOKUP(I121,Eje_Pilar!$C$2:$E$47,2,FALSE))," ",VLOOKUP(I121,Eje_Pilar!$C$2:$E$47,2,FALSE)) -> Gobernanza e influencia local, regional e internacional | K121: =IF(ISERROR(VLOOKUP(I121,Eje_Pilar!$C$2:$E$47,3,FALSE))," ",VLOOKUP(I121,Eje_Pilar!$C$2:$E$47,3,FALSE)) -> Eje Transversal 4 Gobierno Legitimo, Fortalecimiento Local y Eficiencia | L121: 1281 | M121: 1015409618 | N121: CARLOS ANDRES FRANCO DIAZ | O121: 34100000 | T121: 34100000 | U121: 28416667 | V121: 2019-02-26 | W121: 2019-02-26 | X121: 2020-01-25 | Y121: 330 | AC121: X | AF121: 0.8333333431 | AH121: =IF(SUMPRODUCT((A$14:A121=A121)*(B$14:B121=B121)*(C$14:C121=C121))>1,0,1) -> 1 | AI121: Contratos de prestación de servicios profesionales y de apoyo a la gestión | AJ121: Contratación directa | AK121: =IFERROR(VLOOKUP(F121,Tipo!$C$12:$C$27,1,FALSE),"NO") -> Prestación de servicios profesionales y de apoyo a la gestión, o para la ejecución de trabajos artísticos que sólo puedan encomendarse a determinadas personas naturales; | AL121: Inversión | AM121: 45
A122: CPS-109-2019 | B122: 2019 | C122: FDLCB-CD-108-2019 | D122: Contratos de prestación de servicios profesionales y de apoyo a la gestión | E122: Contratación directa | F122: Prestación de servicios profesionales y de apoyo a la gestión, o para la ejecución de trabajos artísticos que sólo puedan encomendarse a determinadas personas naturales; | G122: Prestar sus servicios como conductor de volqueta de propiedad del Fondo del Fondo de Desarrollo Local de Ciudad Bolívar para la realización labores de mantenimiento de la malla vial y las zonas publicas de la Localidad, así como atender las emergencias que surjan en la Localidad de Ciudad Bolívar | H122: Inversión | I122: 18 | J122: =IF(ISERROR(VLOOKUP(I122,Eje_Pilar!$C$2:$E$47,2,FALSE))," ",VLOOKUP(I122,Eje_Pilar!$C$2:$E$47,2,FALSE)) -> Mejor movilidad para todos | K122: =IF(ISERROR(VLOOKUP(I122,Eje_Pilar!$C$2:$E$47,3,FALSE))," ",VLOOKUP(I122,Eje_Pilar!$C$2:$E$47,3,FALSE)) -> Pilar 2 Democracía Urbana | L122: 1424 | M122: 79365849 | N122: LUIS ALFONSO BERNAL VIGOYA | O122: 25300000 | R122: 1 | S122: 5596667 | T122: 30896667 | U122: 21620000 | V122: 2019-02-19 | W122: 2019-02-19 | X122: 2020-01-18 | Y122: 330 | Z122: 73 | AC122: X | AF122: 0.6997518535 | AH122: =IF(SUMPRODUCT((A$14:A122=A122)*(B$14:B122=B122)*(C$14:C122=C122))>1,0,1) -> 1 | AI122: Contratos de prestación de servicios profesionales y de apoyo a la gestión | AJ122: Contratación directa | AK122: =IFERROR(VLOOKUP(F122,Tipo!$C$12:$C$27,1,FALSE),"NO") -> Prestación de servicios profesionales y de apoyo a la gestión, o para la ejecución de trabajos artísticos que sólo puedan encomendarse a determinadas personas naturales; | AL122: Inversión | AM122: 18
A123: CPS-110-2019 | B123: 2019 | C123: FDLCB-CD-109-2019 | D123: Contratos de prestación de servicios profesionales y de apoyo a la gestión | E123: Contratación directa | F123: Prestación de servicios profesionales y de apoyo a la gestión, o para la ejecución de trabajos artísticos que sólo puedan encomendarse a determinadas personas naturales; | G123: Prestar los servicios de apoyo para realizar actividades asistenciales en las diferentes dependencias de la Alcaldía Local de Ciudad Bolívar | H123: Inversión | I123: 45 | J123: =IF(ISERROR(VLOOKUP(I123,Eje_Pilar!$C$2:$E$47,2,FALSE))," ",VLOOKUP(I123,Eje_Pilar!$C$2:$E$47,2,FALSE)) -> Gobernanza e influencia local, regional e internacional | K123: =IF(ISERROR(VLOOKUP(I123,Eje_Pilar!$C$2:$E$47,3,FALSE))," ",VLOOKUP(I123,Eje_Pilar!$C$2:$E$47,3,FALSE)) -> Eje Transversal 4 Gobierno Legitimo, Fortalecimiento Local y Eficiencia | L123: 1281 | M123: 1023899154 | N123: SINDY LORENA GONZALEZ MOLANO | O123: 26400000 | T123: 26400000 | U123: 22480000 | V123: 2019-02-15 | W123: 2019-02-20 | X123: 2020-01-19 | Y123: 330 | AC123: X | AF123: 0.8515151515 | AH123: =IF(SUMPRODUCT((A$14:A123=A123)*(B$14:B123=B123)*(C$14:C123=C123))>1,0,1) -> 1 | AI123: Contratos de prestación de servicios profesionales y de apoyo a la gestión | AJ123: Contratación directa | AK123: =IFERROR(VLOOKUP(F123,Tipo!$C$12:$C$27,1,FALSE),"NO") -> Prestación de servicios profesionales y de apoyo a la gestión, o para la ejecución de trabajos artísticos que sólo puedan encomendarse a determinadas personas naturales; | AL123: Inversión | AM123: 45
A124: CPS-111-2019 | B124: 2019 | C124: FDLCB-CD-110-2019 | D124: Contratos de prestación de servicios profesionales y de apoyo a la gestión | E124: Contratación directa | F124: Prestación de servicios profesionales y de apoyo a la gestión, o para la ejecución de trabajos artísticos que sólo puedan encomendarse a determinadas personas naturales; | G124: Prestar los servicios de apoyo para realizar actividades asistenciales en las diferenetes dependencias de la Alcaldía Local de Ciudad Bolívar. | H124: Inversión | I124: 45 | J124: =IF(ISERROR(VLOOKUP(I124,Eje_Pilar!$C$2:$E$47,2,FALSE))," ",VLOOKUP(I124,Eje_Pilar!$C$2:$E$47,2,FALSE)) -> Gobernanza e influencia local, regional e internacional | K124: =IF(ISERROR(VLOOKUP(I124,Eje_Pilar!$C$2:$E$47,3,FALSE))," ",VLOOKUP(I124,Eje_Pilar!$C$2:$E$47,3,FALSE)) -> Eje Transversal 4 Gobierno Legitimo, Fortalecimiento Local y Eficiencia | L124: 1281 | M124: 1018485255 | N124: NEZLY MARCELA CASTELLANOS DELGADO | O124: 26400000 | R124: 1 | S124: 5840000 | T124: 32240000 | U124: 22560000 | V124: 2019-02-15 | W124: 2019-02-19 | X124: 2020-03-31 | Y124: 330 | Z124: 73 | AC124: X | AF124: 0.699751861 | AH124: =IF(SUMPRODUCT((A$14:A124=A124)*(B$14:B124=B124)*(C$14:C124=C124))>1,0,1) -> 1 | AI124: Contratos de prestación de servicios profesionales y de apoyo a la gestión | AJ124: Contratación directa | AK124: =IFERROR(VLOOKUP(F124,Tipo!$C$12:$C$27,1,FALSE),"NO") -> Prestación de servicios profesionales y de apoyo a la gestión, o para la ejecución de trabajos artísticos que sólo puedan encomendarse a determinadas personas naturales; | AL124: Inversión | AM124: 45
A125: CPS-112-2019 | B125: 2019 | C125: FDLCB-CD-111-2019 | D125: Contratos de prestación de servicios profesionales y de apoyo a la gestión | E125: Contratación directa | F125: Prestación de servicios profesionales y de apoyo a la gestión, o para la ejecución de trabajos artísticos que sólo puedan encomendarse a determinadas personas naturales; | G125: Prestar sus servicios profesionales como apoyo al área de Gestión del Desarrollo Local - oficina de contabilidad de la Alcaldía Local de Ciudad Bolívar en los trámites, procedimeintos y aplicativos desigandos al área en mención | H125: Inversión | I125: 45 | J125: =IF(ISERROR(VLOOKUP(I125,Eje_Pilar!$C$2:$E$47,2,FALSE))," ",VLOOKUP(I125,Eje_Pilar!$C$2:$E$47,2,FALSE)) -> Gobernanza e influencia local, regional e internacional | K125: =IF(ISERROR(VLOOKUP(I125,Eje_Pilar!$C$2:$E$47,3,FALSE))," ",VLOOKUP(I125,Eje_Pilar!$C$2:$E$47,3,FALSE)) -> Eje Transversal 4 Gobierno Legitimo, Fortalecimiento Local y Eficiencia | L125: 1281 | M125: 52473634 | N125: DIANA PATRICIA POVEDA ROSAS | O125: 51700000 | T125: 51700000 | U125: 44806667 | V125: 2019-02-14 | W125: 2019-02-15 | X125: 2020-01-14 | Y125: 330 | AC125: X | AF125: 0.8666666731 | AH125: =IF(SUMPRODUCT((A$14:A125=A125)*(B$14:B125=B125)*(C$14:C125=C125))>1,0,1) -> 1 | AI125: Contratos de prestación de servicios profesionales y de apoyo a la gestión | AJ125: Contratación directa | AK125: =IFERROR(VLOOKUP(F125,Tipo!$C$12:$C$27,1,FALSE),"NO") -> Prestación de servicios profesionales y de apoyo a la gestión, o para la ejecución de trabajos artísticos que sólo puedan encomendarse a determinadas personas naturales; | AL125: Inversión | AM125: 45
A126: CPS-113-2019 | B126: 2019 | C126: FDLCB-CD-112-2019 | D126: Contratos de prestación de servicios profesionales y de apoyo a la gestión | E126: Contratación directa | F126: Prestación de servicios profesionales y de apoyo a la gestión, o para la ejecución de trabajos artísticos que sólo puedan encomendarse a determinadas personas naturales; | G126: Prestar sus servicios profesionales para realizar todas las actividades concerniente al desarrollo de los proyectos de infraestructura en los componetes que le sean designados en el marco del Plan de Desarrllo Local 2017 - 2020 | H126: Inversión | I126: 45 | J126: =IF(ISERROR(VLOOKUP(I126,Eje_Pilar!$C$2:$E$47,2,FALSE))," ",VLOOKUP(I126,Eje_Pilar!$C$2:$E$47,2,FALSE)) -> Gobernanza e influencia local, regional e internacional | K126: =IF(ISERROR(VLOOKUP(I126,Eje_Pilar!$C$2:$E$47,3,FALSE))," ",VLOOKUP(I126,Eje_Pilar!$C$2:$E$47,3,FALSE)) -> Eje Transversal 4 Gobierno Legitimo, Fortalecimiento Local y Eficiencia | L126: 1281 | M126: 19277581 | N126: JORGE ENRIQUE GARCIA ORDOÑEZ | O126: 56100000 | T126: 56100000 | U126: 47770000 | V126: 2019-02-15 | W126: 2019-02-20 | X126: 2020-01-14 | Y126: 330 | AC126: X | AF126: 0.8515151515 | AH126: =IF(SUMPRODUCT((A$14:A126=A126)*(B$14:B126=B126)*(C$14:C126=C126))>1,0,1) -> 1 | AI126: Contratos de prestación de servicios profesionales y de apoyo a la gestión | AJ126: Contratación directa | AK126: =IFERROR(VLOOKUP(F126,Tipo!$C$12:$C$27,1,FALSE),"NO") -> Prestación de servicios profesionales y de apoyo a la gestión, o para la ejecución de trabajos artísticos que sólo puedan encomendarse a determinadas personas naturales; | AL126: Inversión | AM126: 45
A127: CPS-114-2019 | B127: 2019 | C127: FDLCB-CD-113-2019 | D127: Contratos de prestación de servicios profesionales y de apoyo a la gestión | E127: Contratación directa | F127: Prestación de servicios profesionales y de apoyo a la gestión, o para la ejecución de trabajos artísticos que sólo puedan encomendarse a determinadas personas naturales; | G127: Prestacion de servicios profesionales como apoyo al área de gestión de desarrollo Local de Ciudad Bolívar - Planeación, realizando las actividades concernientes al desarrollo de los proyectos de inversión de la Alcaldía Local de Ciudad Bolívar, en cumpliminento del Plan de Desarrollo Local 2017 - 2020. | H127: Inversión | I127: 45 | J127: =IF(ISERROR(VLOOKUP(I127,Eje_Pilar!$C$2:$E$47,2,FALSE))," ",VLOOKUP(I127,Eje_Pilar!$C$2:$E$47,2,FALSE)) -> Gobernanza e influencia local, regional e internacional | K127: =IF(ISERROR(VLOOKUP(I127,Eje_Pilar!$C$2:$E$47,3,FALSE))," ",VLOOKUP(I127,Eje_Pilar!$C$2:$E$47,3,FALSE)) -> Eje Transversal 4 Gobierno Legitimo, Fortalecimiento Local y Eficiencia | L127: 1281 | M127: 1033749076 | N127: ELCY MELISSA FALLA FLOREZ | O127: 55000000 | T127: 55000000 | U127: 46833333 | V127: 2019-02-14 | W127: 2019-02-20 | X127: 2020-01-19 | Y127: 330 | AC127: X | AF127: 0.8515151455 | AH127: =IF(SUMPRODUCT((A$14:A127=A127)*(B$14:B127=B127)*(C$14:C127=C127))>1,0,1) -> 1 | AI127: Contratos de prestación de servicios profesionales y de apoyo a la gestión | AJ127: Contratación directa | AK127: =IFERROR(VLOOKUP(F127,Tipo!$C$12:$C$27,1,FALSE),"NO") -> Prestación de servicios profesionales y de apoyo a la gestión, o para la ejecución de trabajos artísticos que sólo puedan encomendarse a determinadas personas naturales; | AL127: Inversión | AM127: 45
A128: CPS-115-2019 | B128: 2019 | C128: FDLCB-CD-114-2019 | D128: Contratos de prestación de servicios profesionales y de apoyo a la gestión | E128: Contratación directa | F128: Prestación de servicios profesionales y de apoyo a la gestión, o para la ejecución de trabajos artísticos que sólo puedan encomendarse a determinadas personas naturales; | G128: Apoyar las labores de entrega y recibo de las comunicaciones emitidas o recibidas por las inspecciones de policia de la Localidad | H128: Inversión | I128: 45 | J128: =IF(ISERROR(VLOOKUP(I128,Eje_Pilar!$C$2:$E$47,2,FALSE))," ",VLOOKUP(I128,Eje_Pilar!$C$2:$E$47,2,FALSE)) -> Gobernanza e influencia local, regional e internacional | K128: =IF(ISERROR(VLOOKUP(I128,Eje_Pilar!$C$2:$E$47,3,FALSE))," ",VLOOKUP(I128,Eje_Pilar!$C$2:$E$47,3,FALSE)) -> Eje Transversal 4 Gobierno Legitimo, Fortalecimiento Local y Eficiencia | L128: 1281 | M128: 35251176 | N128: ZULLY CATALINA GUTIERREZ RAMIREZ | O128: 25300000 | R128: 1 | S128: 5903333 | T128: 31203333 | U128: 21926667 | V128: 2019-02-14 | W128: 2019-02-15 | X128: 2020-01-14 | Y128: 330 | Z128: 77 | AC128: X | AF128: 0.7027027209 | AH128: =IF(SUMPRODUCT((A$14:A128=A128)*(B$14:B128=B128)*(C$14:C128=C128))>1,0,1) -> 1 | AI128: Contratos de prestación de servicios profesionales y de apoyo a la gestión | AJ128: Contratación directa | AK128: =IFERROR(VLOOKUP(F128,Tipo!$C$12:$C$27,1,FALSE),"NO") -> Prestación de servicios profesionales y de apoyo a la gestión, o para la ejecución de trabajos artísticos que sólo puedan encomendarse a determinadas personas naturales; | AL128: Inversión | AM128: 45
A129: CPS-116-2019 | B129: 2019 | C129: FDLCB-CD-115-2019 | D129: Contratos de prestación de servicios profesionales y de apoyo a la gestión | E129: Contratación directa | F129: Prestación de servicios profesionales y de apoyo a la gestión, o para la ejecución de trabajos artísticos que sólo puedan encomendarse a determinadas personas naturales; | G129: Prestar sus servicios profesionles en el proceso de liquidación de los convenios y contratos suscritos por el Fondo de Desarrllo Local de Ciudad Bolívar y en seguimiento, depuraci+on y consolidación de información de obligaciones por pagar vigentes | H129: Inversión | I129: 45 | J129: =IF(ISERROR(VLOOKUP(I129,Eje_Pilar!$C$2:$E$47,2,FALSE))," ",VLOOKUP(I129,Eje_Pilar!$C$2:$E$47,2,FALSE)) -> Gobernanza e influencia local, regional e internacional | K129: =IF(ISERROR(VLOOKUP(I129,Eje_Pilar!$C$2:$E$47,3,FALSE))," ",VLOOKUP(I129,Eje_Pilar!$C$2:$E$47,3,FALSE)) -> Eje Transversal 4 Gobierno Legitimo, Fortalecimiento Local y Eficiencia | L129: 1281 | M129: 52621755 | N129: PATRICIA TRUJILLO HUERFANO | O129: 50600000 | R129: 1 | S129: 11193333 | T129: 61793333 | U129: 43240000 | V129: 2019-02-19 | W129: 2019-02-18 | X129: 2020-03-31 | Y129: 330 | Z129: 73 | AC129: X | AF129: 0.6997518648 | AH129: =IF(SUMPRODUCT((A$14:A129=A129)*(B$14:B129=B129)*(C$14:C129=C129))>1,0,1) -> 1 | AI129: Contratos de prestación de servicios profesionales y de apoyo a la gestión | AJ129: Contratación directa | AK129: =IFERROR(VLOOKUP(F129,Tipo!$C$12:$C$27,1,FALSE),"NO") -> Prestación de servicios profesionales y de apoyo a la gestión, o para la ejecución de trabajos artísticos que sólo puedan encomendarse a determinadas personas naturales; | AL129: Inversión | AM129: 45
A130: CPS-117-2019 | B130: 2019 | C130: FDLCBCD-116-2019 | D130: Contratos de prestación de servicios profesionales y de apoyo a la gestión | E130: Contratación directa | F130: Prestación de servicios profesionales y de apoyo a la gestión, o para la ejecución de trabajos artísticos que sólo puedan encomendarse a determinadas personas naturales; | G130: Prestar sus servicios profesionales para apoyar la formulación, gestión y seguimiento de actividades enfocadas a la gestión ambiental externa, encaminadas a la mitigación de los diferentes impactos ambientales y la consrvación de los recursos naturales de la Localidad de Ciudad Bolívar | H130: Inversión | I130: 45 | J130: =IF(ISERROR(VLOOKUP(I130,Eje_Pilar!$C$2:$E$47,2,FALSE))," ",VLOOKUP(I130,Eje_Pilar!$C$2:$E$47,2,FALSE)) -> Gobernanza e influencia local, regional e internacional | K130: =IF(ISERROR(VLOOKUP(I130,Eje_Pilar!$C$2:$E$47,3,FALSE))," ",VLOOKUP(I130,Eje_Pilar!$C$2:$E$47,3,FALSE)) -> Eje Transversal 4 Gobierno Legitimo, Fortalecimiento Local y Eficiencia | L130: 1281 | M130: 1013641990 | N130: VANESA CATALINA TOSCANO HERNANDEZ | O130: 51700000 | T130: 51700000 | U130: 44023333 | V130: 2019-02-14 | W130: 2019-02-20 | X130: 2020-01-19 | Y130: 330 | AC130: X | AF130: 0.8515151451 | AH130: =IF(SUMPRODUCT((A$14:A130=A130)*(B$14:B130=B130)*(C$14:C130=C130))>1,0,1) -> 1 | AI130: Contratos de prestación de servicios profesionales y de apoyo a la gestión | AJ130: Contratación directa | AK130: =IFERROR(VLOOKUP(F130,Tipo!$C$12:$C$27,1,FALSE),"NO") -> Prestación de servicios profesionales y de apoyo a la gestión, o para la ejecución de trabajos artísticos que sólo puedan encomendarse a determinadas personas naturales; | AL130: Inversión | AM130: 45
A131: CPS-118-2019 | B131: 2019 | C131: FDLCB-CD-117-2019 | D131: Contratos de prestación de servicios profesionales y de apoyo a la gestión | E131: Contratación directa | F131: Prestación de servicios profesionales y de apoyo a la gestión, o para la ejecución de trabajos artísticos que sólo puedan encomendarse a determinadas personas naturales; | G131: Prestar los servicios de apoyo técnico para realizar actividades administrativas que se adelantan en el almacén de la Alcaldía Local de Ciudad Bolívar | H131: Inversión | I131: 45 | J131: =IF(ISERROR(VLOOKUP(I131,Eje_Pilar!$C$2:$E$47,2,FALSE))," ",VLOOKUP(I131,Eje_Pilar!$C$2:$E$47,2,FALSE)) -> Gobernanza e influencia local, regional e internacional | K131: =IF(ISERROR(VLOOKUP(I131,Eje_Pilar!$C$2:$E$47,3,FALSE))," ",VLOOKUP(I131,Eje_Pilar!$C$2:$E$47,3,FALSE)) -> Eje Transversal 4 Gobierno Legitimo, Fortalecimiento Local y Eficiencia | L131: 1281 | M131: 53094104 | N131: MAYERLY PEÑA SAAVEDRA | O131: 34100000 | T131: 34100000 | U131: 29036667 | V131: 2019-02-15 | W131: 2019-02-20 | X131: 2020-01-19 | Y131: 330 | AC131: X | AF131: 0.8515151613 | AH131: =IF(SUMPRODUCT((A$14:A131=A131)*(B$14:B131=B131)*(C$14:C131=C131))>1,0,1) -> 1 | AI131: Contratos de prestación de servicios profesionales y de apoyo a la gestión | AJ131: Contratación directa | AK131: =IFERROR(VLOOKUP(F131,Tipo!$C$12:$C$27,1,FALSE),"NO") -> Prestación de servicios profesionales y de apoyo a la gestión, o para la ejecución de trabajos artísticos que sólo puedan encomendarse a determinadas personas naturales; | AL131: Inversión | AM131: 45
A132: CPS-119-2019 | B132: 2019 | C132: FDLCB-CD-118-2019 | D132: Contratos de prestación de servicios profesionales y de apoyo a la gestión | E132: Contratación directa | F132: Prestación de servicios profesionales y de apoyo a la gestión, o para la ejecución de trabajos artísticos que sólo puedan encomendarse a determinadas personas naturales; | G132: prestar sus servicios como conductor de volqueta de propiedad del Fondo de Desarrollo Local de Ciudad Bolívar para la realización de labores de mantenimiento de malla vial y las zonas públicas de la Localidad, así como atender las emergencias que surjan en la Localidad | H132: Inversión | I132: 18 | J132: =IF(ISERROR(VLOOKUP(I132,Eje_Pilar!$C$2:$E$47,2,FALSE))," ",VLOOKUP(I132,Eje_Pilar!$C$2:$E$47,2,FALSE)) -> Mejor movilidad para todos | K132: =IF(ISERROR(VLOOKUP(I132,Eje_Pilar!$C$2:$E$47,3,FALSE))," ",VLOOKUP(I132,Eje_Pilar!$C$2:$E$47,3,FALSE)) -> Pilar 2 Democracía Urbana | L132: 1424 | M132: 80262791 | N132: NORBERTO RICO GORDILLO | O132: 25300000 | R132: 1 | S132: 5520000 | T132: 30820000 | U132: 21543333 | V132: 2019-02-20 | W132: 2019-02-20 | X132: 2020-03-31 | Y132: 330 | Z132: 72 | AC132: X | AF132: 0.6990049643 | AH132: =IF(SUMPRODUCT((A$14:A132=A132)*(B$14:B132=B132)*(C$14:C132=C132))>1,0,1) -> 1 | AI132: Contratos de prestación de servicios profesionales y de apoyo a la gestión | AJ132: Contratación directa | AK132: =IFERROR(VLOOKUP(F132,Tipo!$C$12:$C$27,1,FALSE),"NO") -> Prestación de servicios profesionales y de apoyo a la gestión, o para la ejecución de trabajos artísticos que sólo puedan encomendarse a determinadas personas naturales; | AL132: Inversión | AM132: 18
A133: CPS-120-2019 | B133: 2019 | C133: FDLCB-CD-119-2019 | D133: Contratos de prestación de servicios profesionales y de apoyo a la gestión | E133: Contratación directa | F133: Prestación de servicios profesionales y de apoyo a la gestión, o para la ejecución de trabajos artísticos que sólo puedan encomendarse a determinadas personas naturales; | G133: Apoyar al Alcalde Local en la promoción, acompañamiento, coordinación y atención de las instancias de coordinación interinstitucionales y las instancias de participación locales, así como los procesos comunitarios en la localidad | H133: Inversión | I133: 45 | J133: =IF(ISERROR(VLOOKUP(I133,Eje_Pilar!$C$2:$E$47,2,FALSE))," ",VLOOKUP(I133,Eje_Pilar!$C$2:$E$47,2,FALSE)) -> Gobernanza e influencia local, regional e internacional | K133: =IF(ISERROR(VLOOKUP(I133,Eje_Pilar!$C$2:$E$47,3,FALSE))," ",VLOOKUP(I133,Eje_Pilar!$C$2:$E$47,3,FALSE)) -> Eje Transversal 4 Gobierno Legitimo, Fortalecimiento Local y Eficiencia | L133: 1281 | M133: 1010217730 | N133: LAURA KATERIN VARGAS PEÑA | O133: 52800000 | R133: 1 | S133: 12320000 | T133: 65120000 | U133: 45760000 | V133: 2019-02-15 | W133: 2019-02-15 | X133: 2020-03-31 | Y133: 330 | Z133: 77 | AC133: X | AF133: 0.7027027027 | AH133: =IF(SUMPRODUCT((A$14:A133=A133)*(B$14:B133=B133)*(C$14:C133=C133))>1,0,1) -> 1 | AI133: Contratos de prestación de servicios profesionales y de apoyo a la gestión | AJ133: Contratación directa | AK133: =IFERROR(VLOOKUP(F133,Tipo!$C$12:$C$27,1,FALSE),"NO") -> Prestación de servicios profesionales y de apoyo a la gestión, o para la ejecución de trabajos artísticos que sólo puedan encomendarse a determinadas personas naturales; | AL133: Inversión | AM133: 45
A134: CPS-121-2019 | B134: 2019 | C134: FDLCB-CD-120-2019 | D134: Contratos de prestación de servicios profesionales y de apoyo a la gestión | E134: Contratación directa | F134: Prestación de servicios profesionales y de apoyo a la gestión, o para la ejecución de trabajos artísticos que sólo puedan encomendarse a determinadas personas naturales; | G134: Prestar sus servicios profesionales para desarrollar todas las actividades concernientes a la conecución de biene y/o servicios para la Localidad de Ciudad Bolívar de acuerdo con los procedimientos establecidos en el SIG y a la normatividad vigente en matería de contratación estatal en cumplimiento de las metas establecidas en el Plan de Desarrollo Local de Ciudad Bolívar, Plan de Gestión y Plan Anual de Adquisiciones | H134: Inversión | I134: 45 | J134: =IF(ISERROR(VLOOKUP(I134,Eje_Pilar!$C$2:$E$47,2,FALSE))," ",VLOOKUP(I134,Eje_Pilar!$C$2:$E$47,2,FALSE)) -> Gobernanza e influencia local, regional e internacional | K134: =IF(ISERROR(VLOOKUP(I134,Eje_Pilar!$C$2:$E$47,3,FALSE))," ",VLOOKUP(I134,Eje_Pilar!$C$2:$E$47,3,FALSE)) -> Eje Transversal 4 Gobierno Legitimo, Fortalecimiento Local y Eficiencia | L134: 1281 | M134: 80041468 | N134: ANDRES FERNANDO MARTINEZ MARTINEZ | O134: 60500000 | R134: 1 | S134: 14116667 | T134: 74616667 | U134: 52433333 | V134: 2019-02-14 | W134: 2019-02-21 | X134: 2020-03-31 | Y134: 330 | Z134: 77 | AC134: X | AF134: 0.7027026951 | AH134: =IF(SUMPRODUCT((A$14:A134=A134)*(B$14:B134=B134)*(C$14:C134=C134))>1,0,1) -> 1 | AI134: Contratos de prestación de servicios profesionales y de apoyo a la gestión | AJ134: Contratación directa | AK134: =IFERROR(VLOOKUP(F134,Tipo!$C$12:$C$27,1,FALSE),"NO") -> Prestación de servicios profesionales y de apoyo a la gestión, o para la ejecución de trabajos artísticos que sólo puedan encomendarse a determinadas personas naturales; | AL134: Inversión | AM134: 45
A135: CPS-122-2019 | B135: 2019 | C135: FDLCB-CD-121-2019 | D135: Contratos de prestación de servicios profesionales y de apoyo a la gestión | E135: Contratación directa | F135: Prestación de servicios profesionales y de apoyo a la gestión, o para la ejecución de trabajos artísticos que sólo puedan encomendarse a determinadas personas naturales; | G135: Prestar sus servicios técnicos para el apoyoen la gestión seguimiento y ejecución de las actividades relacionadas con temas de gestión ambiental y gestión del cambio climático territorial de la Localidad de Ciudad Bolívar | H135: Inversión | I135: 45 | J135: =IF(ISERROR(VLOOKUP(I135,Eje_Pilar!$C$2:$E$47,2,FALSE))," ",VLOOKUP(I135,Eje_Pilar!$C$2:$E$47,2,FALSE)) -> Gobernanza e influencia local, regional e internacional | K135: =IF(ISERROR(VLOOKUP(I135,Eje_Pilar!$C$2:$E$47,3,FALSE))," ",VLOOKUP(I135,Eje_Pilar!$C$2:$E$47,3,FALSE)) -> Eje Transversal 4 Gobierno Legitimo, Fortalecimiento Local y Eficiencia | L135: 1281 | M135: 79821780 | N135: GERMAN RICARDO PARRA OSORIO | O135: 34100000 | R135: 1 | S135: 7440000 | T135: 41540000 | U135: 29036666 | V135: 2019-02-20 | W135: 2019-02-20 | X135: 2020-03-31 | Y135: 330 | Z135: 72 | AC135: X | AF135: 0.6990049591 | AH135: =IF(SUMPRODUCT((A$14:A135=A135)*(B$14:B135=B135)*(C$14:C135=C135))>1,0,1) -> 1 | AI135: Contratos de prestación de servicios profesionales y de apoyo a la gestión | AJ135: Contratación directa | AK135: =IFERROR(VLOOKUP(F135,Tipo!$C$12:$C$27,1,FALSE),"NO") -> Prestación de servicios profesionales y de apoyo a la gestión, o para la ejecución de trabajos artísticos que sólo puedan encomendarse a determinadas personas naturales; | AL135: Inversión | AM135: 45
A136: CPS-123-2019 | B136: 2019 | C136: FDLCB-CD-122-2019 | D136: Contratos de prestación de servicios profesionales y de apoyo a la gestión | E136: Contratación directa | F136: Prestación de servicios profesionales y de apoyo a la gestión, o para la ejecución de trabajos artísticos que sólo puedan encomendarse a determinadas personas naturales; | G136: Prestar sus servicios profesionales para ñla administración de la galería del Perdomo ubicada en la Localidad de Ciudad Bolívar | H136: Inversión | I136: 45 | J136: =IF(ISERROR(VLOOKUP(I136,Eje_Pilar!$C$2:$E$47,2,FALSE))," ",VLOOKUP(I136,Eje_Pilar!$C$2:$E$47,2,FALSE)) -> Gobernanza e influencia local, regional e internacional | K136: =IF(ISERROR(VLOOKUP(I136,Eje_Pilar!$C$2:$E$47,3,FALSE))," ",VLOOKUP(I136,Eje_Pilar!$C$2:$E$47,3,FALSE)) -> Eje Transversal 4 Gobierno Legitimo, Fortalecimiento Local y Eficiencia | L136: 1281 | M136: 52801594 | N136: ALIX JOHANA GUZMAN | O136: 51700000 | R136: 1 | S136: 11280000 | T136: 62980000 | U136: 39323333 | V136: 2019-02-20 | W136: 2019-02-20 | X136: 2020-03-31 | Y136: 330 | Z136: 72 | AC136: X | AF136: 0.6243781042 | AH136: =IF(SUMPRODUCT((A$14:A136=A136)*(B$14:B136=B136)*(C$14:C136=C136))>1,0,1) -> 1 | AI136: Contratos de prestación de servicios profesionales y de apoyo a la gestión | AJ136: Contratación directa | AK136: =IFERROR(VLOOKUP(F136,Tipo!$C$12:$C$27,1,FALSE),"NO") -> Prestación de servicios profesionales y de apoyo a la gestión, o para la ejecución de trabajos artísticos que sólo puedan encomendarse a determinadas personas naturales; | AL136: Inversión | AM136: 45
A137: CPS-124-2019 | B137: 2019 | C137: FDLCB-CD-123-2019 | D137: Contratos de prestación de servicios profesionales y de apoyo a la gestión | E137: Contratación directa | F137: Prestación de servicios profesionales y de apoyo a la gestión, o para la ejecución de trabajos artísticos que sólo puedan encomendarse a determinadas personas naturales; | G137: prestar los servicios de apoyo asistenciales para la Junta Administradora Local de Ciudad Bolívar | H137: Inversión | I137: 45 | J137: =IF(ISERROR(VLOOKUP(I137,Eje_Pilar!$C$2:$E$47,2,FALSE))," ",VLOOKUP(I137,Eje_Pilar!$C$2:$E$47,2,FALSE)) -> Gobernanza e influencia local, regional e internacional | K137: =IF(ISERROR(VLOOKUP(I137,Eje_Pilar!$C$2:$E$47,3,FALSE))," ",VLOOKUP(I137,Eje_Pilar!$C$2:$E$47,3,FALSE)) -> Eje Transversal 4 Gobierno Legitimo, Fortalecimiento Local y Eficiencia | L137: 1281 | M137: 53010611 | N137: CLAUDIA MILENA GALINDO | O137: 26400000 | T137: 26400000 | U137: 22480000 | V137: 2019-02-14 | W137: 2019-02-20 | X137: 2020-01-19 | Y137: 330 | AC137: X | AF137: 0.8515151515 | AH137: =IF(SUMPRODUCT((A$14:A137=A137)*(B$14:B137=B137)*(C$14:C137=C137))>1,0,1) -> 1 | AI137: Contratos de prestación de servicios profesionales y de apoyo a la gestión | AJ137: Contratación directa | AK137: =IFERROR(VLOOKUP(F137,Tipo!$C$12:$C$27,1,FALSE),"NO") -> Prestación de servicios profesionales y de apoyo a la gestión, o para la ejecución de trabajos artísticos que sólo puedan encomendarse a determinadas personas naturales; | AL137: Inversión | AM137: 45
A138: CPS-125-2019 | B138: 2019 | C138: FDLCB-CD-124-2019 | D138: Contratos de prestación de servicios profesionales y de apoyo a la gestión | E138: Contratación directa | F138: Prestación de servicios profesionales y de apoyo a la gestión, o para la ejecución de trabajos artísticos que sólo puedan encomendarse a determinadas personas naturales; | G138: Prestar sus servicios como conductor de automotor para la maquinaría pesada de propiedad del Fondo del Fondo de Desarrollo Local de Ciudad Bolívar para la realización labores de mantenimiento de la malla vial y las zonas publicas de la Localidad, así como atender las emergencias que surjan en la Localidad de Ciudad Bolívar | H138: Inversión | I138: 18 | J138: =IF(ISERROR(VLOOKUP(I138,Eje_Pilar!$C$2:$E$47,2,FALSE))," ",VLOOKUP(I138,Eje_Pilar!$C$2:$E$47,2,FALSE)) -> Mejor movilidad para todos | K138: =IF(ISERROR(VLOOKUP(I138,Eje_Pilar!$C$2:$E$47,3,FALSE))," ",VLOOKUP(I138,Eje_Pilar!$C$2:$E$47,3,FALSE)) -> Pilar 2 Democracía Urbana | L138: 1424 | M138: 79771916 | N138: FREDDY ALEXANDER NIÑO MAHECHA | O138: 25300000 | R138: 1 | S138: 5520000 | T138: 30820000 | U138: 21543333 | V138: 2019-02-20 | W138: 2019-02-20 | X138: 2020-03-31 | Y138: 330 | Z138: 72 | AC138: X | AF138: 0.6990049643 | AH138: =IF(SUMPRODUCT((A$14:A138=A138)*(B$14:B138=B138)*(C$14:C138=C138))>1,0,1) -> 1 | AI138: Contratos de prestación de servicios profesionales y de apoyo a la gestión | AJ138: Contratación directa | AK138: =IFERROR(VLOOKUP(F138,Tipo!$C$12:$C$27,1,FALSE),"NO") -> Prestación de servicios profesionales y de apoyo a la gestión, o para la ejecución de trabajos artísticos que sólo puedan encomendarse a determinadas personas naturales; | AL138: Inversión | AM138: 18
A139: CPS-126-2019 | B139: 2019 | C139: FDLCB-CD-125-2019 | D139: Contratos de prestación de servicios profesionales y de apoyo a la gestión | E139: Contratación directa | F139: Prestación de servicios profesionales y de apoyo a la gestión, o para la ejecución de trabajos artísticos que sólo puedan encomendarse a determinadas personas naturales; | G139: Prestación de servicios profesionales como apoyo al Área de Gestión de Desarrollo Local de Ciudad Bolívar Planeación, realizando las actividades concernientes al desarrollo de los proyectos de inversión de la Alcaldía Local de Ciudad Bolívar, en cumplimiento al Plan de Desarrollo Local 2017-2020 | H139: Inversión | I139: 45 | J139: =IF(ISERROR(VLOOKUP(I139,Eje_Pilar!$C$2:$E$47,2,FALSE))," ",VLOOKUP(I139,Eje_Pilar!$C$2:$E$47,2,FALSE)) -> Gobernanza e influencia local, regional e internacional | K139: =IF(ISERROR(VLOOKUP(I139,Eje_Pilar!$C$2:$E$47,3,FALSE))," ",VLOOKUP(I139,Eje_Pilar!$C$2:$E$47,3,FALSE)) -> Eje Transversal 4 Gobierno Legitimo, Fortalecimiento Local y Eficiencia | L139: 1281 | M139: 1016013382 | N139: ISABEL CASTRO HEREDIA | O139: 55000000 | R139: 1 | S139: 12166667 | T139: 67166667 | U139: 47000000 | V139: 2019-02-19 | W139: 2019-02-19 | X139: 2020-03-31 | Y139: 330 | Z139: 73 | AC139: X | AF139: 0.6997518576 | AH139: =IF(SUMPRODUCT((A$14:A139=A139)*(B$14:B139=B139)*(C$14:C139=C139))>1,0,1) -> 1 | AI139: Contratos de prestación de servicios profesionales y de apoyo a la gestión | AJ139: Contratación directa | AK139: =IFERROR(VLOOKUP(F139,Tipo!$C$12:$C$27,1,FALSE),"NO") -> Prestación de servicios profesionales y de apoyo a la gestión, o para la ejecución de trabajos artísticos que sólo puedan encomendarse a determinadas personas naturales; | AL139: Inversión | AM139: 45
A140: CPS-127-2019 | B140: 2019 | C140: FDLCB-CD-126-2019 | D140: Contratos de prestación de servicios profesionales y de apoyo a la gestión | E140: Contratación directa | F140: Prestación de servicios profesionales y de apoyo a la gestión, o para la ejecución de trabajos artísticos que sólo puedan encomendarse a determinadas personas naturales; | G140: Prestar los servicios de apoyo para realizar obligaciones secretariales de seguimiento a los derechos de petición y solicitudes de información en general, realizando alertas que generen la respuesta oportuna de los mismos, en el marco del plan de desarrollo local de la Alcaldía Local De Ciudad Bolívar | H140: Inversión | I140: 45 | J140: =IF(ISERROR(VLOOKUP(I140,Eje_Pilar!$C$2:$E$47,2,FALSE))," ",VLOOKUP(I140,Eje_Pilar!$C$2:$E$47,2,FALSE)) -> Gobernanza e influencia local, regional e internacional | K140: =IF(ISERROR(VLOOKUP(I140,Eje_Pilar!$C$2:$E$47,3,FALSE))," ",VLOOKUP(I140,Eje_Pilar!$C$2:$E$47,3,FALSE)) -> Eje Transversal 4 Gobierno Legitimo, Fortalecimiento Local y Eficiencia | L140: 1281 | M140: 1013627733 | N140: YURI XIOMARA SANCHEZ CASTRO | O140: 26400000 | T140: 26400000 | U140: 22480000 | V140: 2019-02-20 | W140: 2019-02-20 | X140: 2020-01-19 | Y140: 330 | AC140: X | AF140: 0.8515151515 | AH140: =IF(SUMPRODUCT((A$14:A140=A140)*(B$14:B140=B140)*(C$14:C140=C140))>1,0,1) -> 1 | AI140: Contratos de prestación de servicios profesionales y de apoyo a la gestión | AJ140: Contratación directa | AK140: =IFERROR(VLOOKUP(F140,Tipo!$C$12:$C$27,1,FALSE),"NO") -> Prestación de servicios profesionales y de apoyo a la gestión, o para la ejecución de trabajos artísticos que sólo puedan encomendarse a determinadas personas naturales; | AL140: Inversión | AM140: 45
A141: CPS-128-2019 | B141: 2019 | C141: FDLCB-CD-127-2019 | D141: Contratos de prestación de servicios profesionales y de apoyo a la gestión | E141: Contratación directa | F141: Prestación de servicios profesionales y de apoyo a la gestión, o para la ejecución de trabajos artísticos que sólo puedan encomendarse a determinadas personas naturales; | G141: Prestar sus servicios profesionles en el proceso de liquidación de los convenios y contratos suscritos por el Fondo de Desarrllo Local de Ciudad Bolívar y en seguimiento, depuraci+on y consolidación de información de obligaciones por pagar vigentes | H141: Inversión | I141: 45 | J141: =IF(ISERROR(VLOOKUP(I141,Eje_Pilar!$C$2:$E$47,2,FALSE))," ",VLOOKUP(I141,Eje_Pilar!$C$2:$E$47,2,FALSE)) -> Gobernanza e influencia local, regional e internacional | K141: =IF(ISERROR(VLOOKUP(I141,Eje_Pilar!$C$2:$E$47,3,FALSE))," ",VLOOKUP(I141,Eje_Pilar!$C$2:$E$47,3,FALSE)) -> Eje Transversal 4 Gobierno Legitimo, Fortalecimiento Local y Eficiencia | L141: 1281 | M141: 52504466 | N141: YENNY ANDREA VARGAS VELASQUEZ | O141: 50600000 | R141: 1 | S141: 11193333 | T141: 61793333 | U141: 43240000 | V141: 2019-02-19 | W141: 2019-02-19 | X141: 2020-01-18 | Y141: 330 | Z141: 73 | AC141: X | AF141: 0.6997518648 | AH141: =IF(SUMPRODUCT((A$14:A141=A141)*(B$14:B141=B141)*(C$14:C141=C141))>1,0,1) -> 1 | AI141: Contratos de prestación de servicios profesionales y de apoyo a la gestión | AJ141: Contratación directa | AK141: =IFERROR(VLOOKUP(F141,Tipo!$C$12:$C$27,1,FALSE),"NO") -> Prestación de servicios profesionales y de apoyo a la gestión, o para la ejecución de trabajos artísticos que sólo puedan encomendarse a determinadas personas naturales; | AL141: Inversión | AM141: 45
A142: CPS-129-2019 | B142: 2019 | C142: FDLCB-CD-128-2019 | D142: Contratos de prestación de servicios profesionales y de apoyo a la gestión | E142: Contratación directa | F142: Prestación de servicios profesionales y de apoyo a la gestión, o para la ejecución de trabajos artísticos que sólo puedan encomendarse a determinadas personas naturales; | G142: Prestar sus servicios para apoyar al equipo de prensa y comunicaciones de la Alcaldía Local en la realización de productos y piezas digitales impresas y publicitarias de gran formato y de animación gráfica, así como apoyar la producción y montaje de eventos | H142: Inversión | I142: 45 | J142: =IF(ISERROR(VLOOKUP(I142,Eje_Pilar!$C$2:$E$47,2,FALSE))," ",VLOOKUP(I142,Eje_Pilar!$C$2:$E$47,2,FALSE)) -> Gobernanza e influencia local, regional e internacional | K142: =IF(ISERROR(VLOOKUP(I142,Eje_Pilar!$C$2:$E$47,3,FALSE))," ",VLOOKUP(I142,Eje_Pilar!$C$2:$E$47,3,FALSE)) -> Eje Transversal 4 Gobierno Legitimo, Fortalecimiento Local y Eficiencia | L142: 1281 | M142: 79604052 | N142: ROBERT URREGO RAMOS | O142: 51700000 | R142: 1 | S142: 11436667 | T142: 63136667 | U142: 44180000 | V142: 2019-02-14 | W142: 2019-02-19 | X142: 2020-03-31 | Y142: 330 | Z142: 73 | AC142: X | AF142: 0.6997518573 | AH142: =IF(SUMPRODUCT((A$14:A142=A142)*(B$14:B142=B142)*(C$14:C142=C142))>1,0,1) -> 1 | AI142: Contratos de prestación de servicios profesionales y de apoyo a la gestión | AJ142: Contratación directa | AK142: =IFERROR(VLOOKUP(F142,Tipo!$C$12:$C$27,1,FALSE),"NO") -> Prestación de servicios profesionales y de apoyo a la gestión, o para la ejecución de trabajos artísticos que sólo puedan encomendarse a determinadas personas naturales; | AL142: Inversión | AM142: 45
A143: CPS-130-2019 | B143: 2019 | C143: FDLCB-CD-129-2019 | D143: Contratos de prestación de servicios profesionales y de apoyo a la gestión | E143: Contratación directa | F143: Prestación de servicios profesionales y de apoyo a la gestión, o para la ejecución de trabajos artísticos que sólo puedan encomendarse a determinadas personas naturales; | G143: Apoyar al Alcalde Local en la promoción, acompañamiento, coordinación y atención de las instancias de coordinación interinstitucionales y las instancias de participación locales, así como los procesos comunitarios en la localidad | H143: Inversión | I143: 45 | J143: =IF(ISERROR(VLOOKUP(I143,Eje_Pilar!$C$2:$E$47,2,FALSE))," ",VLOOKUP(I143,Eje_Pilar!$C$2:$E$47,2,FALSE)) -> Gobernanza e influencia local, regional e internacional | K143: =IF(ISERROR(VLOOKUP(I143,Eje_Pilar!$C$2:$E$47,3,FALSE))," ",VLOOKUP(I143,Eje_Pilar!$C$2:$E$47,3,FALSE)) -> Eje Transversal 4 Gobierno Legitimo, Fortalecimiento Local y Eficiencia | L143: 1281 | M143: 23490661 | N143: LUZ MARINA ORTEGA GARCIA | O143: 52800000 | T143: 52800000 | U143: 44960000 | V143: 2019-02-14 | W143: 2019-02-20 | X143: 2020-01-19 | Y143: 330 | AC143: X | AF143: 0.8515151515 | AH143: =IF(SUMPRODUCT((A$14:A143=A143)*(B$14:B143=B143)*(C$14:C143=C143))>1,0,1) -> 1 | AI143: Contratos de prestación de servicios profesionales y de apoyo a la gestión | AJ143: Contratación directa | AK143: =IFERROR(VLOOKUP(F143,Tipo!$C$12:$C$27,1,FALSE),"NO") -> Prestación de servicios profesionales y de apoyo a la gestión, o para la ejecución de trabajos artísticos que sólo puedan encomendarse a determinadas personas naturales; | AL143: Inversión | AM143: 45
A144: CPS-131-2019 | B144: 2019 | C144: FDLCB-CD-130-2019 | D144: Contratos de prestación de servicios profesionales y de apoyo a la gestión | E144: Contratación directa | F144: Prestación de servicios profesionales y de apoyo a la gestión, o para la ejecución de trabajos artísticos que sólo puedan encomendarse a determinadas personas naturales; | G144: Prestar sus servicios profesionales para desarrollar todas las actividades concernientes a la consecución de bienes y/o servicios para la Localidad de Ciudad Bolívar de acuerdo con los procedimientos establecidos en el SIG y a la normatividad vigente en matería de contratación estatal en cumplimiento de las metas establecidas en el Plan de Desarrollo Local de Ciudad Bolívar, Plan de Gestión y Plan Anual de Adquisiciones | H144: Inversión | I144: 45 | J144: =IF(ISERROR(VLOOKUP(I144,Eje_Pilar!$C$2:$E$47,2,FALSE))," ",VLOOKUP(I144,Eje_Pilar!$C$2:$E$47,2,FALSE)) -> Gobernanza e influencia local, regional e internacional | K144: =IF(ISERROR(VLOOKUP(I144,Eje_Pilar!$C$2:$E$47,3,FALSE))," ",VLOOKUP(I144,Eje_Pilar!$C$2:$E$47,3,FALSE)) -> Eje Transversal 4 Gobierno Legitimo, Fortalecimiento Local y Eficiencia | L144: 1281 | M144: 65782600 | N144: LINA TERESA CORTES RAMIREZ | O144: 60500000 | R144: 1 | S144: 12100000 | T144: 72600000 | U144: 50600000 | V144: 2019-02-25 | W144: 2019-02-25 | X144: 2020-03-31 | Y144: 330 | Z144: 67 | AC144: X | AF144: =IF(ISERROR(U144/T144),"-",(U144/T144)) -> 0.696969697 | AH144: =IF(SUMPRODUCT((A$14:A144=A144)*(B$14:B144=B144)*(C$14:C144=C144))>1,0,1) -> 1 | AI144: Contratos de prestación de servicios profesionales y de apoyo a la gestión | AJ144: Contratación directa | AK144: =IFERROR(VLOOKUP(F144,Tipo!$C$12:$C$27,1,FALSE),"NO") -> Prestación de servicios profesionales y de apoyo a la gestión, o para la ejecución de trabajos artísticos que sólo puedan encomendarse a determinadas personas naturales; | AL144: Inversión | AM144: 45
A145: CPS-132-2019 | B145: 2019 | C145: FDLCB-CD-131-2019 | D145: Contratos de prestación de servicios profesionales y de apoyo a la gestión | E145: Contratación directa | F145: Prestación de servicios profesionales y de apoyo a la gestión, o para la ejecución de trabajos artísticos que sólo puedan encomendarse a determinadas personas naturales; | G145: Prestar los servicios profesionales en materia de soporte, administración e instalación de software y hardware en la oficina de sistemas de la Alcaldía Local De Ciudad Bolívar. | H145: Inversión | I145: 45 | J145: =IF(ISERROR(VLOOKUP(I145,Eje_Pilar!$C$2:$E$47,2,FALSE))," ",VLOOKUP(I145,Eje_Pilar!$C$2:$E$47,2,FALSE)) -> Gobernanza e influencia local, regional e internacional | K145: =IF(ISERROR(VLOOKUP(I145,Eje_Pilar!$C$2:$E$47,3,FALSE))," ",VLOOKUP(I145,Eje_Pilar!$C$2:$E$47,3,FALSE)) -> Eje Transversal 4 Gobierno Legitimo, Fortalecimiento Local y Eficiencia | L145: 1281 | M145: 80117116 | N145: WIESNER FABIAN ROBAYO SALCEDO | O145: 55000000 | R145: 1 | S145: 12833333 | T145: 67833333 | U145: 47666667 | V145: 2019-02-14 | W145: 2019-02-15 | X145: 2020-03-31 | Y145: 330 | Z145: 77 | AC145: X | AF145: 0.7027027111 | AH145: =IF(SUMPRODUCT((A$14:A145=A145)*(B$14:B145=B145)*(C$14:C145=C145))>1,0,1) -> 1 | AI145: Contratos de prestación de servicios profesionales y de apoyo a la gestión | AJ145: Contratación directa | AK145: =IFERROR(VLOOKUP(F145,Tipo!$C$12:$C$27,1,FALSE),"NO") -> Prestación de servicios profesionales y de apoyo a la gestión, o para la ejecución de trabajos artísticos que sólo puedan encomendarse a determinadas personas naturales; | AL145: Inversión | AM145: 45
A146: CPS-133-2019 | B146: 2019 | C146: FDLCB-CD-132-2019 | D146: Contratos de prestación de servicios profesionales y de apoyo a la gestión | E146: Contratación directa | F146: Prestación de servicios profesionales y de apoyo a la gestión, o para la ejecución de trabajos artísticos que sólo puedan encomendarse a determinadas personas naturales; | G146: Apoyar al Alcalde Local en la promoción, acompañamiento, coordinación y atención de las instancias de coordinación interinstitucionales y las instancias de participación locales, así como los procesos comunitarios en la localidad | H146: Inversión | I146: 45 | J146: =IF(ISERROR(VLOOKUP(I146,Eje_Pilar!$C$2:$E$47,2,FALSE))," ",VLOOKUP(I146,Eje_Pilar!$C$2:$E$47,2,FALSE)) -> Gobernanza e influencia local, regional e internacional | K146: =IF(ISERROR(VLOOKUP(I146,Eje_Pilar!$C$2:$E$47,3,FALSE))," ",VLOOKUP(I146,Eje_Pilar!$C$2:$E$47,3,FALSE)) -> Eje Transversal 4 Gobierno Legitimo, Fortalecimiento Local y Eficiencia | L146: 1281 | M146: 1018427195 | N146: ELIANA ROCIO TIRADO CUELLAR | O146: 52800000 | R146: 1 | S146: 12320000 | T146: 65120000 | U146: 45760000 | V146: 2019-02-14 | W146: 2019-02-15 | X146: 2020-03-31 | Y146: 330 | Z146: 77 | AC146: X | AF146: 0.7027027027 | AH146: =IF(SUMPRODUCT((A$14:A146=A146)*(B$14:B146=B146)*(C$14:C146=C146))>1,0,1) -> 1 | AI146: Contratos de prestación de servicios profesionales y de apoyo a la gestión | AJ146: Contratación directa | AK146: =IFERROR(VLOOKUP(F146,Tipo!$C$12:$C$27,1,FALSE),"NO") -> Prestación de servicios profesionales y de apoyo a la gestión, o para la ejecución de trabajos artísticos que sólo puedan encomendarse a determinadas personas naturales; | AL146: Inversión | AM146: 45
A147: CPS-134-2019 | B147: 2019 | C147: FDLCB-CD-133-2019 | D147: Contratos de prestación de servicios profesionales y de apoyo a la gestión | E147: Contratación directa | F147: Prestación de servicios profesionales y de apoyo a la gestión, o para la ejecución de trabajos artísticos que sólo puedan encomendarse a determinadas personas naturales; | G147: Prestar sus servicios profesionales para apoyar el equipo de prensa y comunicaciones de la Alcaldía Local mediante el registro, la edición y la presentación de fotografias de los acontecimientos, hechos y eventos de la Alcaldía Local en los medios de comunicación especialmente escritos, digitales y audiovisuales | H147: Inversión | I147: 45 | J147: =IF(ISERROR(VLOOKUP(I147,Eje_Pilar!$C$2:$E$47,2,FALSE))," ",VLOOKUP(I147,Eje_Pilar!$C$2:$E$47,2,FALSE)) -> Gobernanza e influencia local, regional e internacional | K147: =IF(ISERROR(VLOOKUP(I147,Eje_Pilar!$C$2:$E$47,3,FALSE))," ",VLOOKUP(I147,Eje_Pilar!$C$2:$E$47,3,FALSE)) -> Eje Transversal 4 Gobierno Legitimo, Fortalecimiento Local y Eficiencia | L147: 1281 | M147: 53041995 | N147: SHIRLEY SAENZ BUITRAGO | O147: 51700000 | T147: 51700000 | U147: 44806667 | V147: 2019-02-14 | W147: 2019-02-15 | X147: 2020-01-14 | Y147: 330 | AC147: X | AF147: 0.8666666731 | AH147: =IF(SUMPRODUCT((A$14:A147=A147)*(B$14:B147=B147)*(C$14:C147=C147))>1,0,1) -> 1 | AI147: Contratos de prestación de servicios profesionales y de apoyo a la gestión | AJ147: Contratación directa | AK147: =IFERROR(VLOOKUP(F147,Tipo!$C$12:$C$27,1,FALSE),"NO") -> Prestación de servicios profesionales y de apoyo a la gestión, o para la ejecución de trabajos artísticos que sólo puedan encomendarse a determinadas personas naturales; | AL147: Inversión | AM147: 45
A148: CPS-135-2019 | B148: 2019 | C148: FDLCB-CD-134-2019 | D148: Contratos de prestación de servicios profesionales y de apoyo a la gestión | E148: Contratación directa | F148: Prestación de servicios profesionales y de apoyo a la gestión, o para la ejecución de trabajos artísticos que sólo puedan encomendarse a determinadas personas naturales; | G148: Prestación de servicios profesionales como apoyo al Área de Gestión de Desarrollo Local de Ciudad Bolívar ¿ Planeación, realizando las actividades concernientes al desarrollo de los proyectos de inversión de la Alcaldía Local de Ciudad Bolívar, en cumplimiento al Plan de Desarrollo Local 2017-2020 | H148: Inversión | I148: 45 | J148: =IF(ISERROR(VLOOKUP(I148,Eje_Pilar!$C$2:$E$47,2,FALSE))," ",VLOOKUP(I148,Eje_Pilar!$C$2:$E$47,2,FALSE)) -> Gobernanza e influencia local, regional e internacional | K148: =IF(ISERROR(VLOOKUP(I148,Eje_Pilar!$C$2:$E$47,3,FALSE))," ",VLOOKUP(I148,Eje_Pilar!$C$2:$E$47,3,FALSE)) -> Eje Transversal 4 Gobierno Legitimo, Fortalecimiento Local y Eficiencia | L148: 1281 | M148: 52931118 | N148: JOHANNA CAROLINA PEREZ RUIZ | O148: 55000000 | R148: 1 | S148: 12833333 | T148: 67833333 | U148: 47666667 | V148: 2019-02-15 | W148: 2019-02-15 | X148: 2020-03-31 | Y148: 330 | Z148: 77 | AC148: X | AF148: 0.7027027111 | AH148: =IF(SUMPRODUCT((A$14:A148=A148)*(B$14:B148=B148)*(C$14:C148=C148))>1,0,1) -> 1 | AI148: Contratos de prestación de servicios profesionales y de apoyo a la gestión | AJ148: Contratación directa | AK148: =IFERROR(VLOOKUP(F148,Tipo!$C$12:$C$27,1,FALSE),"NO") -> Prestación de servicios profesionales y de apoyo a la gestión, o para la ejecución de trabajos artísticos que sólo puedan encomendarse a determinadas personas naturales; | AL148: Inversión | AM148: 45
A149: CPS-138-2019 | B149: 2019 | C149: FDLCB-CD-137-2019 | D149: Contratos de prestación de servicios profesionales y de apoyo a la gestión | E149: Contratación directa | F149: Prestación de servicios profesionales y de apoyo a la gestión, o para la ejecución de trabajos artísticos que sólo puedan encomendarse a determinadas personas naturales; | G149: Prestar sus servicios como conductor de vehículo liviano de propiedad del Fondo De Desarrollo Local De Ciudad Bolívar | H149: Inversión | I149: 45 | J149: =IF(ISERROR(VLOOKUP(I149,Eje_Pilar!$C$2:$E$47,2,FALSE))," ",VLOOKUP(I149,Eje_Pilar!$C$2:$E$47,2,FALSE)) -> Gobernanza e influencia local, regional e internacional | K149: =IF(ISERROR(VLOOKUP(I149,Eje_Pilar!$C$2:$E$47,3,FALSE))," ",VLOOKUP(I149,Eje_Pilar!$C$2:$E$47,3,FALSE)) -> Eje Transversal 4 Gobierno Legitimo, Fortalecimiento Local y Eficiencia | L149: 1281 | M149: 79300094 | N149: HECTOR GRANADOS LINARES | O149: 25300000 | T149: 25300000 | U149: 21696667 | V149: 2019-02-15 | W149: 2019-02-18 | X149: 2020-01-17 | Y149: 330 | AC149: X | AF149: 0.8575757708 | AH149: =IF(SUMPRODUCT((A$14:A149=A149)*(B$14:B149=B149)*(C$14:C149=C149))>1,0,1) -> 1 | AI149: Contratos de prestación de servicios profesionales y de apoyo a la gestión | AJ149: Contratación directa | AK149: =IFERROR(VLOOKUP(F149,Tipo!$C$12:$C$27,1,FALSE),"NO") -> Prestación de servicios profesionales y de apoyo a la gestión, o para la ejecución de trabajos artísticos que sólo puedan encomendarse a determinadas personas naturales; | AL149: Inversión | AM149: 45
A150: CPS-139-2019 | B150: 2019 | C150: FDLCB-CD-138-2019 | D150: Contratos de prestación de servicios profesionales y de apoyo a la gestión | E150: Contratación directa | F150: Prestación de servicios profesionales y de apoyo a la gestión, o para la ejecución de trabajos artísticos que sólo puedan encomendarse a determinadas personas naturales; | G150: Prestar los servicios profesionales para apoyar el Alcalde Local en gestión de los asuntos relacionados con seguridad ciudadana, convivencia y prevención de conflictividades, violencias y delitos en la Localidad de conformidad con el marco normativo aplicable en la materia. | H150: Inversión | I150: 45 | J150: =IF(ISERROR(VLOOKUP(I150,Eje_Pilar!$C$2:$E$47,2,FALSE))," ",VLOOKUP(I150,Eje_Pilar!$C$2:$E$47,2,FALSE)) -> Gobernanza e influencia local, regional e internacional | K150: =IF(ISERROR(VLOOKUP(I150,Eje_Pilar!$C$2:$E$47,3,FALSE))," ",VLOOKUP(I150,Eje_Pilar!$C$2:$E$47,3,FALSE)) -> Eje Transversal 4 Gobierno Legitimo, Fortalecimiento Local y Eficiencia | L150: 1281 | M150: 79558346 | N150: JOSE MARIO GARZON OSORIO | O150: 75900000 | R150: 1 | S150: 16330000 | T150: 92230000 | U150: 64400000 | V150: 2019-02-21 | W150: 2019-02-21 | X150: 2020-03-31 | Y150: 330 | Z150: 71 | AC150: X | AF150: 0.6982543641 | AH150: =IF(SUMPRODUCT((A$14:A150=A150)*(B$14:B150=B150)*(C$14:C150=C150))>1,0,1) -> 1 | AI150: Contratos de prestación de servicios profesionales y de apoyo a la gestión | AJ150: Contratación directa | AK150: =IFERROR(VLOOKUP(F150,Tipo!$C$12:$C$27,1,FALSE),"NO") -> Prestación de servicios profesionales y de apoyo a la gestión, o para la ejecución de trabajos artísticos que sólo puedan encomendarse a determinadas personas naturales; | AL150: Inversión | AM150: 45
A151: CPS-140-2019 | B151: 2019 | C151: FDLCB-CD-139-2019 | D151: Contratos de prestación de servicios profesionales y de apoyo a la gestión | E151: Contratación directa | F151: Prestación de servicios profesionales y de apoyo a la gestión, o para la ejecución de trabajos artísticos que sólo puedan encomendarse a determinadas personas naturales; | G151: Prestar los servicios de apoyo para realizar actividades asistenciales en las diferentes dependencias de la Alcaldía Local de Ciudad Bolívar. | H151: Inversión | I151: 45 | J151: =IF(ISERROR(VLOOKUP(I151,Eje_Pilar!$C$2:$E$47,2,FALSE))," ",VLOOKUP(I151,Eje_Pilar!$C$2:$E$47,2,FALSE)) -> Gobernanza e influencia local, regional e internacional | K151: =IF(ISERROR(VLOOKUP(I151,Eje_Pilar!$C$2:$E$47,3,FALSE))," ",VLOOKUP(I151,Eje_Pilar!$C$2:$E$47,3,FALSE)) -> Eje Transversal 4 Gobierno Legitimo, Fortalecimiento Local y Eficiencia | L151: 1281 | M151: 1069728200 | N151: LUIS ENRIQUE VARGAS MENDOZA | O151: 26400000 | T151: 26400000 | U151: 21840000 | V151: 2019-02-15 | W151: 2019-02-28 | X151: 2020-01-27 | Y151: 330 | AC151: X | AF151: 0.8272727273 | AH151: =IF(SUMPRODUCT((A$14:A151=A151)*(B$14:B151=B151)*(C$14:C151=C151))>1,0,1) -> 1 | AI151: Contratos de prestación de servicios profesionales y de apoyo a la gestión | AJ151: Contratación directa | AK151: =IFERROR(VLOOKUP(F151,Tipo!$C$12:$C$27,1,FALSE),"NO") -> Prestación de servicios profesionales y de apoyo a la gestión, o para la ejecución de trabajos artísticos que sólo puedan encomendarse a determinadas personas naturales; | AL151: Inversión | AM151: 45
A152: CPS-141-2019 | B152: 2019 | C152: FDLCB-CD-140-2019 | D152: Contratos de prestación de servicios profesionales y de apoyo a la gestión | E152: Contratación directa | F152: Prestación de servicios profesionales y de apoyo a la gestión, o para la ejecución de trabajos artísticos que sólo puedan encomendarse a determinadas personas naturales; | G152: Presta sus servicios profesionales como lider en el proceso de liquidación de los convenios y contratos suscritos por el Fondo de Desarrollo Local de Ciudad Bolívar y en el seguimiento, depuración y conslidación de la información de las obligaciones por pagar vigentes | H152: Inversión | I152: 45 | J152: =IF(ISERROR(VLOOKUP(I152,Eje_Pilar!$C$2:$E$47,2,FALSE))," ",VLOOKUP(I152,Eje_Pilar!$C$2:$E$47,2,FALSE)) -> Gobernanza e influencia local, regional e internacional | K152: =IF(ISERROR(VLOOKUP(I152,Eje_Pilar!$C$2:$E$47,3,FALSE))," ",VLOOKUP(I152,Eje_Pilar!$C$2:$E$47,3,FALSE)) -> Eje Transversal 4 Gobierno Legitimo, Fortalecimiento Local y Eficiencia | L152: 1281 | M152: 53080691 | N152: ANDREA CASALLAS RODRIGUEZ | O152: 66000000 | R152: 1 | S152: 15400000 | T152: 81400000 | U152: 56400000 | V152: 2019-02-15 | W152: 2019-02-15 | X152: 2020-03-31 | Y152: 330 | Z152: 71 | AC152: X | AF152: 0.6928746929 | AH152: =IF(SUMPRODUCT((A$14:A152=A152)*(B$14:B152=B152)*(C$14:C152=C152))>1,0,1) -> 1 | AI152: Contratos de prestación de servicios profesionales y de apoyo a la gestión | AJ152: Contratación directa | AK152: =IFERROR(VLOOKUP(F152,Tipo!$C$12:$C$27,1,FALSE),"NO") -> Prestación de servicios profesionales y de apoyo a la gestión, o para la ejecución de trabajos artísticos que sólo puedan encomendarse a determinadas personas naturales; | AL152: Inversión | AM152: 45
A153: CPS-142-2019 | B153: 2019 | C153: FDLCB-CD-141-2019 | D153: Contratos de prestación de servicios profesionales y de apoyo a la gestión | E153: Contratación directa | F153: Prestación de servicios profesionales y de apoyo a la gestión, o para la ejecución de trabajos artísticos que sólo puedan encomendarse a determinadas personas naturales; | G153: Prestar sus servicios profesionales en el proceso de liquidación de los convenios y contratos suscritos por le Fondo de Desarrollo Local de Ciudad Bolívar en el seguimiento depuración y consolidación de la información de las obligaciones por pagar vigentas | H153: Inversión | I153: 45 | J153: =IF(ISERROR(VLOOKUP(I153,Eje_Pilar!$C$2:$E$47,2,FALSE))," ",VLOOKUP(I153,Eje_Pilar!$C$2:$E$47,2,FALSE)) -> Gobernanza e influencia local, regional e internacional | K153: =IF(ISERROR(VLOOKUP(I153,Eje_Pilar!$C$2:$E$47,3,FALSE))," ",VLOOKUP(I153,Eje_Pilar!$C$2:$E$47,3,FALSE)) -> Eje Transversal 4 Gobierno Legitimo, Fortalecimiento Local y Eficiencia | L153: 1281 | M153: 79512590 | N153: CARLOS JULIO SABOGAL PORRAS | O153: 50600000 | R153: 1 | S153: 11346667 | T153: 61946667 | U153: 43393333 | V153: 2019-02-18 | W153: 2019-02-18 | X153: 2020-01-17 | Y153: 330 | Z153: 74 | AC153: X | AF153: 0.7004950404 | AH153: =IF(SUMPRODUCT((A$14:A153=A153)*(B$14:B153=B153)*(C$14:C153=C153))>1,0,1) -> 1 | AI153: Contratos de prestación de servicios profesionales y de apoyo a la gestión | AJ153: Contratación directa | AK153: =IFERROR(VLOOKUP(F153,Tipo!$C$12:$C$27,1,FALSE),"NO") -> Prestación de servicios profesionales y de apoyo a la gestión, o para la ejecución de trabajos artísticos que sólo puedan encomendarse a determinadas personas naturales; | AL153: Inversión | AM153: 45
A154: CPS-143-2019 | B154: 2019 | C154: FDLCB-CD-142-2019 | D154: Contratos de prestación de servicios profesionales y de apoyo a la gestión | E154: Contratación directa | F154: Prestación de servicios profesionales y de apoyo a la gestión, o para la ejecución de trabajos artísticos que sólo puedan encomendarse a determinadas personas naturales; | G154: Prestar los servicios profesionales para la operación, prestación, seguimiento y cumplimiento de los procedimientos administrativos, operativos y programáticos de los servicios sociales del proyecto de subsidio/apoyo económico tipo c, que contribuyan a la garantía de los derechos de la población mayor en el marco de la política pública social para el envejecimiento y la vejez en el Distrito Capital a cargo de la Alcaldía Local | H154: Inversión | I154: 3 | J154: =IF(ISERROR(VLOOKUP(I154,Eje_Pilar!$C$2:$E$47,2,FALSE))," ",VLOOKUP(I154,Eje_Pilar!$C$2:$E$47,2,FALSE)) -> Igualdad y autonomía para una Bogotá incluyente | K154: =IF(ISERROR(VLOOKUP(I154,Eje_Pilar!$C$2:$E$47,3,FALSE))," ",VLOOKUP(I154,Eje_Pilar!$C$2:$E$47,3,FALSE)) -> Pilar 1 Igualdad de Calidad de Vida | L154: 1399 | M154: 1030581261 | N154: ANGIE MARCELA RUIZ PRIETO | O154: 51700000 | T154: 51700000 | U154: 44336667 | V154: 2019-02-15 | W154: 2019-02-18 | X154: 2020-01-17 | Y154: 330 | AC154: X | AF154: 0.857575764 | AH154: =IF(SUMPRODUCT((A$14:A154=A154)*(B$14:B154=B154)*(C$14:C154=C154))>1,0,1) -> 1 | AI154: Contratos de prestación de servicios profesionales y de apoyo a la gestión | AJ154: Contratación directa | AK154: =IFERROR(VLOOKUP(F154,Tipo!$C$12:$C$27,1,FALSE),"NO") -> Prestación de servicios profesionales y de apoyo a la gestión, o para la ejecución de trabajos artísticos que sólo puedan encomendarse a determinadas personas naturales; | AL154: Inversión | AM154: 3
A155: CPS-144-2019 | B155: 2019 | C155: FDLCB-CD-143-2019 | D155: Contratos de prestación de servicios profesionales y de apoyo a la gestión | E155: Contratación directa | F155: Prestación de servicios profesionales y de apoyo a la gestión, o para la ejecución de trabajos artísticos que sólo puedan encomendarse a determinadas personas naturales; | G155: Prestar los servicios profesionales para la operación, prestación, seguimiento y cumplimiento de los procedimientos administrativos, operativos y programáticos de los servicios sociales del proyecto de subsidio/apoyo económico tipo c, que contribuyan a la garantía de los derechos de la población mayor en el marco de la política pública social para el envejecimiento y la vejez en el Distrito Capital a cargo de la Alcaldía Local | H155: Inversión | I155: 3 | J155: =IF(ISERROR(VLOOKUP(I155,Eje_Pilar!$C$2:$E$47,2,FALSE))," ",VLOOKUP(I155,Eje_Pilar!$C$2:$E$47,2,FALSE)) -> Igualdad y autonomía para una Bogotá incluyente | K155: =IF(ISERROR(VLOOKUP(I155,Eje_Pilar!$C$2:$E$47,3,FALSE))," ",VLOOKUP(I155,Eje_Pilar!$C$2:$E$47,3,FALSE)) -> Pilar 1 Igualdad de Calidad de Vida | L155: 1399 | M155: 1010185782 | N155: KAREN LISETH MORENO BAUTISTA | O155: 51700000 | T155: 51700000 | U155: 44336667 | V155: 2019-02-15 | W155: 2019-02-18 | X155: 2020-01-17 | Y155: 330 | AC155: X | AF155: 0.857575764 | AH155: =IF(SUMPRODUCT((A$14:A155=A155)*(B$14:B155=B155)*(C$14:C155=C155))>1,0,1) -> 1 | AI155: Contratos de prestación de servicios profesionales y de apoyo a la gestión | AJ155: Contratación directa | AK155: =IFERROR(VLOOKUP(F155,Tipo!$C$12:$C$27,1,FALSE),"NO") -> Prestación de servicios profesionales y de apoyo a la gestión, o para la ejecución de trabajos artísticos que sólo puedan encomendarse a determinadas personas naturales; | AL155: Inversión | AM155: 3
A156: CPS-145-2019 | B156: 2019 | C156: FDLCB-CD-144-2019 | D156: Contratos de prestación de servicios profesionales y de apoyo a la gestión | E156: Contratación directa | F156: Prestación de servicios profesionales y de apoyo a la gestión, o para la ejecución de trabajos artísticos que sólo puedan encomendarse a determinadas personas naturales; | G156: Prestar los servicios profesionales para la operación, prestación, seguimiento y cumplimiento de los procedimientos administrativos, operativos y programáticos de los servicios sociales del proyecto de subsidio/apoyo económico tipo c, que contribuyan a la garantía de los derechos de la población mayor en el marco de la política pública social para el envejecimiento y la vejez en el Distrito Capital a cargo de la Alcaldía Local | H156: Inversión | I156: 3 | J156: =IF(ISERROR(VLOOKUP(I156,Eje_Pilar!$C$2:$E$47,2,FALSE))," ",VLOOKUP(I156,Eje_Pilar!$C$2:$E$47,2,FALSE)) -> Igualdad y autonomía para una Bogotá incluyente | K156: =IF(ISERROR(VLOOKUP(I156,Eje_Pilar!$C$2:$E$47,3,FALSE))," ",VLOOKUP(I156,Eje_Pilar!$C$2:$E$47,3,FALSE)) -> Pilar 1 Igualdad de Calidad de Vida | L156: 1399 | M156: 52522205 | N156: SANDRA JEANNETTE BELTRAN GONZALEZ | O156: 51700000 | T156: 51700000 | U156: 44336667 | V156: 2019-02-15 | W156: 2019-02-18 | X156: 2020-01-17 | Y156: 330 | AC156: X | AF156: 0.857575764 | AH156: =IF(SUMPRODUCT((A$14:A156=A156)*(B$14:B156=B156)*(C$14:C156=C156))>1,0,1) -> 1 | AI156: Contratos de prestación de servicios profesionales y de apoyo a la gestión | AJ156: Contratación directa | AK156: =IFERROR(VLOOKUP(F156,Tipo!$C$12:$C$27,1,FALSE),"NO") -> Prestación de servicios profesionales y de apoyo a la gestión, o para la ejecución de trabajos artísticos que sólo puedan encomendarse a determinadas personas naturales; | AL156: Inversión | AM156: 3
A157: CPS-146-2019 | B157: 2019 | C157: FDLCB-CD-145-2019 | D157: Contratos de prestación de servicios profesionales y de apoyo a la gestión | E157: Contratación directa | F157: Prestación de servicios profesionales y de apoyo a la gestión, o para la ejecución de trabajos artísticos que sólo puedan encomendarse a determinadas personas naturales; | G157: Prestar los servicios profesionales para la operación, prestación, seguimiento y cumplimiento de los procedimientos administrativos, operativos y programáticos de los servicios sociales del proyecto de subsidio/apoyo económico tipo c, que contribuyan a la garantía de los derechos de la población mayor en el marco de la política pública social para el envejecimiento y la vejez en el Distrito Capital a cargo de la Alcaldía Local | H157: Inversión | I157: 3 | J157: =IF(ISERROR(VLOOKUP(I157,Eje_Pilar!$C$2:$E$47,2,FALSE))," ",VLOOKUP(I157,Eje_Pilar!$C$2:$E$47,2,FALSE)) -> Igualdad y autonomía para una Bogotá incluyente | K157: =IF(ISERROR(VLOOKUP(I157,Eje_Pilar!$C$2:$E$47,3,FALSE))," ",VLOOKUP(I157,Eje_Pilar!$C$2:$E$47,3,FALSE)) -> Pilar 1 Igualdad de Calidad de Vida | L157: 1399 | M157: 52777101 | N157: AURA DENIS RAMIREZ NONZOQUE | O157: 51700000 | T157: 51700000 | U157: 44336667 | V157: 2019-02-15 | W157: 2019-02-18 | X157: 2020-01-17 | Y157: 330 | AC157: X | AF157: 0.857575764 | AH157: =IF(SUMPRODUCT((A$14:A157=A157)*(B$14:B157=B157)*(C$14:C157=C157))>1,0,1) -> 1 | AI157: Contratos de prestación de servicios profesionales y de apoyo a la gestión | AJ157: Contratación directa | AK157: =IFERROR(VLOOKUP(F157,Tipo!$C$12:$C$27,1,FALSE),"NO") -> Prestación de servicios profesionales y de apoyo a la gestión, o para la ejecución de trabajos artísticos que sólo puedan encomendarse a determinadas personas naturales; | AL157: Inversión | AM157: 3
A158: CPS-147-2019 | B158: 2019 | C158: FDLCB-CD-146-2019 | D158: Contratos de prestación de servicios profesionales y de apoyo a la gestión | E158: Contratación directa | F158: Prestación de servicios profesionales y de apoyo a la gestión, o para la ejecución de trabajos artísticos que sólo puedan encomendarse a determinadas personas naturales; | G158: Prestar sus servicios profesionales para apoyar técnicamente las distintas etapas de los procesos de competencia de la Alcaldía Local para la depuración de las actuaciones administrativas | H158: Inversión | I158: 45 | J158: =IF(ISERROR(VLOOKUP(I158,Eje_Pilar!$C$2:$E$47,2,FALSE))," ",VLOOKUP(I158,Eje_Pilar!$C$2:$E$47,2,FALSE)) -> Gobernanza e influencia local, regional e internacional | K158: =IF(ISERROR(VLOOKUP(I158,Eje_Pilar!$C$2:$E$47,3,FALSE))," ",VLOOKUP(I158,Eje_Pilar!$C$2:$E$47,3,FALSE)) -> Eje Transversal 4 Gobierno Legitimo, Fortalecimiento Local y Eficiencia | L158: 1281 | M158: 1019049802 | N158: TATIANA GIRALDO RUIZ | O158: 52800000 | T158: 52800000 | U158: 44960000 | V158: 2019-02-18 | W158: 2019-02-20 | X158: 2020-01-19 | Y158: 330 | AC158: X | AF158: 0.8515151515 | AH158: =IF(SUMPRODUCT((A$14:A158=A158)*(B$14:B158=B158)*(C$14:C158=C158))>1,0,1) -> 1 | AI158: Contratos de prestación de servicios profesionales y de apoyo a la gestión | AJ158: Contratación directa | AK158: =IFERROR(VLOOKUP(F158,Tipo!$C$12:$C$27,1,FALSE),"NO") -> Prestación de servicios profesionales y de apoyo a la gestión, o para la ejecución de trabajos artísticos que sólo puedan encomendarse a determinadas personas naturales; | AL158: Inversión | AM158: 45
A159: CPS-148-2019 | B159: 2019 | C159: FDLCB-CD-147-2019 | D159: Contratos de prestación de servicios profesionales y de apoyo a la gestión | E159: Contratación directa | F159: Prestación de servicios profesionales y de apoyo a la gestión, o para la ejecución de trabajos artísticos que sólo puedan encomendarse a determinadas personas naturales; | G159: Prestar sus servicios profesionales para apoyar técnicamente las distintas etapas de los procesos de competencia de la Alcaldía Local para la depuración de las actuaciones administrativas | H159: Inversión | I159: 45 | J159: =IF(ISERROR(VLOOKUP(I159,Eje_Pilar!$C$2:$E$47,2,FALSE))," ",VLOOKUP(I159,Eje_Pilar!$C$2:$E$47,2,FALSE)) -> Gobernanza e influencia local, regional e internacional | K159: =IF(ISERROR(VLOOKUP(I159,Eje_Pilar!$C$2:$E$47,3,FALSE))," ",VLOOKUP(I159,Eje_Pilar!$C$2:$E$47,3,FALSE)) -> Eje Transversal 4 Gobierno Legitimo, Fortalecimiento Local y Eficiencia | L159: 1281 | M159: 1020777269 | N159: CONSUELO AMERICA DEL MAR ALBARRACIN PERA | O159: 52800000 | R159: 1 | S159: 11520000 | T159: 64320000 | U159: 44960000 | V159: 2019-02-20 | W159: 2019-02-20 | X159: 2020-03-31 | Y159: 330 | Z159: 72 | AC159: X | AF159: 0.6990049751 | AH159: =IF(SUMPRODUCT((A$14:A159=A159)*(B$14:B159=B159)*(C$14:C159=C159))>1,0,1) -> 1 | AI159: Contratos de prestación de servicios profesionales y de apoyo a la gestión | AJ159: Contratación directa | AK159: =IFERROR(VLOOKUP(F159,Tipo!$C$12:$C$27,1,FALSE),"NO") -> Prestación de servicios profesionales y de apoyo a la gestión, o para la ejecución de trabajos artísticos que sólo puedan encomendarse a determinadas personas naturales; | AL159: Inversión | AM159: 45
A160: CPS-149-2019 | B160: 2019 | C160: FDLCB-CD-148-2019 | D160: Contratos de prestación de servicios profesionales y de apoyo a la gestión | E160: Contratación directa | F160: Prestación de servicios profesionales y de apoyo a la gestión, o para la ejecución de trabajos artísticos que sólo puedan encomendarse a determinadas personas naturales; | G160: Prestar los servicios profesionales para la operación, prestación, seguimiento y cumplimiento de los procedimientos administrativos, operativos y programáticos de los servicios sociales del proyecto de subsidio/apoyo económico tipo c, que contribuyan a la garantía de los derechos de la población mayor en el marco de la política pública social para el envejecimiento y la vejez en el Distrito Capital a cargo de la Alcaldía Local | H160: Inversión | I160: 3 | J160: =IF(ISERROR(VLOOKUP(I160,Eje_Pilar!$C$2:$E$47,2,FALSE))," ",VLOOKUP(I160,Eje_Pilar!$C$2:$E$47,2,FALSE)) -> Igualdad y autonomía para una Bogotá incluyente | K160: =IF(ISERROR(VLOOKUP(I160,Eje_Pilar!$C$2:$E$47,3,FALSE))," ",VLOOKUP(I160,Eje_Pilar!$C$2:$E$47,3,FALSE)) -> Pilar 1 Igualdad de Calidad de Vida | L160: 1399 | M160: 1033720371 | N160: MYRIAN JOHANA RUIZ GARCIA | O160: 51700000 | T160: 51700000 | U160: 44336667 | V160: 2019-02-15 | W160: 2019-02-18 | X160: 2020-01-17 | Y160: 330 | AC160: X | AF160: 0.857575764 | AH160: =IF(SUMPRODUCT((A$14:A160=A160)*(B$14:B160=B160)*(C$14:C160=C160))>1,0,1) -> 1 | AI160: Contratos de prestación de servicios profesionales y de apoyo a la gestión | AJ160: Contratación directa | AK160: =IFERROR(VLOOKUP(F160,Tipo!$C$12:$C$27,1,FALSE),"NO") -> Prestación de servicios profesionales y de apoyo a la gestión, o para la ejecución de trabajos artísticos que sólo puedan encomendarse a determinadas personas naturales; | AL160: Inversión | AM160: 3
A161: CPS-150-2019 | B161: 2019 | C161: FDLCB-CD-149-2019 | D161: Contratos de prestación de servicios profesionales y de apoyo a la gestión | E161: Contratación directa | F161: Prestación de servicios profesionales y de apoyo a la gestión, o para la ejecución de trabajos artísticos que sólo puedan encomendarse a determinadas personas naturales; | G161: Prestar los servicios profesionales para la operación, prestación, seguimiento y cumplimiento de los procedimientos administrativos, operativos y programáticos de los servicios sociales del proyecto de subsidio/apoyo económico tipo c, que contribuyan a la garantía de los derechos de la población mayor en el marco de la política pública social para el envejecimiento y la vejez en el Distrito Capital a cargo de la Alcaldía Local | H161: Inversión | I161: 3 | J161: =IF(ISERROR(VLOOKUP(I161,Eje_Pilar!$C$2:$E$47,2,FALSE))," ",VLOOKUP(I161,Eje_Pilar!$C$2:$E$47,2,FALSE)) -> Igualdad y autonomía para una Bogotá incluyente | K161: =IF(ISERROR(VLOOKUP(I161,Eje_Pilar!$C$2:$E$47,3,FALSE))," ",VLOOKUP(I161,Eje_Pilar!$C$2:$E$47,3,FALSE)) -> Pilar 1 Igualdad de Calidad de Vida | L161: 1399 | M161: 52476831 | N161: MARTHA ELENA CORTES ROJAS | O161: 51700000 | T161: 51700000 | U161: 44180000 | V161: 2019-02-15 | W161: 2019-02-19 | X161: 2020-01-14 | Y161: 330 | AC161: X | AF161: 0.8545454545 | AH161: =IF(SUMPRODUCT((A$14:A161=A161)*(B$14:B161=B161)*(C$14:C161=C161))>1,0,1) -> 1 | AI161: Contratos de prestación de servicios profesionales y de apoyo a la gestión | AJ161: Contratación directa | AK161: =IFERROR(VLOOKUP(F161,Tipo!$C$12:$C$27,1,FALSE),"NO") -> Prestación de servicios profesionales y de apoyo a la gestión, o para la ejecución de trabajos artísticos que sólo puedan encomendarse a determinadas personas naturales; | AL161: Inversión | AM161: 3
A162: CPS-151-2019 | B162: 2019 | C162: FDLCB-CD-150-2019 | D162: Contratos de prestación de servicios profesionales y de apoyo a la gestión | E162: Contratación directa | F162: Prestación de servicios profesionales y de apoyo a la gestión, o para la ejecución de trabajos artísticos que sólo puedan encomendarse a determinadas personas naturales; | G162: APOYAR JURÍDICAMENTE LA GESTIÓN DE LA CASA DEL CONSUMIDOR DE LA LOCALIDAD DE CIUDAD BOLÍVAR | H162: Inversión | I162: 45 | J162: =IF(ISERROR(VLOOKUP(I162,Eje_Pilar!$C$2:$E$47,2,FALSE))," ",VLOOKUP(I162,Eje_Pilar!$C$2:$E$47,2,FALSE)) -> Gobernanza e influencia local, regional e internacional | K162: =IF(ISERROR(VLOOKUP(I162,Eje_Pilar!$C$2:$E$47,3,FALSE))," ",VLOOKUP(I162,Eje_Pilar!$C$2:$E$47,3,FALSE)) -> Eje Transversal 4 Gobierno Legitimo, Fortalecimiento Local y Eficiencia | L162: 1281 | M162: 1018429780 | N162: CARLOS JAIME CUELLO DIAZ | O162: 52800000 | T162: 52800000 | U162: 44960000 | V162: 2019-02-20 | W162: 2019-02-20 | X162: 2020-01-19 | Y162: 330 | AC162: X | AF162: 0.8515151515 | AH162: =IF(SUMPRODUCT((A$14:A162=A162)*(B$14:B162=B162)*(C$14:C162=C162))>1,0,1) -> 1 | AI162: Contratos de prestación de servicios profesionales y de apoyo a la gestión | AJ162: Contratación directa | AK162: =IFERROR(VLOOKUP(F162,Tipo!$C$12:$C$27,1,FALSE),"NO") -> Prestación de servicios profesionales y de apoyo a la gestión, o para la ejecución de trabajos artísticos que sólo puedan encomendarse a determinadas personas naturales; | AL162: Inversión | AM162: 45
A163: CPS-152-2019 | B163: 2019 | C163: FDLCB-CD-151-2019 | D163: Contratos de prestación de servicios profesionales y de apoyo a la gestión | E163: Contratación directa | F163: Prestación de servicios profesionales y de apoyo a la gestión, o para la ejecución de trabajos artísticos que sólo puedan encomendarse a determinadas personas naturales; | G163: Prestar los servicios profesionales para la operación, prestación, seguimiento y cumplimiento de los procedimientos administrativos, operativos y programáticos de los servicios sociales del proyecto de subsidio/apoyo económico tipo c, que contribuyan a la garantía de los derechos de la población mayor en el marco de la política pública social para el envejecimiento y la vejez en el Distrito Capital a cargo de la Alcaldía Local | H163: Inversión | I163: 3 | J163: =IF(ISERROR(VLOOKUP(I163,Eje_Pilar!$C$2:$E$47,2,FALSE))," ",VLOOKUP(I163,Eje_Pilar!$C$2:$E$47,2,FALSE)) -> Igualdad y autonomía para una Bogotá incluyente | K163: =IF(ISERROR(VLOOKUP(I163,Eje_Pilar!$C$2:$E$47,3,FALSE))," ",VLOOKUP(I163,Eje_Pilar!$C$2:$E$47,3,FALSE)) -> Pilar 1 Igualdad de Calidad de Vida | L163: 1399 | M163: 1110451066 | N163: MAGDA GIANINA CORDOBA BARRERRO | O163: 51700000 | T163: 51700000 | U163: 44336667 | V163: 2019-02-15 | W163: 2019-02-18 | X163: 2020-01-17 | Y163: 330 | AC163: X | AF163: 0.857575764 | AH163: =IF(SUMPRODUCT((A$14:A163=A163)*(B$14:B163=B163)*(C$14:C163=C163))>1,0,1) -> 1 | AI163: Contratos de prestación de servicios profesionales y de apoyo a la gestión | AJ163: Contratación directa | AK163: =IFERROR(VLOOKUP(F163,Tipo!$C$12:$C$27,1,FALSE),"NO") -> Prestación de servicios profesionales y de apoyo a la gestión, o para la ejecución de trabajos artísticos que sólo puedan encomendarse a determinadas personas naturales; | AL163: Inversión | AM163: 3
A164: CPS-153-2019 | B164: 2019 | C164: FDLCB-CD-152-2019 | D164: Contratos de prestación de servicios profesionales y de apoyo a la gestión | E164: Contratación directa | F164: Prestación de servicios profesionales y de apoyo a la gestión, o para la ejecución de trabajos artísticos que sólo puedan encomendarse a determinadas personas naturales; | G164: Prestar los servicios profesionales para la operación, prestación, seguimiento y cumplimiento de los procedimientos administrativos, operativos y programáticos de los servicios sociales del proyecto de subsidio/apoyo económico tipo c, que contribuyan a la garantía de los derechos de la población mayor en el marco de la política pública social para el envejecimiento y la vejez en el Distrito Capital a cargo de la Alcaldía Local | H164: Inversión | I164: 3 | J164: =IF(ISERROR(VLOOKUP(I164,Eje_Pilar!$C$2:$E$47,2,FALSE))," ",VLOOKUP(I164,Eje_Pilar!$C$2:$E$47,2,FALSE)) -> Igualdad y autonomía para una Bogotá incluyente | K164: =IF(ISERROR(VLOOKUP(I164,Eje_Pilar!$C$2:$E$47,3,FALSE))," ",VLOOKUP(I164,Eje_Pilar!$C$2:$E$47,3,FALSE)) -> Pilar 1 Igualdad de Calidad de Vida | L164: 1399 | M164: 1024522909 | N164: MAUREE YULIET GUARNIZO DEVIA | O164: 51700000 | T164: 51700000 | U164: 44180000 | V164: 2019-02-15 | W164: 2019-02-19 | X164: 2020-01-18 | Y164: 330 | AC164: X | AF164: 0.8545454545 | AH164: =IF(SUMPRODUCT((A$14:A164=A164)*(B$14:B164=B164)*(C$14:C164=C164))>1,0,1) -> 1 | AI164: Contratos de prestación de servicios profesionales y de apoyo a la gestión | AJ164: Contratación directa | AK164: =IFERROR(VLOOKUP(F164,Tipo!$C$12:$C$27,1,FALSE),"NO") -> Prestación de servicios profesionales y de apoyo a la gestión, o para la ejecución de trabajos artísticos que sólo puedan encomendarse a determinadas personas naturales; | AL164: Inversión | AM164: 3
A165: CPS-154-2019 | B165: 2019 | C165: FDLCB-CD-153-2019 | D165: Contratos de prestación de servicios profesionales y de apoyo a la gestión | E165: Contratación directa | F165: Prestación de servicios profesionales y de apoyo a la gestión, o para la ejecución de trabajos artísticos que sólo puedan encomendarse a determinadas personas naturales; | G165: Prestar los servicios profesionales para la operación, prestación, seguimiento y cumplimiento de los procedimientos administrativos, operativos y programáticos de los servicios sociales del proyecto de subsidio/apoyo económico tipo c, que contribuyan a la garantía de los derechos de la población mayor en el marco de la política pública social para el envejecimiento y la vejez en el Distrito Capital a cargo de la Alcaldía Local | H165: Inversión | I165: 3 | J165: =IF(ISERROR(VLOOKUP(I165,Eje_Pilar!$C$2:$E$47,2,FALSE))," ",VLOOKUP(I165,Eje_Pilar!$C$2:$E$47,2,FALSE)) -> Igualdad y autonomía para una Bogotá incluyente | K165: =IF(ISERROR(VLOOKUP(I165,Eje_Pilar!$C$2:$E$47,3,FALSE))," ",VLOOKUP(I165,Eje_Pilar!$C$2:$E$47,3,FALSE)) -> Pilar 1 Igualdad de Calidad de Vida | L165: 1399 | M165: 1033716552 | N165: JHON FREDY MENDEZ SOLAQUE | O165: 51700000 | T165: 51700000 | U165: 44336667 | V165: 2019-02-15 | W165: 2019-02-18 | X165: 2020-01-17 | Y165: 330 | AC165: X | AF165: 0.857575764 | AH165: =IF(SUMPRODUCT((A$14:A165=A165)*(B$14:B165=B165)*(C$14:C165=C165))>1,0,1) -> 1 | AI165: Contratos de prestación de servicios profesionales y de apoyo a la gestión | AJ165: Contratación directa | AK165: =IFERROR(VLOOKUP(F165,Tipo!$C$12:$C$27,1,FALSE),"NO") -> Prestación de servicios profesionales y de apoyo a la gestión, o para la ejecución de trabajos artísticos que sólo puedan encomendarse a determinadas personas naturales; | AL165: Inversión | AM165: 3
A166: CPS-155-2019 | B166: 2019 | C166: FDLCB-CD-154-2019 | D166: Contratos de prestación de servicios profesionales y de apoyo a la gestión | E166: Contratación directa | F166: Prestación de servicios profesionales y de apoyo a la gestión, o para la ejecución de trabajos artísticos que sólo puedan encomendarse a determinadas personas naturales; | G166: Prestar los servicios de apoyo para realizar actividades secretariales en las diferentes dependencias de la Alcaldía Local de Ciudad Bolívar | H166: Inversión | I166: 45 | J166: =IF(ISERROR(VLOOKUP(I166,Eje_Pilar!$C$2:$E$47,2,FALSE))," ",VLOOKUP(I166,Eje_Pilar!$C$2:$E$47,2,FALSE)) -> Gobernanza e influencia local, regional e internacional | K166: =IF(ISERROR(VLOOKUP(I166,Eje_Pilar!$C$2:$E$47,3,FALSE))," ",VLOOKUP(I166,Eje_Pilar!$C$2:$E$47,3,FALSE)) -> Eje Transversal 4 Gobierno Legitimo, Fortalecimiento Local y Eficiencia | L166: 1281 | M166: 1032502513 | N166: NICOLE FERNANDA LOZANO GONZALEZ | O166: 16500000 | R166: 1 | S166: 3650000 | T166: 20150000 | U166: 14100000 | V166: 2019-02-15 | W166: 2019-02-19 | X166: 2020-03-31 | Y166: 330 | Z166: 73 | AC166: X | AF166: 0.699751861 | AH166: =IF(SUMPRODUCT((A$14:A166=A166)*(B$14:B166=B166)*(C$14:C166=C166))>1,0,1) -> 1 | AI166: Contratos de prestación de servicios profesionales y de apoyo a la gestión | AJ166: Contratación directa | AK166: =IFERROR(VLOOKUP(F166,Tipo!$C$12:$C$27,1,FALSE),"NO") -> Prestación de servicios profesionales y de apoyo a la gestión, o para la ejecución de trabajos artísticos que sólo puedan encomendarse a determinadas personas naturales; | AL166: Inversión | AM166: 45
A167: CPS-156-2019 | B167: 2019 | C167: FDLCB-CD-155-2019 | D167: Contratos de prestación de servicios profesionales y de apoyo a la gestión | E167: Contratación directa | F167: Prestación de servicios profesionales y de apoyo a la gestión, o para la ejecución de trabajos artísticos que sólo puedan encomendarse a determinadas personas naturales; | G167: Prestar los servicios profesionales para el desarrollo, ejecución y seguimiento de las acciones para cobro persuasivo y sustanciación de procesos administrativos del área gestión policiva | H167: Inversión | I167: 45 | J167: =IF(ISERROR(VLOOKUP(I167,Eje_Pilar!$C$2:$E$47,2,FALSE))," ",VLOOKUP(I167,Eje_Pilar!$C$2:$E$47,2,FALSE)) -> Gobernanza e influencia local, regional e internacional | K167: =IF(ISERROR(VLOOKUP(I167,Eje_Pilar!$C$2:$E$47,3,FALSE))," ",VLOOKUP(I167,Eje_Pilar!$C$2:$E$47,3,FALSE)) -> Eje Transversal 4 Gobierno Legitimo, Fortalecimiento Local y Eficiencia | L167: 1281 | M167: 53029158 | N167: YOHANNA MESA RAMOS | O167: 51700000 | R167: 1 | S167: 11436667 | T167: 63136667 | U167: 44180000 | V167: 2019-02-19 | W167: 2019-02-19 | X167: 2020-01-18 | Y167: 330 | Z167: 73 | AC167: X | AF167: 0.6997518573 | AH167: =IF(SUMPRODUCT((A$14:A167=A167)*(B$14:B167=B167)*(C$14:C167=C167))>1,0,1) -> 1 | AI167: Contratos de prestación de servicios profesionales y de apoyo a la gestión | AJ167: Contratación directa | AK167: =IFERROR(VLOOKUP(F167,Tipo!$C$12:$C$27,1,FALSE),"NO") -> Prestación de servicios profesionales y de apoyo a la gestión, o para la ejecución de trabajos artísticos que sólo puedan encomendarse a determinadas personas naturales; | AL167: Inversión | AM167: 45
A168: CPS-157-2019 | B168: 2019 | C168: FDLCB-CD-156-2019 | D168: Contratos de prestación de servicios profesionales y de apoyo a la gestión | E168: Contratación directa | F168: Prestación de servicios profesionales y de apoyo a la gestión, o para la ejecución de trabajos artísticos que sólo puedan encomendarse a determinadas personas naturales; | G168: Prestar los servicios profesionales para la operación, seguimiento y cumplimiento de los procesos y procedimientos del servicio social apoyo económico tipo c, requeridos para el oportuno y adecuado registro, cruce y reporte de los datos en el sistema de información y registro de beneficiarios¿SIRBE, que contribuyan a la garantía de los derechos de la población mayor en el marco de la política pública social para el envejecimiento y la vejez en el Distrito Capital a cargo de la Alcaldía Local | H168: Inversión | I168: 3 | J168: =IF(ISERROR(VLOOKUP(I168,Eje_Pilar!$C$2:$E$47,2,FALSE))," ",VLOOKUP(I168,Eje_Pilar!$C$2:$E$47,2,FALSE)) -> Igualdad y autonomía para una Bogotá incluyente | K168: =IF(ISERROR(VLOOKUP(I168,Eje_Pilar!$C$2:$E$47,3,FALSE))," ",VLOOKUP(I168,Eje_Pilar!$C$2:$E$47,3,FALSE)) -> Pilar 1 Igualdad de Calidad de Vida | L168: 1399 | M168: 79259482 | N168: LUIS MIGUEL MORENO VILLAMIL | O168: 51700000 | T168: 51700000 | U168: 44180000 | V168: 2019-02-15 | W168: 2019-02-19 | X168: 2020-01-18 | Y168: 330 | AC168: X | AF168: 0.8545454545 | AH168: =IF(SUMPRODUCT((A$14:A168=A168)*(B$14:B168=B168)*(C$14:C168=C168))>1,0,1) -> 1 | AI168: Contratos de prestación de servicios profesionales y de apoyo a la gestión | AJ168: Contratación directa | AK168: =IFERROR(VLOOKUP(F168,Tipo!$C$12:$C$27,1,FALSE),"NO") -> Prestación de servicios profesionales y de apoyo a la gestión, o para la ejecución de trabajos artísticos que sólo puedan encomendarse a determinadas personas naturales; | AL168: Inversión | AM168: 3
A169: CPS-158-2019 | B169: 2019 | C169: FDLCB-CD-157-2019 | D169: Contratos de prestación de servicios profesionales y de apoyo a la gestión | E169: Contratación directa | F169: Prestación de servicios profesionales y de apoyo a la gestión, o para la ejecución de trabajos artísticos que sólo puedan encomendarse a determinadas personas naturales; | G169: Apoyar jurídicamente la ejecución de las acciones requeridas para el trámite e impulso procesal de las actuaciones contravencionales y/o querellas que cursen en las Inspecciones de Policía - Corregidurías de la Localidad. | H169: Inversión | I169: 45 | J169: =IF(ISERROR(VLOOKUP(I169,Eje_Pilar!$C$2:$E$47,2,FALSE))," ",VLOOKUP(I169,Eje_Pilar!$C$2:$E$47,2,FALSE)) -> Gobernanza e influencia local, regional e internacional | K169: =IF(ISERROR(VLOOKUP(I169,Eje_Pilar!$C$2:$E$47,3,FALSE))," ",VLOOKUP(I169,Eje_Pilar!$C$2:$E$47,3,FALSE)) -> Eje Transversal 4 Gobierno Legitimo, Fortalecimiento Local y Eficiencia | L169: 1281 | M169: 19385113 | N169: EDGAR RAMIREZ PEREZ | O169: 52800000 | T169: 52800000 | U169: 44960000 | V169: 2019-02-15 | W169: 2019-02-20 | X169: 2020-01-19 | Y169: 330 | AC169: X | AF169: 0.8515151515 | AH169: =IF(SUMPRODUCT((A$14:A169=A169)*(B$14:B169=B169)*(C$14:C169=C169))>1,0,1) -> 1 | AI169: Contratos de prestación de servicios profesionales y de apoyo a la gestión | AJ169: Contratación directa | AK169: =IFERROR(VLOOKUP(F169,Tipo!$C$12:$C$27,1,FALSE),"NO") -> Prestación de servicios profesionales y de apoyo a la gestión, o para la ejecución de trabajos artísticos que sólo puedan encomendarse a determinadas personas naturales; | AL169: Inversión | AM169: 45
A170: CPS-159-2019 | B170: 2019 | C170: FDLCB-CD-158-2019 | D170: Contratos de prestación de servicios profesionales y de apoyo a la gestión | E170: Contratación directa | F170: Prestación de servicios profesionales y de apoyo a la gestión, o para la ejecución de trabajos artísticos que sólo puedan encomendarse a determinadas personas naturales; | G170: Apoyar jurídicamente la ejecución de las acciones requeridas para trámite e impulso procesal de las actuaciones contravencioneales y/o querellas que cursen en las inspecciones de policía de la Localidad | H170: Inversión | I170: 45 | J170: =IF(ISERROR(VLOOKUP(I170,Eje_Pilar!$C$2:$E$47,2,FALSE))," ",VLOOKUP(I170,Eje_Pilar!$C$2:$E$47,2,FALSE)) -> Gobernanza e influencia local, regional e internacional | K170: =IF(ISERROR(VLOOKUP(I170,Eje_Pilar!$C$2:$E$47,3,FALSE))," ",VLOOKUP(I170,Eje_Pilar!$C$2:$E$47,3,FALSE)) -> Eje Transversal 4 Gobierno Legitimo, Fortalecimiento Local y Eficiencia | L170: 1281 | M170: 80205464 | N170: EDUARDO OSWALDO OLAYA BARRAGAN | O170: 51700000 | T170: 51700000 | U170: 43866667 | V170: 2019-02-20 | W170: 2019-02-21 | X170: 2020-01-20 | Y170: 330 | AC170: X | AF170: 0.8484848549 | AH170: =IF(SUMPRODUCT((A$14:A170=A170)*(B$14:B170=B170)*(C$14:C170=C170))>1,0,1) -> 1 | AI170: Contratos de prestación de servicios profesionales y de apoyo a la gestión | AJ170: Contratación directa | AK170: =IFERROR(VLOOKUP(F170,Tipo!$C$12:$C$27,1,FALSE),"NO") -> Prestación de servicios profesionales y de apoyo a la gestión, o para la ejecución de trabajos artísticos que sólo puedan encomendarse a determinadas personas naturales; | AL170: Inversión | AM170: 45
A171: CPS-160-2019 | B171: 2019 | C171: FDLCB-CD-159-2019 | D171: Contratos de prestación de servicios profesionales y de apoyo a la gestión | E171: Contratación directa | F171: Prestación de servicios profesionales y de apoyo a la gestión, o para la ejecución de trabajos artísticos que sólo puedan encomendarse a determinadas personas naturales; | G171: Apoyarjurídicamente la ejecucón de las acciones requeridas para el trámite e impulso procesal de las actuaciones contravencionales y/o querellas que cursen en la Alcaldía Local | H171: Inversión | I171: 45 | J171: =IF(ISERROR(VLOOKUP(I171,Eje_Pilar!$C$2:$E$47,2,FALSE))," ",VLOOKUP(I171,Eje_Pilar!$C$2:$E$47,2,FALSE)) -> Gobernanza e influencia local, regional e internacional | K171: =IF(ISERROR(VLOOKUP(I171,Eje_Pilar!$C$2:$E$47,3,FALSE))," ",VLOOKUP(I171,Eje_Pilar!$C$2:$E$47,3,FALSE)) -> Eje Transversal 4 Gobierno Legitimo, Fortalecimiento Local y Eficiencia | L171: 1281 | M171: 52072284 | N171: DELIA MARLEN PINTO BERNAL | O171: 51700000 | R171: 1 | S171: 11123333 | T171: 62823333 | U171: 43866667 | V171: 2019-02-21 | W171: 2019-02-21 | X171: 2020-03-31 | Y171: 330 | Z171: 71 | AC171: X | AF171: 0.6982543731 | AH171: =IF(SUMPRODUCT((A$14:A171=A171)*(B$14:B171=B171)*(C$14:C171=C171))>1,0,1) -> 1 | AI171: Contratos de prestación de servicios profesionales y de apoyo a la gestión | AJ171: Contratación directa | AK171: =IFERROR(VLOOKUP(F171,Tipo!$C$12:$C$27,1,FALSE),"NO") -> Prestación de servicios profesionales y de apoyo a la gestión, o para la ejecución de trabajos artísticos que sólo puedan encomendarse a determinadas personas naturales; | AL171: Inversión | AM171: 45
A172: CPS-161-2019 | B172: 2019 | C172: FDLCB-CD-160-2019 | D172: Contratos de prestación de servicios profesionales y de apoyo a la gestión | E172: Contratación directa | F172: Prestación de servicios profesionales y de apoyo a la gestión, o para la ejecución de trabajos artísticos que sólo puedan encomendarse a determinadas personas naturales; | G172: Apoyarjurídicamente la ejecucón de las acciones requeridas para el trámite e impulso procesal de las actuaciones contravencionales y/o querellas que cursen en la Alcaldía Local | H172: Inversión | I172: 45 | J172: =IF(ISERROR(VLOOKUP(I172,Eje_Pilar!$C$2:$E$47,2,FALSE))," ",VLOOKUP(I172,Eje_Pilar!$C$2:$E$47,2,FALSE)) -> Gobernanza e influencia local, regional e internacional | K172: =IF(ISERROR(VLOOKUP(I172,Eje_Pilar!$C$2:$E$47,3,FALSE))," ",VLOOKUP(I172,Eje_Pilar!$C$2:$E$47,3,FALSE)) -> Eje Transversal 4 Gobierno Legitimo, Fortalecimiento Local y Eficiencia | L172: 1281 | M172: 53911675 | N172: LEIDY JURANY PINILLA REYES | O172: 51700000 | R172: 1 | S172: 11123333 | T172: 62823333 | U172: 43866667 | V172: 2019-02-21 | W172: 2019-02-21 | X172: 2020-03-31 | Y172: 330 | Z172: 71 | AC172: X | AF172: 0.6982543731 | AH172: =IF(SUMPRODUCT((A$14:A172=A172)*(B$14:B172=B172)*(C$14:C172=C172))>1,0,1) -> 1 | AI172: Contratos de prestación de servicios profesionales y de apoyo a la gestión | AJ172: Contratación directa | AK172: =IFERROR(VLOOKUP(F172,Tipo!$C$12:$C$27,1,FALSE),"NO") -> Prestación de servicios profesionales y de apoyo a la gestión, o para la ejecución de trabajos artísticos que sólo puedan encomendarse a determinadas personas naturales; | AL172: Inversión | AM172: 45
A173: CPS-162-2019 | B173: 2019 | C173: FDLCB-CD-161-2019 | D173: Contratos de prestación de servicios profesionales y de apoyo a la gestión | E173: Contratación directa | F173: Prestación de servicios profesionales y de apoyo a la gestión, o para la ejecución de trabajos artísticos que sólo puedan encomendarse a determinadas personas naturales; | G173: Apoyar las labores de entrega y recibo de las comunicaciones emitidas o recibidas por las diferentes dependencias del área de gestión desarrollo local de la Alcaldía Local de Ciudad Bolívar | H173: Inversión | I173: 45 | J173: =IF(ISERROR(VLOOKUP(I173,Eje_Pilar!$C$2:$E$47,2,FALSE))," ",VLOOKUP(I173,Eje_Pilar!$C$2:$E$47,2,FALSE)) -> Gobernanza e influencia local, regional e internacional | K173: =IF(ISERROR(VLOOKUP(I173,Eje_Pilar!$C$2:$E$47,3,FALSE))," ",VLOOKUP(I173,Eje_Pilar!$C$2:$E$47,3,FALSE)) -> Eje Transversal 4 Gobierno Legitimo, Fortalecimiento Local y Eficiencia | L173: 1281 | M173: 79704754 | N173: JUAN CARLOS RONCERIA RUIZ | O173: 25300000 | R173: 1 | S173: 5443333 | T173: 30743333 | U173: 21466667 | V173: 2019-02-20 | W173: 2019-02-21 | X173: 2020-03-31 | Y173: 330 | Z173: 71 | AC173: X | AF173: 0.6982543825 | AH173: =IF(SUMPRODUCT((A$14:A173=A173)*(B$14:B173=B173)*(C$14:C173=C173))>1,0,1) -> 1 | AI173: Contratos de prestación de servicios profesionales y de apoyo a la gestión | AJ173: Contratación directa | AK173: =IFERROR(VLOOKUP(F173,Tipo!$C$12:$C$27,1,FALSE),"NO") -> Prestación de servicios profesionales y de apoyo a la gestión, o para la ejecución de trabajos artísticos que sólo puedan encomendarse a determinadas personas naturales; | AL173: Inversión | AM173: 45
A174: CPS-163-2019 | B174: 2019 | C174: FDLCB-CD-162-2019 | D174: Contratos de prestación de servicios profesionales y de apoyo a la gestión | E174: Contratación directa | F174: Prestación de servicios profesionales y de apoyo a la gestión, o para la ejecución de trabajos artísticos que sólo puedan encomendarse a determinadas personas naturales; | G174: Apoyar las labores de entrega y recibo de las comunicaciones emitidas o recibidas por las diferentes dependencias del área de gestión desarrollo local de la Alcaldía Local de Ciudad Bolívar | H174: Inversión | I174: 45 | J174: =IF(ISERROR(VLOOKUP(I174,Eje_Pilar!$C$2:$E$47,2,FALSE))," ",VLOOKUP(I174,Eje_Pilar!$C$2:$E$47,2,FALSE)) -> Gobernanza e influencia local, regional e internacional | K174: =IF(ISERROR(VLOOKUP(I174,Eje_Pilar!$C$2:$E$47,3,FALSE))," ",VLOOKUP(I174,Eje_Pilar!$C$2:$E$47,3,FALSE)) -> Eje Transversal 4 Gobierno Legitimo, Fortalecimiento Local y Eficiencia | L174: 1281 | M174: 1032417443 | N174: JUAN CAMILO MOLINA | O174: 25300000 | R174: 1 | S174: 5443333 | T174: 30743333 | U174: 21466667 | V174: 2019-02-20 | W174: 2019-02-21 | X174: 2020-03-31 | Y174: 330 | Z174: 71 | AC174: X | AF174: 0.6982543825 | AH174: =IF(SUMPRODUCT((A$14:A174=A174)*(B$14:B174=B174)*(C$14:C174=C174))>1,0,1) -> 1 | AI174: Contratos de prestación de servicios profesionales y de apoyo a la gestión | AJ174: Contratación directa | AK174: =IFERROR(VLOOKUP(F174,Tipo!$C$12:$C$27,1,FALSE),"NO") -> Prestación de servicios profesionales y de apoyo a la gestión, o para la ejecución de trabajos artísticos que sólo puedan encomendarse a determinadas personas naturales; | AL174: Inversión | AM174: 45
A175: CPS-164-2019 | B175: 2019 | C175: FDLCB-CD-163-2019 | D175: Contratos de prestación de servicios profesionales y de apoyo a la gestión | E175: Contratación directa | F175: Prestación de servicios profesionales y de apoyo a la gestión, o para la ejecución de trabajos artísticos que sólo puedan encomendarse a determinadas personas naturales; | G175: Apoyar las labores de entrega y recibo de las comunicaciones emitidas o recibidas por las diferentes dependencias del área de gestión desarrollo local de la Alcaldía Local de Ciudad Bolívar | H175: Inversión | I175: 45 | J175: =IF(ISERROR(VLOOKUP(I175,Eje_Pilar!$C$2:$E$47,2,FALSE))," ",VLOOKUP(I175,Eje_Pilar!$C$2:$E$47,2,FALSE)) -> Gobernanza e influencia local, regional e internacional | K175: =IF(ISERROR(VLOOKUP(I175,Eje_Pilar!$C$2:$E$47,3,FALSE))," ",VLOOKUP(I175,Eje_Pilar!$C$2:$E$47,3,FALSE)) -> Eje Transversal 4 Gobierno Legitimo, Fortalecimiento Local y Eficiencia | L175: 1281 | M175: 80894382 | N175: JHON FREDDY SANCHEZ BALLESEROS | O175: 25300000 | T175: 25300000 | U175: 21466667 | V175: 2019-02-20 | W175: 2019-02-21 | X175: 2020-01-20 | Y175: 330 | AC175: X | AF175: 0.8484848617 | AH175: =IF(SUMPRODUCT((A$14:A175=A175)*(B$14:B175=B175)*(C$14:C175=C175))>1,0,1) -> 1 | AI175: =IFERROR(VLOOKUP(D175,tipo,1,FALSE),"NO") -> Contratos de prestación de servicios profesionales y de apoyo a la gestión | AJ175: =IFERROR(VLOOKUP(E175,modal,1,FALSE),"NO") -> Contratación directa | AK175: =IFERROR(VLOOKUP(F175,Tipo!$C$12:$C$27,1,FALSE),"NO") -> Prestación de servicios profesionales y de apoyo a la gestión, o para la ejecución de trabajos artísticos que sólo puedan encomendarse a determinadas personas naturales; | AL175: =IFERROR(VLOOKUP(H175,afectacion,1,FALSE),"NO") -> Inversión | AM175: =IFERROR(VLOOKUP(I175,programa,1,FALSE),"NO") -> 45
A176: CPS-165-2019 | B176: 2019 | C176: FDLCB-CD-164-2019 | D176: Contratos de prestación de servicios profesionales y de apoyo a la gestión | E176: Contratación directa | F176: Prestación de servicios profesionales y de apoyo a la gestión, o para la ejecución de trabajos artísticos que sólo puedan encomendarse a determinadas personas naturales; | G176: Prestar sus servcios como conductor de vehiculo liviano de propiedad del Fondo de Desarrollo Local de Ciudad Bolívar | H176: Inversión | I176: 45 | J176: =IF(ISERROR(VLOOKUP(I176,Eje_Pilar!$C$2:$E$47,2,FALSE))," ",VLOOKUP(I176,Eje_Pilar!$C$2:$E$47,2,FALSE)) -> Gobernanza e influencia local, regional e internacional | K176: =IF(ISERROR(VLOOKUP(I176,Eje_Pilar!$C$2:$E$47,3,FALSE))," ",VLOOKUP(I176,Eje_Pilar!$C$2:$E$47,3,FALSE)) -> Eje Transversal 4 Gobierno Legitimo, Fortalecimiento Local y Eficiencia | L176: 1281 | M176: 79991955 | N176: JOHAAN ANDRES CHAVEZ LANDINEZ | O176: 18400000 | R176: 1 | S176: 6900000 | T176: =+O176+Q176+S176 -> 25300000 | U176: 21466667 | V176: 2019-02-20 | W176: 2019-02-21 | X176: 2019-10-20 | Y176: 240 | Z176: 90 | AC176: X | AF176: 0.8484848617 | AH176: =IF(SUMPRODUCT((A$14:A176=A176)*(B$14:B176=B176)*(C$14:C176=C176))>1,0,1) -> 1 | AI176: Contratos de prestación de servicios profesionales y de apoyo a la gestión | AJ176: Contratación directa | AK176: =IFERROR(VLOOKUP(F176,Tipo!$C$12:$C$27,1,FALSE),"NO") -> Prestación de servicios profesionales y de apoyo a la gestión, o para la ejecución de trabajos artísticos que sólo puedan encomendarse a determinadas personas naturales; | AL176: Inversión | AM176: 45
A177: CPS-175-2019 | B177: 2019 | C177: FDLCB-CD-174-2019 | D177: Contratos de prestación de servicios profesionales y de apoyo a la gestión | E177: Contratación directa | F177: Prestación de servicios profesionales y de apoyo a la gestión, o para la ejecución de trabajos artísticos que sólo puedan encomendarse a determinadas personas naturales; | G177: Prestar sus servicios profesionales para apoyar técnicamente las distintas etapas de los procesos de competencia de la Alcaldía Local para la depuración de las actuaciones administrativas | H177: Inversión | I177: 45 | J177: =IF(ISERROR(VLOOKUP(I177,Eje_Pilar!$C$2:$E$47,2,FALSE))," ",VLOOKUP(I177,Eje_Pilar!$C$2:$E$47,2,FALSE)) -> Gobernanza e influencia local, regional e internacional | K177: =IF(ISERROR(VLOOKUP(I177,Eje_Pilar!$C$2:$E$47,3,FALSE))," ",VLOOKUP(I177,Eje_Pilar!$C$2:$E$47,3,FALSE)) -> Eje Transversal 4 Gobierno Legitimo, Fortalecimiento Local y Eficiencia | L177: 1281 | M177: 79543764 | N177: FREDY ARMANDO MARTIN GUANTIVAR | O177: 52800000 | T177: 52800000 | U177: 26240000 | V177: 2019-02-20 | W177: 2019-02-21 | X177: 2020-03-06 | Y177: 330 | AC177: X | AF177: 0.496969697 | AH177: =IF(SUMPRODUCT((A$14:A177=A177)*(B$14:B177=B177)*(C$14:C177=C177))>1,0,1) -> 1 | AI177: Contratos de prestación de servicios profesionales y de apoyo a la gestión | AJ177: Contratación directa | AK177: =IFERROR(VLOOKUP(F177,Tipo!$C$12:$C$27,1,FALSE),"NO") -> Prestación de servicios profesionales y de apoyo a la gestión, o para la ejecución de trabajos artísticos que sólo puedan encomendarse a determinadas personas naturales; | AL177: Inversión | AM177: 45
A178: CPS-176-2019 | B178: 2019 | C178: FDLCB-CD-175-2019 | D178: Contratos de prestación de servicios profesionales y de apoyo a la gestión | E178: Contratación directa | F178: Prestación de servicios profesionales y de apoyo a la gestión, o para la ejecución de trabajos artísticos que sólo puedan encomendarse a determinadas personas naturales; | G178: Prestar sus servicios profesionales para apoyar técnicamente las distintas etapas de los procesos de competencia de la Alcaldía Local para la depuración de las actuaciones administrativas | H178: Inversión | I178: 45 | J178: =IF(ISERROR(VLOOKUP(I178,Eje_Pilar!$C$2:$E$47,2,FALSE))," ",VLOOKUP(I178,Eje_Pilar!$C$2:$E$47,2,FALSE)) -> Gobernanza e influencia local, regional e internacional | K178: =IF(ISERROR(VLOOKUP(I178,Eje_Pilar!$C$2:$E$47,3,FALSE))," ",VLOOKUP(I178,Eje_Pilar!$C$2:$E$47,3,FALSE)) -> Eje Transversal 4 Gobierno Legitimo, Fortalecimiento Local y Eficiencia | L178: 1281 | M178: 1020751349 | N178: LUZ ANGEE CRUZ GIRAL | O178: 52800000 | T178: 52800000 | U178: 44160000 | V178: 2019-02-20 | W178: 2019-02-25 | X178: 2020-01-24 | Y178: 330 | AC178: X | AF178: 0.8363636364 | AH178: =IF(SUMPRODUCT((A$14:A178=A178)*(B$14:B178=B178)*(C$14:C178=C178))>1,0,1) -> 1 | AI178: Contratos de prestación de servicios profesionales y de apoyo a la gestión | AJ178: Contratación directa | AK178: =IFERROR(VLOOKUP(F178,Tipo!$C$12:$C$27,1,FALSE),"NO") -> Prestación de servicios profesionales y de apoyo a la gestión, o para la ejecución de trabajos artísticos que sólo puedan encomendarse a determinadas personas naturales; | AL178: Inversión | AM178: 45
A179: CPS-177-2019 | B179: 2019 | C179: FDLCB-CD-176-2019 | D179: Contratos de prestación de servicios profesionales y de apoyo a la gestión | E179: Contratación directa | F179: Prestación de servicios profesionales y de apoyo a la gestión, o para la ejecución de trabajos artísticos que sólo puedan encomendarse a determinadas personas naturales; | G179: Apoyar las labores de entrega y recibo de las comunicaciones emitidas o recibidas por las diferentes dependencias del área de gestión desarrollo local de la Alcaldía Local de Ciudad Bolívar | H179: Inversión | I179: 45 | J179: =IF(ISERROR(VLOOKUP(I179,Eje_Pilar!$C$2:$E$47,2,FALSE))," ",VLOOKUP(I179,Eje_Pilar!$C$2:$E$47,2,FALSE)) -> Gobernanza e influencia local, regional e internacional | K179: =IF(ISERROR(VLOOKUP(I179,Eje_Pilar!$C$2:$E$47,3,FALSE))," ",VLOOKUP(I179,Eje_Pilar!$C$2:$E$47,3,FALSE)) -> Eje Transversal 4 Gobierno Legitimo, Fortalecimiento Local y Eficiencia | L179: 1281 | M179: 80018024 | N179: LEONARDO JOSÉ FERNANDEZ MENDOZA | O179: 25300000 | T179: 25300000 | U179: 18706667 | V179: 2019-02-20 | W179: 2019-02-21 | X179: 2020-01-20 | Y179: 330 | AC179: X | AF179: 0.7393939526 | AH179: =IF(SUMPRODUCT((A$14:A179=A179)*(B$14:B179=B179)*(C$14:C179=C179))>1,0,1) -> 1 | AI179: Contratos de prestación de servicios profesionales y de apoyo a la gestión | AJ179: Contratación directa | AK179: =IFERROR(VLOOKUP(F179,Tipo!$C$12:$C$27,1,FALSE),"NO") -> Prestación de servicios profesionales y de apoyo a la gestión, o para la ejecución de trabajos artísticos que sólo puedan encomendarse a determinadas personas naturales; | AL179: Inversión | AM179: 45
A180: CPS-178-2019 | B180: 2019 | C180: FDLCB-CD-177-2019 | D180: Contratos de prestación de servicios profesionales y de apoyo a la gestión | E180: Contratación directa | F180: Prestación de servicios profesionales y de apoyo a la gestión, o para la ejecución de trabajos artísticos que sólo puedan encomendarse a determinadas personas naturales; | G180: Ptrestar sus servicios profesionales para apoyar técnicamente las distintas etapas de los procesos de competencia de la Alcaldía Local para la depuración de las actuaciones administrativas | H180: Inversión | I180: 45 | J180: =IF(ISERROR(VLOOKUP(I180,Eje_Pilar!$C$2:$E$47,2,FALSE))," ",VLOOKUP(I180,Eje_Pilar!$C$2:$E$47,2,FALSE)) -> Gobernanza e influencia local, regional e internacional | K180: =IF(ISERROR(VLOOKUP(I180,Eje_Pilar!$C$2:$E$47,3,FALSE))," ",VLOOKUP(I180,Eje_Pilar!$C$2:$E$47,3,FALSE)) -> Eje Transversal 4 Gobierno Legitimo, Fortalecimiento Local y Eficiencia | L180: 1281 | M180: 80372860 | N180: EDISON ANGULO ARIAS | O180: 52800000 | T180: 52800000 | U180: 39840000 | V180: 2019-02-20 | W180: 2019-02-22 | X180: 2020-01-21 | Y180: 330 | AC180: X | AF180: 0.7545454545 | AH180: =IF(SUMPRODUCT((A$14:A180=A180)*(B$14:B180=B180)*(C$14:C180=C180))>1,0,1) -> 1 | AI180: Contratos de prestación de servicios profesionales y de apoyo a la gestión | AJ180: Contratación directa | AK180: =IFERROR(VLOOKUP(F180,Tipo!$C$12:$C$27,1,FALSE),"NO") -> Prestación de servicios profesionales y de apoyo a la gestión, o para la ejecución de trabajos artísticos que sólo puedan encomendarse a determinadas personas naturales; | AL180: Inversión | AM180: 45
A181: CPS-179-2019 | B181: 2019 | C181: FDLCB-CD-178-2019 | D181: Contratos de prestación de servicios profesionales y de apoyo a la gestión | E181: Contratación directa | F181: Prestación de servicios profesionales y de apoyo a la gestión, o para la ejecución de trabajos artísticos que sólo puedan encomendarse a determinadas personas naturales; | G181: Prestar sus servicios profesionales para apoyar técnicamente las distintas etapas de los procesos de competencia de la Alcaldía Local para la depuración de las actuaciones administrativas | H181: Inversión | I181: 45 | J181: =IF(ISERROR(VLOOKUP(I181,Eje_Pilar!$C$2:$E$47,2,FALSE))," ",VLOOKUP(I181,Eje_Pilar!$C$2:$E$47,2,FALSE)) -> Gobernanza e influencia local, regional e internacional | K181: =IF(ISERROR(VLOOKUP(I181,Eje_Pilar!$C$2:$E$47,3,FALSE))," ",VLOOKUP(I181,Eje_Pilar!$C$2:$E$47,3,FALSE)) -> Eje Transversal 4 Gobierno Legitimo, Fortalecimiento Local y Eficiencia | L181: 1281 | M181: 80232622 | N181: ISRAEL ANDRES RODRIGUEZ PIRAJAN | O181: 52800000 | R181: 1 | S181: 11520000 | T181: 64320000 | U181: 39840000 | V181: 2019-02-20 | W181: 2019-02-20 | X181: 2020-03-31 | Y181: 330 | Z181: 72 | AC181: X | AF181: 0.6194029851 | AH181: =IF(SUMPRODUCT((A$14:A181=A181)*(B$14:B181=B181)*(C$14:C181=C181))>1,0,1) -> 1 | AI181: Contratos de prestación de servicios profesionales y de apoyo a la gestión | AJ181: Contratación directa | AK181: =IFERROR(VLOOKUP(F181,Tipo!$C$12:$C$27,1,FALSE),"NO") -> Prestación de servicios profesionales y de apoyo a la gestión, o para la ejecución de trabajos artísticos que sólo puedan encomendarse a determinadas personas naturales; | AL181: Inversión | AM181: 45
A182: CPS-181-2019 | B182: 2019 | C182: FDLCB-CD-180-2019 | D182: Contratos de prestación de servicios profesionales y de apoyo a la gestión | E182: Contratación directa | F182: Prestación de servicios profesionales y de apoyo a la gestión, o para la ejecución de trabajos artísticos que sólo puedan encomendarse a determinadas personas naturales; | G182: Apoyar al Alcalde Local en la promoción, articulación, acompañamiento y seguimiento para la atención y protección de los animales domésticos y silvestres de la localidad | H182: Inversión | I182: 45 | J182: =IF(ISERROR(VLOOKUP(I182,Eje_Pilar!$C$2:$E$47,2,FALSE))," ",VLOOKUP(I182,Eje_Pilar!$C$2:$E$47,2,FALSE)) -> Gobernanza e influencia local, regional e internacional | K182: =IF(ISERROR(VLOOKUP(I182,Eje_Pilar!$C$2:$E$47,3,FALSE))," ",VLOOKUP(I182,Eje_Pilar!$C$2:$E$47,3,FALSE)) -> Eje Transversal 4 Gobierno Legitimo, Fortalecimiento Local y Eficiencia | L182: 1281 | M182: 79272171 | N182: JOSE FERNANDO JARAMILLO NOGUERA | O182: 50600000 | R182: 1 | S182: 10273333 | T182: 60873333 | U182: 42320000 | V182: 2019-02-20 | W182: 2019-02-25 | X182: 2020-01-24 | Y182: 330 | Z182: 67 | AC182: X | AF182: 0.6952141096 | AH182: =IF(SUMPRODUCT((A$14:A182=A182)*(B$14:B182=B182)*(C$14:C182=C182))>1,0,1) -> 1 | AI182: Contratos de prestación de servicios profesionales y de apoyo a la gestión | AJ182: Contratación directa | AK182: =IFERROR(VLOOKUP(F182,Tipo!$C$12:$C$27,1,FALSE),"NO") -> Prestación de servicios profesionales y de apoyo a la gestión, o para la ejecución de trabajos artísticos que sólo puedan encomendarse a determinadas personas naturales; | AL182: Inversión | AM182: 45
A183: CPS-182-2019 | B183: 2019 | C183: FDLCB-CD-181-2019 | D183: Contratos de prestación de servicios profesionales y de apoyo a la gestión | E183: Contratación directa | F183: Prestación de servicios profesionales y de apoyo a la gestión, o para la ejecución de trabajos artísticos que sólo puedan encomendarse a determinadas personas naturales; | G183: Ptrestar sus servicios profesionales para apoyar técnicamente las distintas etapas de los procesos de competencia de la Alcaldía Local para la depuración de las actuaciones administrativas | H183: Inversión | I183: 45 | J183: =IF(ISERROR(VLOOKUP(I183,Eje_Pilar!$C$2:$E$47,2,FALSE))," ",VLOOKUP(I183,Eje_Pilar!$C$2:$E$47,2,FALSE)) -> Gobernanza e influencia local, regional e internacional | K183: =IF(ISERROR(VLOOKUP(I183,Eje_Pilar!$C$2:$E$47,3,FALSE))," ",VLOOKUP(I183,Eje_Pilar!$C$2:$E$47,3,FALSE)) -> Eje Transversal 4 Gobierno Legitimo, Fortalecimiento Local y Eficiencia | L183: 1281 | M183: 79643668 | N183: ROLANDO ESTEBAN CRUZ ACOSTA | O183: 52800000 | T183: 52800000 | U183: 35040000 | V183: 2019-02-20 | W183: 2019-02-22 | X183: 2020-01-21 | Y183: 330 | AC183: X | AF183: 0.6636363636 | AH183: =IF(SUMPRODUCT((A$14:A183=A183)*(B$14:B183=B183)*(C$14:C183=C183))>1,0,1) -> 1 | AI183: Contratos de prestación de servicios profesionales y de apoyo a la gestión | AJ183: Contratación directa | AK183: =IFERROR(VLOOKUP(F183,Tipo!$C$12:$C$27,1,FALSE),"NO") -> Prestación de servicios profesionales y de apoyo a la gestión, o para la ejecución de trabajos artísticos que sólo puedan encomendarse a determinadas personas naturales; | AL183: Inversión | AM183: 45
A184: CPS-183-2019 | B184: 2019 | C184: FDLCB-CD-182-2019 | D184: Contratos de prestación de servicios profesionales y de apoyo a la gestión | E184: Contratación directa | F184: Prestación de servicios profesionales y de apoyo a la gestión, o para la ejecución de trabajos artísticos que sólo puedan encomendarse a determinadas personas naturales; | G184: Prestar sus servicios profesionales para apoyar el área de Gestión Policiva de la Alcaldía Local de Ciudad Bolívar en los temas relacionados con Polígonos de monitoreo, así como las distintas ocupaciones ilegales que se desarrollan en predios que presentan condición de riesgo | H184: Inversión | I184: 45 | J184: =IF(ISERROR(VLOOKUP(I184,Eje_Pilar!$C$2:$E$47,2,FALSE))," ",VLOOKUP(I184,Eje_Pilar!$C$2:$E$47,2,FALSE)) -> Gobernanza e influencia local, regional e internacional | K184: =IF(ISERROR(VLOOKUP(I184,Eje_Pilar!$C$2:$E$47,3,FALSE))," ",VLOOKUP(I184,Eje_Pilar!$C$2:$E$47,3,FALSE)) -> Eje Transversal 4 Gobierno Legitimo, Fortalecimiento Local y Eficiencia | L184: 1281 | M184: 52214825 | N184: INDIRA CAICEDO ZULUAGA | O184: 52800000 | R184: 1 | S184: 9120000 | T184: 61920000 | U184: 41600000 | V184: 2019-03-01 | W184: 2019-03-05 | X184: 2020-03-31 | Y184: 330 | Z184: 57 | AC184: X | AF184: 0.6718346253 | AH184: =IF(SUMPRODUCT((A$14:A184=A184)*(B$14:B184=B184)*(C$14:C184=C184))>1,0,1) -> 1 | AI184: Contratos de prestación de servicios profesionales y de apoyo a la gestión | AJ184: Contratación directa | AK184: =IFERROR(VLOOKUP(F184,Tipo!$C$12:$C$27,1,FALSE),"NO") -> Prestación de servicios profesionales y de apoyo a la gestión, o para la ejecución de trabajos artísticos que sólo puedan encomendarse a determinadas personas naturales; | AL184: Inversión | AM184: 45
A185: CPS-184-2019 | B185: 2019 | C185: FDLCB-183-2019 | D185: Contratos de prestación de servicios profesionales y de apoyo a la gestión | E185: Contratación directa | F185: Prestación de servicios profesionales y de apoyo a la gestión, o para la ejecución de trabajos artísticos que sólo puedan encomendarse a determinadas personas naturales; | G185: PRESTAR LOS SERVICIOS PROFESIONALES PARA EL SEGUIMIENTO E IMPULSO PROCESAL DE LAS DEMANDAS DE PERTENENCIA ADMITIDAS POR LOS JUECES CIVILES DE BOGOTÁ | H185: Inversión | I185: 15 | J185: =IF(ISERROR(VLOOKUP(I185,Eje_Pilar!$C$2:$E$47,2,FALSE))," ",VLOOKUP(I185,Eje_Pilar!$C$2:$E$47,2,FALSE)) -> Recuperación, incorporación, vida urbana y control de la ilegalidad | K185: =IF(ISERROR(VLOOKUP(I185,Eje_Pilar!$C$2:$E$47,3,FALSE))," ",VLOOKUP(I185,Eje_Pilar!$C$2:$E$47,3,FALSE)) -> Pilar 2 Democracía Urbana | L185: 1313 | M185: 79253845 | N185: Pablo Enrique Chaparro Avella | O185: 51700000 | T185: 51700000 | U185: 41673333 | V185: 2019-02-28 | W185: 2019-03-05 | X185: 2020-02-04 | Y185: 330 | AC185: X | AF185: 0.8060605996 | AH185: =IF(SUMPRODUCT((A$14:A185=A185)*(B$14:B185=B185)*(C$14:C185=C185))>1,0,1) -> 1 | AI185: Contratos de prestación de servicios profesionales y de apoyo a la gestión | AJ185: Contratación directa | AK185: =IFERROR(VLOOKUP(F185,Tipo!$C$12:$C$27,1,FALSE),"NO") -> Prestación de servicios profesionales y de apoyo a la gestión, o para la ejecución de trabajos artísticos que sólo puedan encomendarse a determinadas personas naturales; | AL185: Inversión | AM185: 15
A186: CPS-185-2019 | B186: 2019 | C186: FDLCB-CD-184-2019 | D186: Contratos de prestación de servicios profesionales y de apoyo a la gestión | E186: Contratación directa | F186: Prestación de servicios profesionales y de apoyo a la gestión, o para la ejecución de trabajos artísticos que sólo puedan encomendarse a determinadas personas naturales; | G186: PRESTAR SUS SERVICIOS PROFESIONALES PARA LA IMPLEMENTACIÓN DE LAS ACCIONES Y LINEAMIENTOS TÉCNICOS SURTIDOS DEL PROGRAMA DE GESTIÓN DOCUMENTAL Y DEMÁS INSTRUMENTOS TÉCNICOS ARCHIVÍSTICOS | H186: Inversión | I186: 45 | J186: =IF(ISERROR(VLOOKUP(I186,Eje_Pilar!$C$2:$E$47,2,FALSE))," ",VLOOKUP(I186,Eje_Pilar!$C$2:$E$47,2,FALSE)) -> Gobernanza e influencia local, regional e internacional | K186: =IF(ISERROR(VLOOKUP(I186,Eje_Pilar!$C$2:$E$47,3,FALSE))," ",VLOOKUP(I186,Eje_Pilar!$C$2:$E$47,3,FALSE)) -> Eje Transversal 4 Gobierno Legitimo, Fortalecimiento Local y Eficiencia | L186: 1281 | M186: 80117750 | N186: DANIEL ANDRES RINCON HERNANDEZ | O186: 51700000 | R186: 1 | S186: 10496667 | T186: 62196667 | U186: 43240000 | V186: 2019-02-25 | W186: 2019-02-25 | X186: 2020-03-31 | Y186: 330 | Z186: 67 | AC186: X | AF186: 0.6952141021 | AH186: =IF(SUMPRODUCT((A$14:A186=A186)*(B$14:B186=B186)*(C$14:C186=C186))>1,0,1) -> 1 | AI186: Contratos de prestación de servicios profesionales y de apoyo a la gestión | AJ186: Contratación directa | AK186: =IFERROR(VLOOKUP(F186,Tipo!$C$12:$C$27,1,FALSE),"NO") -> Prestación de servicios profesionales y de apoyo a la gestión, o para la ejecución de trabajos artísticos que sólo puedan encomendarse a determinadas personas naturales; | AL186: Inversión | AM186: 45
A187: CPS-186-2019 | B187: 2019 | C187: FDLCB-CD-185-2019 | D187: Contratos de prestación de servicios profesionales y de apoyo a la gestión | E187: Contratación directa | F187: Prestación de servicios profesionales y de apoyo a la gestión, o para la ejecución de trabajos artísticos que sólo puedan encomendarse a determinadas personas naturales; | G187: APOYAR JURIDICAMENTE LA EJECUCIÓN DE LAS ACCIONES REQUERIDAS PARA EL TRÁMITE E IMPULSO PROCESAL DE LAS ACTUACIONES CONTRAVENCIONALES Y/O QUERELLAS QUE SE CURSEN EN LA ALCALDIA LOCAL. | H187: Inversión | I187: 45 | J187: =IF(ISERROR(VLOOKUP(I187,Eje_Pilar!$C$2:$E$47,2,FALSE))," ",VLOOKUP(I187,Eje_Pilar!$C$2:$E$47,2,FALSE)) -> Gobernanza e influencia local, regional e internacional | K187: =IF(ISERROR(VLOOKUP(I187,Eje_Pilar!$C$2:$E$47,3,FALSE))," ",VLOOKUP(I187,Eje_Pilar!$C$2:$E$47,3,FALSE)) -> Eje Transversal 4 Gobierno Legitimo, Fortalecimiento Local y Eficiencia | L187: 1281 | M187: 1032375829 | N187: KAREN DAYANA PATIÑO SAENZ | O187: 51700000 | R187: 1 | S187: 8616667 | T187: 60316667 | U187: 43240000 | V187: 2019-02-25 | W187: 2019-02-25 | X187: 2020-01-24 | Y187: 330 | Z187: 67 | AC187: X | AF187: 0.7168831129 | AH187: =IF(SUMPRODUCT((A$14:A187=A187)*(B$14:B187=B187)*(C$14:C187=C187))>1,0,1) -> 1 | AI187: Contratos de prestación de servicios profesionales y de apoyo a la gestión | AJ187: Contratación directa | AK187: =IFERROR(VLOOKUP(F187,Tipo!$C$12:$C$27,1,FALSE),"NO") -> Prestación de servicios profesionales y de apoyo a la gestión, o para la ejecución de trabajos artísticos que sólo puedan encomendarse a determinadas personas naturales; | AL187: Inversión | AM187: 45
A188: CPS-187-2019 | B188: 2019 | C188: FDLCB-CD-186-2019 | D188: Contratos de prestación de servicios profesionales y de apoyo a la gestión | E188: Contratación directa | F188: Prestación de servicios profesionales y de apoyo a la gestión, o para la ejecución de trabajos artísticos que sólo puedan encomendarse a determinadas personas naturales; | G188: Apoyar las labores de entrega y recibo de las comunicaciones emitidas o recibidas por las inspecciones de policia de la Localidad | H188: Inversión | I188: 45 | J188: =IF(ISERROR(VLOOKUP(I188,Eje_Pilar!$C$2:$E$47,2,FALSE))," ",VLOOKUP(I188,Eje_Pilar!$C$2:$E$47,2,FALSE)) -> Gobernanza e influencia local, regional e internacional | K188: =IF(ISERROR(VLOOKUP(I188,Eje_Pilar!$C$2:$E$47,3,FALSE))," ",VLOOKUP(I188,Eje_Pilar!$C$2:$E$47,3,FALSE)) -> Eje Transversal 4 Gobierno Legitimo, Fortalecimiento Local y Eficiencia | L188: 1281 | M188: 53065942 | N188: SANDRA EDITH CUERVO ROCHA | O188: 25300000 | T188: 25300000 | U188: 21083333 | V188: 2019-02-25 | W188: 2019-02-26 | X188: 2020-01-24 | Y188: 330 | AC188: X | AF188: 0.8333333202 | AH188: =IF(SUMPRODUCT((A$14:A188=A188)*(B$14:B188=B188)*(C$14:C188=C188))>1,0,1) -> 1 | AI188: Contratos de prestación de servicios profesionales y de apoyo a la gestión | AJ188: Contratación directa | AK188: =IFERROR(VLOOKUP(F188,Tipo!$C$12:$C$27,1,FALSE),"NO") -> Prestación de servicios profesionales y de apoyo a la gestión, o para la ejecución de trabajos artísticos que sólo puedan encomendarse a determinadas personas naturales; | AL188: Inversión | AM188: 45
A189: CPS-188-2019 | B189: 2019 | C189: FDLCB-CD-187-2019 | D189: Contratos de prestación de servicios profesionales y de apoyo a la gestión | E189: Contratación directa | F189: Prestación de servicios profesionales y de apoyo a la gestión, o para la ejecución de trabajos artísticos que sólo puedan encomendarse a determinadas personas naturales; | G189: Apoyar jurídicamente la ejecucón de las acciones requeridas para el trámite e impulso procesal de las actuaciones contravencionales y/o querellas que cursen en la Alcaldía Local | H189: Inversión | I189: 45 | J189: =IF(ISERROR(VLOOKUP(I189,Eje_Pilar!$C$2:$E$47,2,FALSE))," ",VLOOKUP(I189,Eje_Pilar!$C$2:$E$47,2,FALSE)) -> Gobernanza e influencia local, regional e internacional | K189: =IF(ISERROR(VLOOKUP(I189,Eje_Pilar!$C$2:$E$47,3,FALSE))," ",VLOOKUP(I189,Eje_Pilar!$C$2:$E$47,3,FALSE)) -> Eje Transversal 4 Gobierno Legitimo, Fortalecimiento Local y Eficiencia | L189: 1281 | M189: 52793679 | N189: CLARA MILENA BAHAMON OSPINA | O189: 51700000 | R189: 1 | S189: 10340000 | T189: 62040000 | U189: 43083333 | V189: 2019-02-26 | W189: 2019-02-26 | X189: 2020-03-31 | Y189: 330 | Z189: 66 | AC189: X | AF189: 0.6944444391 | AH189: =IF(SUMPRODUCT((A$14:A189=A189)*(B$14:B189=B189)*(C$14:C189=C189))>1,0,1) -> 1 | AI189: Contratos de prestación de servicios profesionales y de apoyo a la gestión | AJ189: Contratación directa | AK189: =IFERROR(VLOOKUP(F189,Tipo!$C$12:$C$27,1,FALSE),"NO") -> Prestación de servicios profesionales y de apoyo a la gestión, o para la ejecución de trabajos artísticos que sólo puedan encomendarse a determinadas personas naturales; | AL189: Inversión | AM189: 45
A190: CPS-189-2019 | B190: 2019 | C190: FDCL-188-2019 | D190: Contratos de prestación de servicios profesionales y de apoyo a la gestión | E190: Contratación directa | F190: Prestación de servicios profesionales y de apoyo a la gestión, o para la ejecución de trabajos artísticos que sólo puedan encomendarse a determinadas personas naturales; | G190: Apoyar jurídicamente la ejecucón de las acciones requeridas para el trámite e impulso procesal de las actuaciones contravencionales y/o querellas que cursen en la Alcaldía Local | H190: Inversión | I190: 45 | J190: =IF(ISERROR(VLOOKUP(I190,Eje_Pilar!$C$2:$E$47,2,FALSE))," ",VLOOKUP(I190,Eje_Pilar!$C$2:$E$47,2,FALSE)) -> Gobernanza e influencia local, regional e internacional | K190: =IF(ISERROR(VLOOKUP(I190,Eje_Pilar!$C$2:$E$47,3,FALSE))," ",VLOOKUP(I190,Eje_Pilar!$C$2:$E$47,3,FALSE)) -> Eje Transversal 4 Gobierno Legitimo, Fortalecimiento Local y Eficiencia | L190: 1281 | M190: 74081735 | N190: DIEGO EDILBERTO LIMAS VARGAS | O190: 51700000 | R190: 1 | S190: 10340000 | T190: 62040000 | U190: 43083333 | V190: 2019-02-26 | W190: 2019-02-26 | X190: 2020-03-31 | Y190: 330 | Z190: 66 | AC190: X | AF190: 0.6944444391 | AH190: =IF(SUMPRODUCT((A$14:A190=A190)*(B$14:B190=B190)*(C$14:C190=C190))>1,0,1) -> 1 | AI190: Contratos de prestación de servicios profesionales y de apoyo a la gestión | AJ190: Contratación directa | AK190: =IFERROR(VLOOKUP(F190,Tipo!$C$12:$C$27,1,FALSE),"NO") -> Prestación de servicios profesionales y de apoyo a la gestión, o para la ejecución de trabajos artísticos que sólo puedan encomendarse a determinadas personas naturales; | AL190: Inversión | AM190: 45
A191: CPS-190-2019 | B191: 2019 | C191: FDLCB-CD-189-2019 | D191: Contratos de prestación de servicios profesionales y de apoyo a la gestión | E191: Contratación directa | F191: Prestación de servicios profesionales y de apoyo a la gestión, o para la ejecución de trabajos artísticos que sólo puedan encomendarse a determinadas personas naturales; | G191: Apoyar jurídicamente la ejecucón de las acciones requeridas para el trámite e impulso procesal de las actuaciones contravencionales y/o querellas que cursen en la Alcaldía Local | H191: Inversión | I191: 45 | J191: =IF(ISERROR(VLOOKUP(I191,Eje_Pilar!$C$2:$E$47,2,FALSE))," ",VLOOKUP(I191,Eje_Pilar!$C$2:$E$47,2,FALSE)) -> Gobernanza e influencia local, regional e internacional | K191: =IF(ISERROR(VLOOKUP(I191,Eje_Pilar!$C$2:$E$47,3,FALSE))," ",VLOOKUP(I191,Eje_Pilar!$C$2:$E$47,3,FALSE)) -> Eje Transversal 4 Gobierno Legitimo, Fortalecimiento Local y Eficiencia | L191: 1281 | M191: 1032361713 | N191: DIANA ALEXANDRA HERNANDEZ NIÑO | O191: 51700000 | R191: 1 | S191: 10340000 | T191: 62040000 | U191: 43083333 | V191: 2019-02-26 | W191: 2019-02-26 | X191: 2020-03-31 | Y191: 330 | Z191: 66 | AC191: X | AF191: 0.6944444391 | AH191: =IF(SUMPRODUCT((A$14:A191=A191)*(B$14:B191=B191)*(C$14:C191=C191))>1,0,1) -> 1 | AI191: Contratos de prestación de servicios profesionales y de apoyo a la gestión | AJ191: Contratación directa | AK191: =IFERROR(VLOOKUP(F191,Tipo!$C$12:$C$27,1,FALSE),"NO") -> Prestación de servicios profesionales y de apoyo a la gestión, o para la ejecución de trabajos artísticos que sólo puedan encomendarse a determinadas personas naturales; | AL191: Inversión | AM191: 45
A192: CPS-191-2019 | B192: 2019 | C192: FDLCB-CD-190-2019 | D192: Contratos de prestación de servicios profesionales y de apoyo a la gestión | E192: Contratación directa | F192: Prestación de servicios profesionales y de apoyo a la gestión, o para la ejecución de trabajos artísticos que sólo puedan encomendarse a determinadas personas naturales; | G192: Prestar los servicios técnicos para la operación, seguimiento y cumplimiento de los procesos y procedimientos del Servicio Apoyos para la Seguridad Económica Tipo C, requeridos para el oportuno y adecuado registro, cruce y reporte de los datos en el Sistema Misional -SIRBE, que contribuyan a la garantía de los derechos de la población mayor en el marco de la Política Pública Social para el Envejecimiento y la Vejez en el Distrito Capital a cargo de la Alcaldía Local | H192: Inversión | I192: 3 | J192: =IF(ISERROR(VLOOKUP(I192,Eje_Pilar!$C$2:$E$47,2,FALSE))," ",VLOOKUP(I192,Eje_Pilar!$C$2:$E$47,2,FALSE)) -> Igualdad y autonomía para una Bogotá incluyente | K192: =IF(ISERROR(VLOOKUP(I192,Eje_Pilar!$C$2:$E$47,3,FALSE))," ",VLOOKUP(I192,Eje_Pilar!$C$2:$E$47,3,FALSE)) -> Pilar 1 Igualdad de Calidad de Vida | L192: 1399 | M192: 387827 | N192: REBECA MIXSARAI VARGAS ORTEGA | O192: 33000000 | T192: 33000000 | U192: 27500000 | V192: 2019-02-22 | W192: 2019-02-26 | X192: 2020-01-25 | Y192: 330 | AC192: X | AF192: 0.8333333333 | AH192: =IF(SUMPRODUCT((A$14:A192=A192)*(B$14:B192=B192)*(C$14:C192=C192))>1,0,1) -> 1 | AI192: Contratos de prestación de servicios profesionales y de apoyo a la gestión | AJ192: Contratación directa | AK192: =IFERROR(VLOOKUP(F192,Tipo!$C$12:$C$27,1,FALSE),"NO") -> Prestación de servicios profesionales y de apoyo a la gestión, o para la ejecución de trabajos artísticos que sólo puedan encomendarse a determinadas personas naturales; | AL192: Inversión | AM192: 3
